date,department/service,beneficiary,amount,summary of purpose,category,transaction number,SAP vendor number,
01.06.2018,CHILDREN AND ADULT,NUMBER 10 INTERIM LTD,"4,725.00",CAPITAL PS (STRAT SERV),ICT ACQUISITION,5902304645,1000075139,
01.06.2018,ENVIRONMENT DIRECTORATE,FUTURE GARMENTS LTD T/A EUROX,657.59,MANAGEMENT TEAM,"CLOTHING, UNIFORMS & LAUNDRY",5902305064,1000080983,
01.06.2018,ENVIRONMENT DIRECTORATE,ELLIOT ENVIRONMENTAL LTD,400.00,STREET CLEANING-GENERAL,OTHER CONTRACTORS,5902305229,1000047392,
01.06.2018,LEISURE DIRECTORATE,NPOWER LTD,557.89,CEMETERIES,ELECTRICITY,5902305192,1000078994,
01.06.2018,LEISURE DIRECTORATE,NPOWER,263.96,SDM BUDGET,ELECTRICITY,5902305197,1000032342,
01.06.2018,PECKHAM AND NUNHEAD COMMUNITY COUNCIL,TEARDUSK,"2,400.00",,GRANT,CHEQUE PAYMENT,CHEQUE PAYMENT,
01.06.2018,REGENERATION,ILLUMINATE PRODUCTIONS,"12,000.00",BLACKFRIARS ROAD PROJECT,MARKETING & PUBLICITY SERVICES,5902304994,1000075869,
01.06.2018,SOUTHWARK BUILDING SERVICES,BCS (ELECTRICAL & BUILDING) LTD,"50,691.90",BCS,MANUAL CREDITORS,5902304764,1000062321,
02.06.2018,CENTRAL FUNCTIONS,KIER FACILITIES SERVICES LTD,"102,297.60",LEDBURY ESTATE,MISCELLANEOUS EXPENSES,5902305114,1000040603,
02.06.2018,CHILDREN'S SERVICES,THE COMPLETE WORKS INDEPENDENT SCHOOL,"7,000.00",ALTERNATIVE PROVISION,EXTERNAL AGENCIES AND BODIES,5902305045,1000033256,
02.06.2018,CHILDREN'S SERVICES,CASTLE WATER LTD,"1,375.27",BUILDING SUMNER,WATER,5902305009,1000078867,
02.06.2018,ENVIRONMENT AND LEISURE,THE PLAY INSPECTION COMPANY LTD,350.00,CAPITAL PS (LEISURE),CONSTRUCTION FEES  - EXTERNAL,5902304998,1000072456,
02.06.2018,ENVIRONMENT DIRECTORATE,IMPERIAL JANITORIAL SUPPLIES LTD,668.30,ESTATE CLEANING-GENERAL,MATERIALS,5902305233,1000038126,
02.06.2018,MODERNISATION HGF,TRUSTMARQUE SOLUTIONS,410.67,APPLICATIONS,SOFTWARE,5902305181,1000035838,
02.06.2018,REGENERATION,THE MILO WLADEK CO LTD,"12,000.00",BLACKFRIARS ROAD PROJECT,MARKETING & PUBLICITY SERVICES,5902304996,1000080082,
03.06.2018,ENVIRONMENT DIRECTORATE,PERFORMANCE CHEMICALS LTD,758.76,ESTATE CLEANING-GENERAL,MATERIALS,5902305235,1000037129,
04.06.2018,ADULT SOCIAL CARE,REDACTED PERSONAL DATA,266.65,APPOINTEESHIPS,OTHER PAYMENTS FOR CLIENTS,REDACTED,REDACTED,
04.06.2018,ADULT SOCIAL CARE,OUT AND ABOUT COMMUNITY SERVICES,255.00,LD LTS 18-64,DAYCARE,2102823966,1000078603,
04.06.2018,ADULT SOCIAL CARE,OUT AND ABOUT COMMUNITY SERVICES,340.00,LD LTS 18-64,DAYCARE,2102823964,1000078603,
04.06.2018,ADULT SOCIAL CARE,CONTACT PROFESSIONALS,"2,888.00",LD LTS 18-64,HOMECARE - SPOT,2102823968,1000057263,
04.06.2018,ADULT SOCIAL CARE,BRANDON TRUST,645.00,LD LTS 18-64,PLACEMENTS - RESPITE,2102823696,1000042417,
04.06.2018,ADULT SOCIAL CARE,PROFAD CARE AGENCY,"1,034.25",MEM LTS 65+,HOMECARE - C&V,2102823794,1000079032,
04.06.2018,ADULT SOCIAL CARE,PROFAD CARE AGENCY,310.28,MEM LTS 65+,HOMECARE - SPOT,2102823811,1000079032,
04.06.2018,ADULT SOCIAL CARE,PROFAD CARE AGENCY,434.39,MEM LTS 65+,HOMECARE - SPOT,2102823821,1000079032,
04.06.2018,ADULT SOCIAL CARE,METRO HOMECARE LTD,441.28,MEM LTS 65+,HOMECARE - SPOT,2102823918,1000070695,
04.06.2018,ADULT SOCIAL CARE,PROFAD CARE AGENCY,592.97,MEM LTS 65+,HOMECARE - SPOT,2102823829,1000079032,
04.06.2018,ADULT SOCIAL CARE,PROFAD CARE AGENCY,634.34,MEM LTS 65+,HOMECARE - SPOT,2102823823,1000079032,
04.06.2018,ADULT SOCIAL CARE,PROFAD CARE AGENCY,"2,261.56",MEM LTS 65+,HOMECARE - SPOT,2102823851,1000079032,
04.06.2018,ADULT SOCIAL CARE,PROFAD CARE AGENCY,386.12,MH LTS 18-64,HOMECARE - SPOT,2102823850,1000079032,
04.06.2018,ADULT SOCIAL CARE,PROFAD CARE AGENCY,772.24,MH LTS 18-64,HOMECARE - SPOT,2102823809,1000079032,
04.06.2018,ADULT SOCIAL CARE,PROFAD CARE AGENCY,992.88,MH LTS 18-64,HOMECARE - SPOT,2102823838,1000079032,
04.06.2018,ADULT SOCIAL CARE,METRO HOMECARE LTD,"1,041.15",MH LTS 18-64,HOMECARE - SPOT,2102823884,1000070695,
04.06.2018,ADULT SOCIAL CARE,METRO HOMECARE LTD,"1,061.83",MH LTS 18-64,HOMECARE - SPOT,2102823938,1000070695,
04.06.2018,ADULT SOCIAL CARE,CLOUDS END SE,416.00,MH LTS 18-64,OTHER PAYMENTS FOR CLIENTS,2102823961,1000079240,
04.06.2018,ADULT SOCIAL CARE,CLOUDS END SE,416.00,MH LTS 18-64,OTHER PAYMENTS FOR CLIENTS,2102823965,1000079240,
04.06.2018,ADULT SOCIAL CARE,CLOUDS END SE,416.00,MH LTS 18-64,OTHER PAYMENTS FOR CLIENTS,2102823969,1000079240,
04.06.2018,ADULT SOCIAL CARE,CLOUDS END SE,416.00,MH LTS 18-64,OTHER PAYMENTS FOR CLIENTS,2102823972,1000079240,
04.06.2018,ADULT SOCIAL CARE,CLOUDS END SE,520.00,MH LTS 18-64,OTHER PAYMENTS FOR CLIENTS,2102823973,1000079240,
04.06.2018,ADULT SOCIAL CARE,METRO HOMECARE LTD,337.86,MH LTS 65+,HOMECARE - SPOT,2102823921,1000070695,
04.06.2018,ADULT SOCIAL CARE,METRO HOMECARE LTD,434.39,MH LTS 65+,HOMECARE - SPOT,2102823953,1000070695,
04.06.2018,ADULT SOCIAL CARE,METRO HOMECARE LTD,448.18,MH LTS 65+,HOMECARE - SPOT,2102823923,1000070695,
04.06.2018,ADULT SOCIAL CARE,METRO HOMECARE LTD,337.86,PHY LTS 18-64,HOMECARE - C&V,2102823906,1000070695,
04.06.2018,ADULT SOCIAL CARE,CARE DIRECT UK LTD,641.24,PHY LTS 18-64,HOMECARE - C&V,2102823756,1000066322,
04.06.2018,ADULT SOCIAL CARE,PROFAD CARE AGENCY,"2,247.77",PHY LTS 18-64,HOMECARE - C&V,2102823766,1000079032,
04.06.2018,ADULT SOCIAL CARE,CARE DIRECT UK LTD,317.17,PHY LTS 18-64,HOMECARE - SPOT,2102823731,1000066322,
04.06.2018,ADULT SOCIAL CARE,METRO HOMECARE LTD,317.17,PHY LTS 18-64,HOMECARE - SPOT,2102823917,1000070695,
04.06.2018,ADULT SOCIAL CARE,METRO HOMECARE LTD,358.54,PHY LTS 18-64,HOMECARE - SPOT,2102823886,1000070695,
04.06.2018,ADULT SOCIAL CARE,METRO HOMECARE LTD,358.54,PHY LTS 18-64,HOMECARE - SPOT,2102823950,1000070695,
04.06.2018,ADULT SOCIAL CARE,METRO HOMECARE LTD,386.12,PHY LTS 18-64,HOMECARE - SPOT,2102823910,1000070695,
04.06.2018,ADULT SOCIAL CARE,PROFAD CARE AGENCY,437.83,PHY LTS 18-64,HOMECARE - SPOT,2102823776,1000079032,
04.06.2018,ADULT SOCIAL CARE,PROFAD CARE AGENCY,441.28,PHY LTS 18-64,HOMECARE - SPOT,2102823834,1000079032,
04.06.2018,ADULT SOCIAL CARE,METRO HOMECARE LTD,475.76,PHY LTS 18-64,HOMECARE - SPOT,2102823948,1000070695,
04.06.2018,ADULT SOCIAL CARE,METRO HOMECARE LTD,627.45,PHY LTS 18-64,HOMECARE - SPOT,2102823958,1000070695,
04.06.2018,ADULT SOCIAL CARE,PROFAD CARE AGENCY,634.34,PHY LTS 18-64,HOMECARE - SPOT,2102823778,1000079032,
04.06.2018,ADULT SOCIAL CARE,PROFAD CARE AGENCY,730.87,PHY LTS 18-64,HOMECARE - SPOT,2102823807,1000079032,
04.06.2018,ADULT SOCIAL CARE,PROFAD CARE AGENCY,772.24,PHY LTS 18-64,HOMECARE - SPOT,2102823762,1000079032,
04.06.2018,ADULT SOCIAL CARE,METRO HOMECARE LTD,868.77,PHY LTS 18-64,HOMECARE - SPOT,2102823957,1000070695,
04.06.2018,ADULT SOCIAL CARE,METRO HOMECARE LTD,992.88,PHY LTS 18-64,HOMECARE - SPOT,2102823860,1000070695,
04.06.2018,ADULT SOCIAL CARE,METRO HOMECARE LTD,"1,116.99",PHY LTS 18-64,HOMECARE - SPOT,2102823937,1000070695,
04.06.2018,ADULT SOCIAL CARE,METRO HOMECARE LTD,"1,130.78",PHY LTS 18-64,HOMECARE - SPOT,2102823877,1000070695,
04.06.2018,ADULT SOCIAL CARE,PROFAD CARE AGENCY,"2,316.72",PHY LTS 18-64,HOMECARE - SPOT,2102823849,1000079032,
04.06.2018,ADULT SOCIAL CARE,PROFAD CARE AGENCY,"3,088.96",PHY LTS 18-64,HOMECARE - SPOT,2102823804,1000079032,
04.06.2018,ADULT SOCIAL CARE,METRO HOMECARE LTD,289.59,PHY LTS 65+,HOMECARE - C&V,2102823878,1000070695,
04.06.2018,ADULT SOCIAL CARE,METRO HOMECARE LTD,489.55,PHY LTS 65+,HOMECARE - C&V,2102823919,1000070695,
04.06.2018,ADULT SOCIAL CARE,METRO HOMECARE LTD,820.51,PHY LTS 65+,HOMECARE - C&V,2102823900,1000070695,
04.06.2018,ADULT SOCIAL CARE,METRO HOMECARE LTD,"1,241.10",PHY LTS 65+,HOMECARE - C&V,2102823907,1000070695,
04.06.2018,ADULT SOCIAL CARE,PROFAD CARE AGENCY,"1,930.60",PHY LTS 65+,HOMECARE - C&V,2102823782,1000079032,
04.06.2018,ADULT SOCIAL CARE,PROFAD CARE AGENCY,"2,123.66",PHY LTS 65+,HOMECARE - C&V,2102823844,1000079032,
04.06.2018,ADULT SOCIAL CARE,CARE DIRECT UK LTD,262.01,PHY LTS 65+,HOMECARE - SPOT,2102823719,1000066322,
04.06.2018,ADULT SOCIAL CARE,CARE DIRECT UK LTD,265.46,PHY LTS 65+,HOMECARE - SPOT,2102823751,1000066322,
04.06.2018,ADULT SOCIAL CARE,CARE DIRECT UK LTD,268.91,PHY LTS 65+,HOMECARE - SPOT,2102823753,1000066322,
04.06.2018,ADULT SOCIAL CARE,METRO HOMECARE LTD,282.70,PHY LTS 65+,HOMECARE - SPOT,2102823902,1000070695,
04.06.2018,ADULT SOCIAL CARE,CARE DIRECT UK LTD,286.14,PHY LTS 65+,HOMECARE - SPOT,2102823755,1000066322,
04.06.2018,ADULT SOCIAL CARE,METRO HOMECARE LTD,289.59,PHY LTS 65+,HOMECARE - SPOT,2102823873,1000070695,
04.06.2018,ADULT SOCIAL CARE,METRO HOMECARE LTD,310.28,PHY LTS 65+,HOMECARE - SPOT,2102823908,1000070695,
04.06.2018,ADULT SOCIAL CARE,METRO HOMECARE LTD,317.17,PHY LTS 65+,HOMECARE - SPOT,2102823875,1000070695,
04.06.2018,ADULT SOCIAL CARE,METRO HOMECARE LTD,317.17,PHY LTS 65+,HOMECARE - SPOT,2102823931,1000070695,
04.06.2018,ADULT SOCIAL CARE,PROFAD CARE AGENCY,330.96,PHY LTS 65+,HOMECARE - SPOT,2102823824,1000079032,
04.06.2018,ADULT SOCIAL CARE,CARE DIRECT UK LTD,337.86,PHY LTS 65+,HOMECARE - SPOT,2102823703,1000066322,
04.06.2018,ADULT SOCIAL CARE,METRO HOMECARE LTD,337.86,PHY LTS 65+,HOMECARE - SPOT,2102823866,1000070695,
04.06.2018,ADULT SOCIAL CARE,METRO HOMECARE LTD,337.86,PHY LTS 65+,HOMECARE - SPOT,2102823869,1000070695,
04.06.2018,ADULT SOCIAL CARE,METRO HOMECARE LTD,337.86,PHY LTS 65+,HOMECARE - SPOT,2102823870,1000070695,
04.06.2018,ADULT SOCIAL CARE,METRO HOMECARE LTD,337.86,PHY LTS 65+,HOMECARE - SPOT,2102823871,1000070695,
04.06.2018,ADULT SOCIAL CARE,METRO HOMECARE LTD,337.86,PHY LTS 65+,HOMECARE - SPOT,2102823896,1000070695,
04.06.2018,ADULT SOCIAL CARE,METRO HOMECARE LTD,337.86,PHY LTS 65+,HOMECARE - SPOT,2102823909,1000070695,
04.06.2018,ADULT SOCIAL CARE,METRO HOMECARE LTD,337.86,PHY LTS 65+,HOMECARE - SPOT,2102823914,1000070695,
04.06.2018,ADULT SOCIAL CARE,METRO HOMECARE LTD,337.86,PHY LTS 65+,HOMECARE - SPOT,2102823927,1000070695,
04.06.2018,ADULT SOCIAL CARE,METRO HOMECARE LTD,337.86,PHY LTS 65+,HOMECARE - SPOT,2102823929,1000070695,
04.06.2018,ADULT SOCIAL CARE,METRO HOMECARE LTD,337.86,PHY LTS 65+,HOMECARE - SPOT,2102823930,1000070695,
04.06.2018,ADULT SOCIAL CARE,METRO HOMECARE LTD,337.86,PHY LTS 65+,HOMECARE - SPOT,2102823934,1000070695,
04.06.2018,ADULT SOCIAL CARE,METRO HOMECARE LTD,337.86,PHY LTS 65+,HOMECARE - SPOT,2102823935,1000070695,
04.06.2018,ADULT SOCIAL CARE,METRO HOMECARE LTD,379.23,PHY LTS 65+,HOMECARE - SPOT,2102823946,1000070695,
04.06.2018,ADULT SOCIAL CARE,PROFAD CARE AGENCY,386.12,PHY LTS 65+,HOMECARE - SPOT,2102823773,1000079032,
04.06.2018,ADULT SOCIAL CARE,PROFAD CARE AGENCY,386.12,PHY LTS 65+,HOMECARE - SPOT,2102823806,1000079032,
04.06.2018,ADULT SOCIAL CARE,PROFAD CARE AGENCY,386.12,PHY LTS 65+,HOMECARE - SPOT,2102823842,1000079032,
04.06.2018,ADULT SOCIAL CARE,METRO HOMECARE LTD,386.12,PHY LTS 65+,HOMECARE - SPOT,2102823883,1000070695,
04.06.2018,ADULT SOCIAL CARE,METRO HOMECARE LTD,386.12,PHY LTS 65+,HOMECARE - SPOT,2102823920,1000070695,
04.06.2018,ADULT SOCIAL CARE,METRO HOMECARE LTD,393.02,PHY LTS 65+,HOMECARE - SPOT,2102823872,1000070695,
04.06.2018,ADULT SOCIAL CARE,METRO HOMECARE LTD,427.49,PHY LTS 65+,HOMECARE - SPOT,2102823865,1000070695,
04.06.2018,ADULT SOCIAL CARE,CARE DIRECT UK LTD,434.39,PHY LTS 65+,HOMECARE - SPOT,2102823711,1000066322,
04.06.2018,ADULT SOCIAL CARE,CARE DIRECT UK LTD,434.39,PHY LTS 65+,HOMECARE - SPOT,2102823714,1000066322,
04.06.2018,ADULT SOCIAL CARE,METRO HOMECARE LTD,434.39,PHY LTS 65+,HOMECARE - SPOT,2102823858,1000070695,
04.06.2018,ADULT SOCIAL CARE,METRO HOMECARE LTD,434.39,PHY LTS 65+,HOMECARE - SPOT,2102823889,1000070695,
04.06.2018,ADULT SOCIAL CARE,METRO HOMECARE LTD,434.39,PHY LTS 65+,HOMECARE - SPOT,2102823915,1000070695,
04.06.2018,ADULT SOCIAL CARE,METRO HOMECARE LTD,434.39,PHY LTS 65+,HOMECARE - SPOT,2102823944,1000070695,
04.06.2018,ADULT SOCIAL CARE,PROFAD CARE AGENCY,441.28,PHY LTS 65+,HOMECARE - SPOT,2102823783,1000079032,
04.06.2018,ADULT SOCIAL CARE,METRO HOMECARE LTD,461.97,PHY LTS 65+,HOMECARE - SPOT,2102823903,1000070695,
04.06.2018,ADULT SOCIAL CARE,METRO HOMECARE LTD,475.76,PHY LTS 65+,HOMECARE - SPOT,2102823947,1000070695,
04.06.2018,ADULT SOCIAL CARE,PROFAD CARE AGENCY,482.65,PHY LTS 65+,HOMECARE - SPOT,2102823777,1000079032,
04.06.2018,ADULT SOCIAL CARE,PROFAD CARE AGENCY,482.65,PHY LTS 65+,HOMECARE - SPOT,2102823799,1000079032,
04.06.2018,ADULT SOCIAL CARE,PROFAD CARE AGENCY,482.65,PHY LTS 65+,HOMECARE - SPOT,2102823812,1000079032,
04.06.2018,ADULT SOCIAL CARE,PROFAD CARE AGENCY,482.65,PHY LTS 65+,HOMECARE - SPOT,2102823847,1000079032,
04.06.2018,ADULT SOCIAL CARE,METRO HOMECARE LTD,482.65,PHY LTS 65+,HOMECARE - SPOT,2102823916,1000070695,
04.06.2018,ADULT SOCIAL CARE,METRO HOMECARE LTD,482.65,PHY LTS 65+,HOMECARE - SPOT,2102823926,1000070695,
04.06.2018,ADULT SOCIAL CARE,METRO HOMECARE LTD,489.55,PHY LTS 65+,HOMECARE - SPOT,2102823949,1000070695,
04.06.2018,ADULT SOCIAL CARE,PROFAD CARE AGENCY,524.02,PHY LTS 65+,HOMECARE - SPOT,2102823845,1000079032,
04.06.2018,ADULT SOCIAL CARE,PROFAD CARE AGENCY,537.81,PHY LTS 65+,HOMECARE - SPOT,2102823837,1000079032,
04.06.2018,ADULT SOCIAL CARE,METRO HOMECARE LTD,537.81,PHY LTS 65+,HOMECARE - SPOT,2102823876,1000070695,
04.06.2018,ADULT SOCIAL CARE,METRO HOMECARE LTD,551.60,PHY LTS 65+,HOMECARE - SPOT,2102823925,1000070695,
04.06.2018,ADULT SOCIAL CARE,PROFAD CARE AGENCY,565.39,PHY LTS 65+,HOMECARE - SPOT,2102823839,1000079032,
04.06.2018,ADULT SOCIAL CARE,PROFAD CARE AGENCY,592.97,PHY LTS 65+,HOMECARE - SPOT,2102823779,1000079032,
04.06.2018,ADULT SOCIAL CARE,METRO HOMECARE LTD,592.97,PHY LTS 65+,HOMECARE - SPOT,2102823912,1000070695,
04.06.2018,ADULT SOCIAL CARE,PROFAD CARE AGENCY,606.76,PHY LTS 65+,HOMECARE - SPOT,2102823831,1000079032,
04.06.2018,ADULT SOCIAL CARE,PROFAD CARE AGENCY,620.55,PHY LTS 65+,HOMECARE - SPOT,2102823841,1000079032,
04.06.2018,ADULT SOCIAL CARE,PROFAD CARE AGENCY,634.34,PHY LTS 65+,HOMECARE - SPOT,2102823770,1000079032,
04.06.2018,ADULT SOCIAL CARE,PROFAD CARE AGENCY,634.34,PHY LTS 65+,HOMECARE - SPOT,2102823816,1000079032,
04.06.2018,ADULT SOCIAL CARE,UNIQUE PERSONNEL-UK LTD,635.26,PHY LTS 65+,HOMECARE - SPOT,2102823963,1000075451,
04.06.2018,ADULT SOCIAL CARE,METRO HOMECARE LTD,648.13,PHY LTS 65+,HOMECARE - SPOT,2102823867,1000070695,
04.06.2018,ADULT SOCIAL CARE,PROFAD CARE AGENCY,661.92,PHY LTS 65+,HOMECARE - SPOT,2102823797,1000079032,
04.06.2018,ADULT SOCIAL CARE,PROFAD CARE AGENCY,675.71,PHY LTS 65+,HOMECARE - SPOT,2102823805,1000079032,
04.06.2018,ADULT SOCIAL CARE,PROFAD CARE AGENCY,689.50,PHY LTS 65+,HOMECARE - SPOT,2102823784,1000079032,
04.06.2018,ADULT SOCIAL CARE,PROFAD CARE AGENCY,703.29,PHY LTS 65+,HOMECARE - SPOT,2102823769,1000079032,
04.06.2018,ADULT SOCIAL CARE,PROFAD CARE AGENCY,703.29,PHY LTS 65+,HOMECARE - SPOT,2102823848,1000079032,
04.06.2018,ADULT SOCIAL CARE,METRO HOMECARE LTD,772.24,PHY LTS 65+,HOMECARE - SPOT,2102823885,1000070695,
04.06.2018,ADULT SOCIAL CARE,METRO HOMECARE LTD,772.24,PHY LTS 65+,HOMECARE - SPOT,2102823904,1000070695,
04.06.2018,ADULT SOCIAL CARE,PROFAD CARE AGENCY,782.58,PHY LTS 65+,HOMECARE - SPOT,2102823856,1000079032,
04.06.2018,ADULT SOCIAL CARE,PROFAD CARE AGENCY,799.82,PHY LTS 65+,HOMECARE - SPOT,2102823855,1000079032,
04.06.2018,ADULT SOCIAL CARE,PROFAD CARE AGENCY,830.85,PHY LTS 65+,HOMECARE - SPOT,2102823767,1000079032,
04.06.2018,ADULT SOCIAL CARE,PROFAD CARE AGENCY,841.19,PHY LTS 65+,HOMECARE - SPOT,2102823830,1000079032,
04.06.2018,ADULT SOCIAL CARE,PROFAD CARE AGENCY,854.98,PHY LTS 65+,HOMECARE - SPOT,2102823757,1000079032,
04.06.2018,ADULT SOCIAL CARE,PROFAD CARE AGENCY,868.77,PHY LTS 65+,HOMECARE - SPOT,2102823820,1000079032,
04.06.2018,ADULT SOCIAL CARE,METRO HOMECARE LTD,868.77,PHY LTS 65+,HOMECARE - SPOT,2102823891,1000070695,
04.06.2018,ADULT SOCIAL CARE,UNIQUE PERSONNEL-UK LTD,903.38,PHY LTS 65+,HOMECARE - SPOT,2102823959,1000075451,
04.06.2018,ADULT SOCIAL CARE,PROFAD CARE AGENCY,910.14,PHY LTS 65+,HOMECARE - SPOT,2102823760,1000079032,
04.06.2018,ADULT SOCIAL CARE,PROFAD CARE AGENCY,910.14,PHY LTS 65+,HOMECARE - SPOT,2102823793,1000079032,
04.06.2018,ADULT SOCIAL CARE,METRO HOMECARE LTD,910.14,PHY LTS 65+,HOMECARE - SPOT,2102823868,1000070695,
04.06.2018,ADULT SOCIAL CARE,PROFAD CARE AGENCY,937.72,PHY LTS 65+,HOMECARE - SPOT,2102823803,1000079032,
04.06.2018,ADULT SOCIAL CARE,PROFAD CARE AGENCY,951.51,PHY LTS 65+,HOMECARE - SPOT,2102823825,1000079032,
04.06.2018,ADULT SOCIAL CARE,PROFAD CARE AGENCY,979.09,PHY LTS 65+,HOMECARE - SPOT,2102823780,1000079032,
04.06.2018,ADULT SOCIAL CARE,UNIQUE PERSONNEL-UK LTD,986.87,PHY LTS 65+,HOMECARE - SPOT,2102823960,1000075451,
04.06.2018,ADULT SOCIAL CARE,METRO HOMECARE LTD,"1,061.83",PHY LTS 65+,HOMECARE - SPOT,2102823924,1000070695,
04.06.2018,ADULT SOCIAL CARE,PROFAD CARE AGENCY,"1,068.73",PHY LTS 65+,HOMECARE - SPOT,2102823840,1000079032,
04.06.2018,ADULT SOCIAL CARE,UNIQUE PERSONNEL-UK LTD,"1,089.00",PHY LTS 65+,HOMECARE - SPOT,2102823967,1000075451,
04.06.2018,ADULT SOCIAL CARE,METRO HOMECARE LTD,"1,103.20",PHY LTS 65+,HOMECARE - SPOT,2102823898,1000070695,
04.06.2018,ADULT SOCIAL CARE,METRO HOMECARE LTD,"1,103.20",PHY LTS 65+,HOMECARE - SPOT,2102823899,1000070695,
04.06.2018,ADULT SOCIAL CARE,METRO HOMECARE LTD,"1,116.99",PHY LTS 65+,HOMECARE - SPOT,2102823887,1000070695,
04.06.2018,ADULT SOCIAL CARE,PROFAD CARE AGENCY,"1,123.89",PHY LTS 65+,HOMECARE - SPOT,2102823795,1000079032,
04.06.2018,ADULT SOCIAL CARE,METRO HOMECARE LTD,"1,158.36",PHY LTS 65+,HOMECARE - SPOT,2102823859,1000070695,
04.06.2018,ADULT SOCIAL CARE,PROFAD CARE AGENCY,"1,206.63",PHY LTS 65+,HOMECARE - SPOT,2102823832,1000079032,
04.06.2018,ADULT SOCIAL CARE,PROFAD CARE AGENCY,"1,351.42",PHY LTS 65+,HOMECARE - SPOT,2102823835,1000079032,
04.06.2018,ADULT SOCIAL CARE,PROFAD CARE AGENCY,"1,427.27",PHY LTS 65+,HOMECARE - SPOT,2102823846,1000079032,
04.06.2018,ADULT SOCIAL CARE,PROFAD CARE AGENCY,"1,544.48",PHY LTS 65+,HOMECARE - SPOT,2102823786,1000079032,
04.06.2018,ADULT SOCIAL CARE,METRO HOMECARE LTD,"1,723.75",PHY LTS 65+,HOMECARE - SPOT,2102823941,1000070695,
04.06.2018,ADULT SOCIAL CARE,PROFAD CARE AGENCY,"1,751.33",PHY LTS 65+,HOMECARE - SPOT,2102823852,1000079032,
04.06.2018,ADULT SOCIAL CARE,PROFAD CARE AGENCY,"1,930.60",PHY LTS 65+,HOMECARE - SPOT,2102823854,1000079032,
04.06.2018,ADULT SOCIAL CARE,PROFAD CARE AGENCY,"3,157.91",PHY LTS 65+,HOMECARE - SPOT,2102823801,1000079032,
04.06.2018,ADULT SOCIAL CARE,PROFAD CARE AGENCY,"3,454.40",PHY LTS 65+,HOMECARE - SPOT,2102823815,1000079032,
04.06.2018,ADULT SOCIAL CARE,CARE DIRECT UK LTD,455.08,PHY STS 65+,HOMECARE - IC,2102823752,1000066322,
04.06.2018,ADULT SOCIAL CARE,PROFAD CARE AGENCY,758.45,SEN LTS 65+,HOMECARE - SPOT,2102823774,1000079032,
04.06.2018,ADULT SOCIAL CARE,PROFAD CARE AGENCY,496.44,SOCIAL ISOLATION,HOMECARE - SPOT,2102823764,1000079032,
04.06.2018,ADULT SOCIAL CARE,METRO HOMECARE LTD,558.50,SOCIAL ISOLATION,HOMECARE - SPOT,2102823922,1000070695,
04.06.2018,ADULT SOCIAL CARE,KIDS,452.00,SPECIALIST CARE,SECTION 17 PAYMENTS TO AGENCIES/CARERS,2102823685,1000030036,
04.06.2018,ADULT SOCIAL CARE,KIDS,590.00,SPECIALIST CARE,SECTION 17 PAYMENTS TO AGENCIES/CARERS,2102823686,1000030036,
04.06.2018,ADULT SOCIAL CARE,THE PROVIDENCE PROJECTS REHAB GROUP,"1,625.86",SUB LTS 18-64,PLACEMENTS - REHAB,2102823697,1000032991,
04.06.2018,ADULT SOCIAL CARE,STREETSCENE ADDICTION RECOVERY,"3,180.00",SUB LTS 18-64,RESIDENTIAL CARE,2102823698,11221787,
04.06.2018,ASSET MANAGEMENT,POTTER RAPER AND PARTNERS,892.98,DEVELOPMENT DELIVERY,PROFESSIONAL FEES,5902305490,1009369,
04.06.2018,ASSET MANAGEMENT,POTTER RAPER AND PARTNERS,"5,341.26",DEVELOPMENT DELIVERY,PROFESSIONAL FEES,5902305489,1009369,
04.06.2018,ASSET MANAGEMENT,CLARKE BARNES SOLICITORS LLP,"7,500.00",DISREPAIR,LEGAL FEES & COURT COSTS,2102823996,1000078090,
04.06.2018,ASSET MANAGEMENT,TECCURA SOFTWARE LTD,"7,000.00",REPAIRS OPERATIONS,OTHER R&M,5902305498,1000078938,
04.06.2018,BERMONDSEY AND ROTHERHITHE COMMUNITY COUNCIL,ST HELENA AND OLDFIELD T&RA,"4,490.00","ACTIVE LIFESTYLES (TAI CHI, PILATES & ZUMBA CLASSES)",GRANT,CHEQUE PAYMENT,CHEQUE PAYMENT,
04.06.2018,CENTRAL FUNCTIONS,STANBURY BUILDING SERVICES LTD,"1,795.00",COMMERCIAL PROPERTIES,BUILDING R&M,2102823992,3000001967,
04.06.2018,CENTRAL FUNCTIONS,KENT COUNTY COUNCIL - LASER,"30,920.17",HEATING ACCOUNT,ELECTRICITY,5902305531,1000012926,
04.06.2018,CENTRAL FUNCTIONS,KENT COUNTY COUNCIL - LASER,"46,841.55",HEATING ACCOUNT,ELECTRICITY,5902305531,1000012926,
04.06.2018,CENTRAL FUNCTIONS,KENT COUNTY COUNCIL - LASER,"22,631.51",HEATING ACCOUNT,GAS,5902305535,1000012926,
04.06.2018,CENTRAL FUNCTIONS,KENT COUNTY COUNCIL - LASER,"319,512.64",HEATING ACCOUNT,GAS,5902305535,1000012926,
04.06.2018,CHIEF EXECUTIVE,NEILCOTT SPECIAL WORKS LTD,"32,927.70",CAPITAL PS (REGEN),CONSTRUCTION FEES,2102823989,3000000770,
04.06.2018,CHIEF EXECUTIVE,BRAC CONTRACTS,"12,551.63",CAPITAL PS (REGEN),CONSTRUCTION FEES  - EXTERNAL,2102823995,3000002025,
04.06.2018,CHIEF EXECUTIVE,LANDOLT & BROWN,"64,025.25",CAPITAL PS (REGEN),CONSTRUCTION FEES - ARCHITECT,5902305527,1000069588,
04.06.2018,CHIEF EXECUTIVE,STANDAGE & CO LTD,"23,936.64",CAPITAL PS (REGEN),CONSTRUCTION MAIN CONTRACT -CERTIFICATED,5902305524,11223389,
04.06.2018,CHILDREN AND ADULT,MORGAN SINDALL PLC,"7,428.03",CAPITAL PS (EDUCATION),CONSTRUCTION MAIN CONTRACT -CERTIFICATED,2102823987,3000001556,
04.06.2018,CHILDREN'S SERVICES,MONKEY PUZZLE DAY NURSERY STREATHAM,"1,593.75",AGENCY FOSTERING,EXTERNAL AGENCIES AND BODIES,5902305442,1000080140,
04.06.2018,CHILDREN'S SERVICES,YOUNG PEOPLE AT HEART LTD,"3,100.00",AGENCY FOSTERING,EXTERNAL AGENCIES AND BODIES,2102823687,1000076694,
04.06.2018,CHILDREN'S SERVICES,REDACTED PERSONAL DATA,500.00,DISABILITY & HIV,PAYMENTS TO CARERS,REDACTED,REDACTED,
04.06.2018,CHILDREN'S SERVICES,HEBER PRIMARY SCHOOL,"29,837.99",FORMULA ERRORS,SCHOOLS CAPITATION,2102824011,5001000035,
04.06.2018,CHILDREN'S SERVICES,HEBER PRIMARY SCHOOL,"35,209.53",FORMULA ERRORS,SCHOOLS CAPITATION,2102824012,5001000035,
04.06.2018,CHILDREN'S SERVICES,REDACTED PERSONAL DATA,611.52,HOME 2 SCHOOL TRANSPORT,CAR MILEAGE EXPENSES,REDACTED,REDACTED,
04.06.2018,CHILDREN'S SERVICES,REDACTED PERSONAL DATA,831.60,HOME 2 SCHOOL TRANSPORT,CAR MILEAGE EXPENSES,REDACTED,REDACTED,
04.06.2018,CHILDREN'S SERVICES,REDACTED PERSONAL DATA,"1,326.00",HOME 2 SCHOOL TRANSPORT,CAR MILEAGE EXPENSES,REDACTED,REDACTED,
04.06.2018,CHILDREN'S SERVICES,FRESH IDEAS & SOLUTIONS SERVICES CIC,585.30,HOME 2 SCHOOL TRANSPORT,OTHER PAYMENTS FOR CLIENTS,2102824024,1000070832,
04.06.2018,CHILDREN'S SERVICES,REDACTED PERSONAL DATA,256.00,HOME 2 SCHOOL TRANSPORT,OTHER PAYMENTS FOR CLIENTS,REDACTED,REDACTED,
04.06.2018,CHILDREN'S SERVICES,REDACTED PERSONAL DATA,266.00,HOME 2 SCHOOL TRANSPORT,OTHER PAYMENTS FOR CLIENTS,REDACTED,REDACTED,
04.06.2018,CHILDREN'S SERVICES,REDACTED PERSONAL DATA,321.60,HOME 2 SCHOOL TRANSPORT,OTHER PAYMENTS FOR CLIENTS,REDACTED,REDACTED,
04.06.2018,CHILDREN'S SERVICES,REDACTED PERSONAL DATA,350.00,HOME 2 SCHOOL TRANSPORT,OTHER PAYMENTS FOR CLIENTS,REDACTED,REDACTED,
04.06.2018,CHILDREN'S SERVICES,REDACTED PERSONAL DATA,390.00,HOME 2 SCHOOL TRANSPORT,OTHER PAYMENTS FOR CLIENTS,REDACTED,REDACTED,
04.06.2018,CHILDREN'S SERVICES,REDACTED PERSONAL DATA,400.00,HOME 2 SCHOOL TRANSPORT,OTHER PAYMENTS FOR CLIENTS,REDACTED,REDACTED,
04.06.2018,CHILDREN'S SERVICES,REDACTED PERSONAL DATA,404.80,HOME 2 SCHOOL TRANSPORT,OTHER PAYMENTS FOR CLIENTS,REDACTED,REDACTED,
04.06.2018,CHILDREN'S SERVICES,REDACTED PERSONAL DATA,416.00,HOME 2 SCHOOL TRANSPORT,OTHER PAYMENTS FOR CLIENTS,REDACTED,REDACTED,
04.06.2018,CHILDREN'S SERVICES,REDACTED PERSONAL DATA,476.00,HOME 2 SCHOOL TRANSPORT,OTHER PAYMENTS FOR CLIENTS,REDACTED,REDACTED,
04.06.2018,CHILDREN'S SERVICES,REDACTED PERSONAL DATA,504.00,HOME 2 SCHOOL TRANSPORT,OTHER PAYMENTS FOR CLIENTS,REDACTED,REDACTED,
04.06.2018,CHILDREN'S SERVICES,REDACTED PERSONAL DATA,544.00,HOME 2 SCHOOL TRANSPORT,OTHER PAYMENTS FOR CLIENTS,REDACTED,REDACTED,
04.06.2018,CHILDREN'S SERVICES,REDACTED PERSONAL DATA,644.00,HOME 2 SCHOOL TRANSPORT,OTHER PAYMENTS FOR CLIENTS,REDACTED,REDACTED,
04.06.2018,CHILDREN'S SERVICES,REDACTED PERSONAL DATA,700.00,HOME 2 SCHOOL TRANSPORT,OTHER PAYMENTS FOR CLIENTS,REDACTED,REDACTED,
04.06.2018,CHILDREN'S SERVICES,REDACTED PERSONAL DATA,700.00,HOME 2 SCHOOL TRANSPORT,OTHER PAYMENTS FOR CLIENTS,REDACTED,REDACTED,
04.06.2018,CHILDREN'S SERVICES,REDACTED PERSONAL DATA,735.00,HOME 2 SCHOOL TRANSPORT,OTHER PAYMENTS FOR CLIENTS,REDACTED,REDACTED,
04.06.2018,CHILDREN'S SERVICES,REDACTED PERSONAL DATA,748.00,HOME 2 SCHOOL TRANSPORT,OTHER PAYMENTS FOR CLIENTS,REDACTED,REDACTED,
04.06.2018,CHILDREN'S SERVICES,REDACTED PERSONAL DATA,796.00,HOME 2 SCHOOL TRANSPORT,OTHER PAYMENTS FOR CLIENTS,REDACTED,REDACTED,
04.06.2018,CHILDREN'S SERVICES,REDACTED PERSONAL DATA,800.00,HOME 2 SCHOOL TRANSPORT,OTHER PAYMENTS FOR CLIENTS,REDACTED,REDACTED,
04.06.2018,CHILDREN'S SERVICES,REDACTED PERSONAL DATA,850.00,HOME 2 SCHOOL TRANSPORT,OTHER PAYMENTS FOR CLIENTS,REDACTED,REDACTED,
04.06.2018,CHILDREN'S SERVICES,REDACTED PERSONAL DATA,940.00,HOME 2 SCHOOL TRANSPORT,OTHER PAYMENTS FOR CLIENTS,REDACTED,REDACTED,
04.06.2018,CHILDREN'S SERVICES,REDACTED PERSONAL DATA,952.00,HOME 2 SCHOOL TRANSPORT,OTHER PAYMENTS FOR CLIENTS,REDACTED,REDACTED,
04.06.2018,CHILDREN'S SERVICES,REDACTED PERSONAL DATA,"1,401.20",HOME 2 SCHOOL TRANSPORT,OTHER PAYMENTS FOR CLIENTS,REDACTED,REDACTED,
04.06.2018,CHILDREN'S SERVICES,REDACTED PERSONAL DATA,"1,500.00",HOME 2 SCHOOL TRANSPORT,OTHER PAYMENTS FOR CLIENTS,REDACTED,REDACTED,
04.06.2018,CHILDREN'S SERVICES,REDACTED PERSONAL DATA,"1,534.50",HOME 2 SCHOOL TRANSPORT,OTHER PAYMENTS FOR CLIENTS,REDACTED,REDACTED,
04.06.2018,CHILDREN'S SERVICES,REDACTED PERSONAL DATA,"1,616.16",HOME 2 SCHOOL TRANSPORT,OTHER PAYMENTS FOR CLIENTS,REDACTED,REDACTED,
04.06.2018,CHILDREN'S SERVICES,REDACTED PERSONAL DATA,"2,508.00",HOME 2 SCHOOL TRANSPORT,OTHER PAYMENTS FOR CLIENTS,REDACTED,REDACTED,
04.06.2018,CHILDREN'S SERVICES,REDACTED PERSONAL DATA,"2,565.20",HOME 2 SCHOOL TRANSPORT,OTHER PAYMENTS FOR CLIENTS,REDACTED,REDACTED,
04.06.2018,CHILDREN'S SERVICES,REDACTED PERSONAL DATA,"3,359.60",HOME 2 SCHOOL TRANSPORT,OTHER PAYMENTS FOR CLIENTS,REDACTED,REDACTED,
04.06.2018,CHILDREN'S SERVICES,REDACTED PERSONAL DATA,"6,160.00",HOME 2 SCHOOL TRANSPORT,OTHER PAYMENTS FOR CLIENTS,REDACTED,REDACTED,
04.06.2018,CHILDREN'S SERVICES,ST JOSEPHS RC PRIMARY SCHOOL,"2,782.00",MATERNITY COVER,SCHOOLS CAPITATION,2102824010,5001000077,
04.06.2018,CHILDREN'S SERVICES,AMBITIOUS ABOUT AUTISM,311.67,PUPIL PREMIUM,"SCHOOLS CAPITATION, STANDARDS FUND",2102824002,1000035784,
04.06.2018,CHILDREN'S SERVICES,AMBITIOUS ABOUT AUTISM,311.67,PUPIL PREMIUM,"SCHOOLS CAPITATION, STANDARDS FUND",2102824003,1000035784,
04.06.2018,CHILDREN'S SERVICES,AMBITIOUS ABOUT AUTISM,311.67,PUPIL PREMIUM,"SCHOOLS CAPITATION, STANDARDS FUND",2102824005,1000035784,
04.06.2018,CHILDREN'S SERVICES,AMBITIOUS ABOUT AUTISM,311.67,PUPIL PREMIUM,"SCHOOLS CAPITATION, STANDARDS FUND",2102824006,1000035784,
04.06.2018,CHILDREN'S SERVICES,AMBITIOUS ABOUT AUTISM,440.00,PUPIL PREMIUM,"SCHOOLS CAPITATION, STANDARDS FUND",2102824004,1000035784,
04.06.2018,CHILDREN'S SERVICES,AMBITIOUS ABOUT AUTISM,440.00,PUPIL PREMIUM,"SCHOOLS CAPITATION, STANDARDS FUND",2102824007,1000035784,
04.06.2018,CHILDREN'S SERVICES,AMBITIOUS ABOUT AUTISM,440.00,PUPIL PREMIUM,"SCHOOLS CAPITATION, STANDARDS FUND",2102824008,1000035784,
04.06.2018,CHILDREN'S SERVICES,AMBITIOUS ABOUT AUTISM,"1,063.34",PUPIL PREMIUM,"SCHOOLS CAPITATION, STANDARDS FUND",2102824009,1000035784,
04.06.2018,CHILDREN'S SERVICES,SILVER BIRCH CARE LTD,"3,653.57",S24 CLA,EXTERNAL AGENCIES AND BODIES,2102823689,1000076525,
04.06.2018,CHILDREN'S SERVICES,REDACTED PERSONAL DATA,750.00,S24 CLA,OTHER PAYMENTS FOR CLIENTS,REDACTED,REDACTED,
04.06.2018,CHILDREN'S SERVICES,SILVER BIRCH CARE LTD,400.00,SEMI INDEPENDENT,EXTERNAL AGENCIES AND BODIES,2102823695,1000076525,
04.06.2018,CHILDREN'S SERVICES,SILVER BIRCH CARE LTD,"3,100.00",SEMI INDEPENDENT,EXTERNAL AGENCIES AND BODIES,2102823691,1000076525,
04.06.2018,CHILDREN'S SERVICES,SILVER BIRCH CARE LTD,"12,581.57",SEMI INDEPENDENT,EXTERNAL AGENCIES AND BODIES,2102823694,1000076525,
04.06.2018,CHILDREN'S SERVICES,SILVER BIRCH CARE LTD,"21,636.45",SEMI INDEPENDENT,EXTERNAL AGENCIES AND BODIES,2102823693,1000076525,
04.06.2018,CHILDREN'S SERVICES,SILVER BIRCH CARE LTD,265.71,SEMI INDEPENDENT,OTHER PAYMENTS FOR CLIENTS,2102823688,1000076525,
04.06.2018,CHILDREN'S SERVICES,SILVER BIRCH CARE LTD,265.71,SEMI INDEPENDENT,OTHER PAYMENTS FOR CLIENTS,2102823690,1000076525,
04.06.2018,CHILDREN'S SERVICES,SOUTH OF THE RIVER INVESTMENTS LTD,"3,618.00",TEMPORARY ACCOMMODATION,EXTERNAL AGENCIES AND BODIES,5902305528,1000073638,
04.06.2018,CHILDREN'S SERVICES,WIFI SPARK LTD,999.37,THOMAS CALTON CENTRE,COMPUTER MAINTENANCE,5902305540,1000069461,
04.06.2018,CHILDREN'S SERVICES,WIFI SPARK LTD,"2,984.19",THOMAS CALTON CENTRE,COMPUTER MAINTENANCE,5902305540,1000069461,
04.06.2018,CHILDREN'S SERVICES,REDACTED PERSONAL DATA,"1,750.00",UNIVERSITY SUPPORT,OTHER PAYMENTS FOR CLIENTS,REDACTED,REDACTED,
04.06.2018,COMMUNITIES,PROFAD CARE AGENCY,"4,054.26",NO RECOURSE TO PUBLIC FUNDS,NATIONAL ASSISTANCE,2102823761,1000079032,
04.06.2018,CUSTOMER EXPERIENCE HGF,IMPERIAL COLLEGE PROJECTS LTD,272.00,CORONER'S,PROFESSIONAL FEES,5902305533,1000080106,
04.06.2018,CUSTOMER EXPERIENCE HGF,IMPERIAL COLLEGE PROJECTS LTD,276.00,CORONER'S,PROFESSIONAL FEES,5902305534,1000080106,
04.06.2018,CUSTOMER EXPERIENCE HGF,TRANSPORT TRADING LTD,"2,953,499.54",FREEDOM PASS,CONCESSIONARY FARES,5902305484,1000019757,
04.06.2018,CUSTOMER EXPERIENCE HGF,GEORGINA RANKINE,729.65,PSL (SOCIAL LETTINGS),EXTERNAL AGENCIES AND BODIES,2102822310,1000081150,
04.06.2018,CUSTOMER EXPERIENCE HGF,GEORGINA RANKINE,"3,000.00",PSL (SOCIAL LETTINGS),EXTERNAL AGENCIES AND BODIES,2102822311,1000081150,
04.06.2018,ENVIRONMENT AND LEISURE,STANBURY BUILDING SERVICES LTD,595.00,CAPITAL PS (LEISURE),CONST'N MAIN CONTRACT - NON CERTIFICATED,2102823993,3000001967,
04.06.2018,ENVIRONMENT DIRECTORATE,LEX AUTOLEASE,-717.30,CAR LEASING CTRL A/C,VEHICLE LEASING CHARGES,5902303824,1000069462,
04.06.2018,ENVIRONMENT DIRECTORATE,LEX AUTOLEASE,-628.70,CAR LEASING CTRL A/C,VEHICLE LEASING CHARGES,5902305475,1000069462,
04.06.2018,ENVIRONMENT DIRECTORATE,LEX AUTOLEASE,-551.65,CAR LEASING CTRL A/C,VEHICLE LEASING CHARGES,5902304612,1000069462,
04.06.2018,ENVIRONMENT DIRECTORATE,LEX AUTOLEASE,-520.60,CAR LEASING CTRL A/C,VEHICLE LEASING CHARGES,5902305476,1000069462,
04.06.2018,ENVIRONMENT DIRECTORATE,LEX AUTOLEASE,-371.80,CAR LEASING CTRL A/C,VEHICLE LEASING CHARGES,5902303817,1000069462,
04.06.2018,ENVIRONMENT DIRECTORATE,VOLKSWAGEN FINANCIAL SERVICES (UK),465.00,CAR LEASING CTRL A/C,VEHICLE LEASING CHARGES,5902305518,1000079245,
04.06.2018,ENVIRONMENT DIRECTORATE,VOLKSWAGEN FINANCIAL SERVICES (UK),495.00,CAR LEASING CTRL A/C,VEHICLE LEASING CHARGES,5902305518,1000079245,
04.06.2018,ENVIRONMENT DIRECTORATE,HITACHI CAPITAL VEHICLE SOLN LTD,"2,804.71",CAR LEASING CTRL A/C,VEHICLE LEASING CHARGES,5902305454,1000007619,
04.06.2018,ENVIRONMENT DIRECTORATE,HITACHI CAPITAL VEHICLE SOLN LTD,"2,858.37",CAR LEASING CTRL A/C,VEHICLE LEASING CHARGES,5902305454,1000007619,
04.06.2018,ENVIRONMENT DIRECTORATE,LEX AUTOLEASE,"3,156.05",CAR LEASING CTRL A/C,VEHICLE LEASING CHARGES,5902305473,1000069462,
04.06.2018,ENVIRONMENT DIRECTORATE,LEX AUTOLEASE,"3,242.63",CAR LEASING CTRL A/C,VEHICLE LEASING CHARGES,5902305473,1000069462,
04.06.2018,ENVIRONMENT DIRECTORATE,LEX AUTOLEASE,"23,006.57",CAR LEASING CTRL A/C,VEHICLE LEASING CHARGES,5902305474,1000069462,
04.06.2018,ENVIRONMENT DIRECTORATE,LEX AUTOLEASE,"23,476.63",CAR LEASING CTRL A/C,VEHICLE LEASING CHARGES,5902305474,1000069462,
04.06.2018,ENVIRONMENT DIRECTORATE,LEX AUTOLEASE,"6,584.50",COMMERCIAL VEH CTRL A/C,HIRED VEHICLES,5902305469,1000069462,
04.06.2018,ENVIRONMENT DIRECTORATE,R J MOTORS LIMITED,575.43,COMMERCIAL VEH CTRL A/C,VEHICLE REPAIRS & MAINTENANCE,5902305544,1000047106,
04.06.2018,ENVIRONMENT DIRECTORATE,R J MOTORS LIMITED,"1,331.62",COMMERCIAL VEH CTRL A/C,VEHICLE REPAIRS & MAINTENANCE,5902305539,1000047106,
04.06.2018,ENVIRONMENT DIRECTORATE,R J MOTORS LIMITED,"1,539.20",COMMERCIAL VEH CTRL A/C,VEHICLE REPAIRS & MAINTENANCE,5902305546,1000047106,
04.06.2018,ENVIRONMENT DIRECTORATE,R J MOTORS LIMITED,290.77,FLEET INSURANCE WORKS,TRANSPORT INSURANCE COSTS,5902305537,1000047106,
04.06.2018,ENVIRONMENT DIRECTORATE,CONWAY AECOM LTD,"118,047.49",HIGHWAY MAINTENANCE OVERHEADS,HIGHWAYS TERM CONTRACT,2102823682,3000001595,
04.06.2018,ENVIRONMENT DIRECTORATE,INSPECTORATE LTD,"2,750.00",LIGHTING RECOVERABLE WORKS,SOUTHWARK DIRECT CHARGES,5902304772,1000078730,
04.06.2018,ENVIRONMENT DIRECTORATE,COMPLETE TREE CARE LTD,"3,220.70",NON HOUSING GROUNDS,AGENCY STAFF,5902305501,1000041410,
04.06.2018,ENVIRONMENT DIRECTORATE,GREEN PLANT UK LTD,"2,333.51",NON HOUSING GROUNDS,MATERIALS,5902305503,1000073151,
04.06.2018,ENVIRONMENT DIRECTORATE,EDMUNDSON ELECTRICAL LTD,481.54,PUBLIC LIGHTING,MATERIALS,5902305447,1000066568,
04.06.2018,ENVIRONMENT DIRECTORATE,EDMUNDSON ELECTRICAL LTD,963.08,PUBLIC LIGHTING,MATERIALS,5902305448,1000066568,
04.06.2018,ENVIRONMENT DIRECTORATE,EDMUNDSON ELECTRICAL LTD,"2,407.70",PUBLIC LIGHTING,MATERIALS,5902305453,1000066568,
04.06.2018,ENVIRONMENT DIRECTORATE,EDMUNDSON ELECTRICAL LTD,"3,852.32",PUBLIC LIGHTING,MATERIALS,5902305452,1000066568,
04.06.2018,ENVIRONMENT DIRECTORATE,WSM SOLICITORS LLP,"-5,500.00",SECTION 278 & 38,MARKETING & PUBLICITY SERVICES,5902305621,1000075036,
04.06.2018,ENVIRONMENT DIRECTORATE,WSM SOLICITORS LLP,"5,500.00",SECTION 278 & 38,MARKETING & PUBLICITY SERVICES,5902305620,1000075036,
04.06.2018,ENVIRONMENT DIRECTORATE,ALTIA SOLUTIONS LTD,675.00,TRADING STANDARDS CONFISCATION FUND,SUBSCRIPTIONS,5902305178,1000060360,
04.06.2018,F & C S EXCLUDING CORPORATE BUDGETS,NORTHGATE PUBLIC SERVICES (UK) LTD,303.16,ADMINISTRATIVE SUPPORT,POSTAGES,5902305532,1000037405,
04.06.2018,F & C S EXCLUDING CORPORATE BUDGETS,CAPITA BUSINESS SERVICES LTD,"30,890.48",INCOME MANAGEMENT,COMMS & COMPUTING CONTRACT CHARGES,5902305464,1000006291,
04.06.2018,HOUSING GENERAL FUND,STANNAH LIFT SERVICES LTD,"2,960.00",CAPITAL PS (HOUSING GF),CAPITAL GRANTS,5902305519,1063595,
04.06.2018,HOUSING HRA,L H BRIDGE LTD,"1,150.00",CAPITAL PS (HRA),CONST'N MAIN CONTRACT - NON CERTIFICATED,2102823985,3000001167,
04.06.2018,HOUSING HRA,MORGAN SINDALL PLC,"288,854.00",CAPITAL PS (HRA),CONSTR'N SUB CONTRACT - NON CERTIFICATED,2102823988,3000001556,
04.06.2018,HOUSING HRA,PLAN LONDON LTD,700.00,CAPITAL PS (HRA),CONSTRUCTION FEES  - EXTERNAL,5902305509,1000056065,
04.06.2018,HOUSING HRA,SALTASH ENTERPRISES LTD,"75,341.79",CAPITAL PS (HRA),CONSTRUCTION FEES  - EXTERNAL,2102823991,4013605,
04.06.2018,HOUSING HRA,THOMAS SINDEN CONSTRUCTION,"1,000.00",CAPITAL PS (HRA),CONSTRUCTION MAIN CONTRACT -CERTIFICATED,2102823994,3000000605,
04.06.2018,HOUSING HRA,THOMAS SINDEN CONSTRUCTION,"7,921.22",CAPITAL PS (HRA),CONSTRUCTION MAIN CONTRACT -CERTIFICATED,2102823994,3000000605,
04.06.2018,HOUSING HRA,DOWNTOWN LEISURE LIMITED,"24,561.12",CAPITAL PS (HRA),CONSTRUCTION MAIN CONTRACT -CERTIFICATED,2102823679,3000002059,
04.06.2018,HOUSING HRA,DOWNTOWN LEISURE LIMITED,"111,601.14",CAPITAL PS (HRA),CONSTRUCTION MAIN CONTRACT -CERTIFICATED,2102823678,3000002059,
04.06.2018,HOUSING HRA,DURKAN LTD,"135,534.83",CAPITAL PS (HRA),CONSTRUCTION MAIN CONTRACT -CERTIFICATED,2102823683,3000000960,
04.06.2018,HOUSING HRA,MORGAN SINDALL PLC,"222,338.00",CAPITAL PS (HRA),CONSTRUCTION MAIN CONTRACT -CERTIFICATED,2102823986,3000001556,
04.06.2018,HOUSING HRA,ENGIE REGENERATION (APOLLO) LTD,"351,617.44",CAPITAL PS (HRA),CONSTRUCTION MAIN CONTRACT -CERTIFICATED,2102823684,4000449,
04.06.2018,HOUSING STRATEGY AND OPTIONS,REDACTED PERSONAL DATA,995.10,HOMELESS PROJECTS,GRANTS,REDACTED,REDACTED,
04.06.2018,HOUSING STRATEGY AND OPTIONS,REDACTED PERSONAL DATA,"1,261.20",HOMELESS PROJECTS,GRANTS,REDACTED,REDACTED,
04.06.2018,HOUSING STRATEGY AND OPTIONS,REDACTED PERSONAL DATA,"1,261.20",HOMELESS PROJECTS,GRANTS,REDACTED,REDACTED,
04.06.2018,LEISURE DIRECTORATE,BOLT & HEEKS LIMITED,"2,505.44",ACCOMODATION,BUILDING R&M,2102823521,3000001307,
04.06.2018,LEISURE DIRECTORATE,GLS EDUCATIONAL SUPPLIES LTD,771.38,BURGESS SPORTS CENTRE,OTHER CLEANING,5902305521,1318282,
04.06.2018,LEISURE DIRECTORATE,ELITE FIRE PROTECTION LTD,"1,093.00",CREMATORIUM,BUILDING R&M,5902305529,1000080269,
04.06.2018,LEISURE DIRECTORATE,ARGOS BUSINESS SOLUTIONS LTD,303.99,CREMATORIUM,OTHER R&M,5902305483,1000001734,
04.06.2018,LEISURE DIRECTORATE,SHARPE PRITCHARD LLP,840.00,FACILITIES MANAGEMENT,PAYMENTS FOR LEGAL SERVICES,5902305463,1790085,
04.06.2018,LEISURE DIRECTORATE,WIFI SPARK LTD,800.00,IT DEVELOPMENT,COMMS & COMPUTING CONTRACT CHARGES,5902305542,1000069461,
04.06.2018,LEISURE DIRECTORATE,WIFI SPARK LTD,"5,201.11",IT DEVELOPMENT,COMMS & COMPUTING CONTRACT CHARGES,5902305540,1000069461,
04.06.2018,LEISURE DIRECTORATE,WIFI SPARK LTD,"23,153.29",IT DEVELOPMENT,COMMS & COMPUTING CONTRACT CHARGES,5902305540,1000069461,
04.06.2018,LEISURE DIRECTORATE,ASKEWS & HOLTS LIBRARY SERVICES LTD,413.83,STOCK SERVICES,BOOKS & PUBLICATIONS,5902305458,1494168,
04.06.2018,LEISURE DIRECTORATE,ASKEWS & HOLTS LIBRARY SERVICES LTD,945.97,STOCK SERVICES,BOOKS & PUBLICATIONS,5902305457,1494168,
04.06.2018,MODERNISATION HGF,LINDA COBB,500.00,ADULTS MULTI-AGENCY SAFEGUARDING TRNG,TRAINING,5902305545,1000029191,
04.06.2018,MODERNISATION HGF,SYED & QUINN LTD,500.00,ADULTS MULTI-AGENCY SAFEGUARDING TRNG,TRAINING,5902305499,1000029554,
04.06.2018,MODERNISATION HGF,SIGNIS LTD,500.00,CSW - PROFESSIONAL DEVELOPMENT,TRAINING,5902305504,1000075765,
04.06.2018,MODERNISATION HGF,SIGNIS LTD,500.00,CSW - PROFESSIONAL DEVELOPMENT,TRAINING,5902305505,1000075765,
04.06.2018,MODERNISATION HGF,SIGNIS LTD,500.00,CSW - PROFESSIONAL DEVELOPMENT,TRAINING,5902305507,1000075765,
04.06.2018,MODERNISATION HGF,SIGNIS LTD,500.00,CSW - PROFESSIONAL DEVELOPMENT,TRAINING,5902305508,1000075765,
04.06.2018,MODERNISATION HGF,TALKING LIFE LTD,995.00,CSW - PROFESSIONAL DEVELOPMENT,TRAINING,5902305506,1000071049,
04.06.2018,MODERNISATION HGF,OSBORNE THOMAS LTD,350.00,SUPPORT SERVICES,TRAINING,5902305543,1000079094,
04.06.2018,PECKHAM AND NUNHEAD COMMUNITY COUNCIL,SOUTHWARK COUNCIL CLEANING SERVICES,"1,325.00",,GRANT,CHEQUE PAYMENT,CHEQUE PAYMENT,
04.06.2018,PECKHAM AND NUNHEAD COMMUNITY COUNCIL,SOUTHWARK COUNCIL CLEANING SERVICES,"1,981.00",,GRANT,CHEQUE PAYMENT,CHEQUE PAYMENT,
04.06.2018,PLANNING AND TRANSPORT,HAYMARKET MEDIA GROUP LTD,"2,460.00",DEVELOPMENT CONTROL ADMINSTRATION,SOFTWARE,5902302948,1000066122,
04.06.2018,PLANNING AND TRANSPORT,FUTURE OF LONDON 2011 LTD,"4,950.00",HEAD OF PLANNING AND TRANSPORT,SUBSCRIPTIONS,5902305491,1000066868,
04.06.2018,PROPERTY SERVICES,STANBURY BUILDING SERVICES LTD,"3,270.00",CPHA SURPLUS,BUILDING R&M,5902305510,1000078207,
04.06.2018,REGENERATION,KERRY LEMON LTD,"1,000.00",MASTER PLAN-H/WAY & TRANS INTERCHANGE,PROFESSIONAL FEES,5902305523,1000080930,
04.06.2018,RESIDENT SERVICES,S A PROPERTY MANAGEMENT LTD,"3,079.00",TA PLACEMENTS,EXTERNAL AGENCIES AND BODIES,5902305450,1000075764,
04.06.2018,RESIDENT SERVICES,S A PROPERTY MANAGEMENT LTD,"3,193.00",TA PLACEMENTS,EXTERNAL AGENCIES AND BODIES,5902305451,1000075764,
04.06.2018,STRATEGIC FINANCING BUDGETS,JOHNSON AUSTIN PARTNERSHIP LLP,"1,000.00",PROPERTY RELATED INSURANCE,PROFESSIONAL FEES,5902305459,1000040202,
05.06.2018,ADULT SOCIAL CARE,INTERSERVE (FACILITIES MANAGEMENT),438.38,100 GROSVENORTERRACE,BUILDING R&M,2102824587,3000000166,
05.06.2018,ADULT SOCIAL CARE,FOUNTAIN CARE LTD,329.40,APPOINTEESHIPS,OTHER PAYMENTS FOR CLIENTS,2102824529,1000066815,
05.06.2018,ADULT SOCIAL CARE,REDACTED PERSONAL DATA,343.60,APPOINTEESHIPS,OTHER PAYMENTS FOR CLIENTS,REDACTED,REDACTED,
05.06.2018,ADULT SOCIAL CARE,HYDE HOUSING ASSOCIATION LTD,986.91,EXTRA CARE CONTRACT,RENTS,5902305696,1000013980,
05.06.2018,ADULT SOCIAL CARE,HYDE HOUSING ASSOCIATION LTD,986.92,EXTRA CARE CONTRACT,RENTS,5902305699,1000013980,
05.06.2018,ADULT SOCIAL CARE,HEALTHCARE & TRANSPORT SERVICES,306.00,LD LTS 18-64,CLIENT TRANSPORT,2102824270,1000042743,
05.06.2018,ADULT SOCIAL CARE,HEALTHCARE & TRANSPORT SERVICES,306.00,LD LTS 18-64,CLIENT TRANSPORT,2102824271,1000042743,
05.06.2018,ADULT SOCIAL CARE,HEALTHCARE & TRANSPORT SERVICES,306.00,LD LTS 18-64,CLIENT TRANSPORT,2102824277,1000042743,
05.06.2018,ADULT SOCIAL CARE,ACCESS MOBILITY TRANSPORT LTD,"2,284.80",LD LTS 18-64,CLIENT TRANSPORT,2102824314,1000074637,
05.06.2018,ADULT SOCIAL CARE,ACT TOO LTD,450.00,LD LTS 18-64,DAYCARE,2102824376,1000053657,
05.06.2018,ADULT SOCIAL CARE,INTERSERVE HEALTHCARE,430.00,LD LTS 18-64,HOMECARE - SPOT,2102824274,1000049612,
05.06.2018,ADULT SOCIAL CARE,INTERSERVE HEALTHCARE,630.39,LD LTS 18-64,HOMECARE - SPOT,2102824284,1000049612,
05.06.2018,ADULT SOCIAL CARE,INTERSERVE HEALTHCARE,640.98,LD LTS 18-64,HOMECARE - SPOT,2102824286,1000049612,
05.06.2018,ADULT SOCIAL CARE,INTERSERVE HEALTHCARE,691.89,LD LTS 18-64,HOMECARE - SPOT,2102824262,1000049612,
05.06.2018,ADULT SOCIAL CARE,HEALTH PERSONNEL LTD,"4,595.00",LD LTS 18-64,RESIDENTIAL CARE,2102824361,1000076377,
05.06.2018,ADULT SOCIAL CARE,CHOICE SUPPORT,293.92,LD LTS 18-64,SUPPORTED LIVING,2102824317,1104183,
05.06.2018,ADULT SOCIAL CARE,CHOICE SUPPORT,293.92,LD LTS 18-64,SUPPORTED LIVING,2102824328,1104183,
05.06.2018,ADULT SOCIAL CARE,CHOICE SUPPORT,330.66,LD LTS 18-64,SUPPORTED LIVING,2102824331,1104183,
05.06.2018,ADULT SOCIAL CARE,CHOICE SUPPORT,367.40,LD LTS 18-64,SUPPORTED LIVING,2102824321,1104183,
05.06.2018,ADULT SOCIAL CARE,CHOICE SUPPORT,367.40,LD LTS 18-64,SUPPORTED LIVING,2102824339,1104183,
05.06.2018,ADULT SOCIAL CARE,CHOICE SUPPORT,440.88,LD LTS 18-64,SUPPORTED LIVING,2102824324,1104183,
05.06.2018,ADULT SOCIAL CARE,CHOICE SUPPORT,514.36,LD LTS 18-64,SUPPORTED LIVING,2102824316,1104183,
05.06.2018,ADULT SOCIAL CARE,CHOICE SUPPORT,514.36,LD LTS 18-64,SUPPORTED LIVING,2102824322,1104183,
05.06.2018,ADULT SOCIAL CARE,CHOICE SUPPORT,587.84,LD LTS 18-64,SUPPORTED LIVING,2102824335,1104183,
05.06.2018,ADULT SOCIAL CARE,CHOICE SUPPORT,661.32,LD LTS 18-64,SUPPORTED LIVING,2102824318,1104183,
05.06.2018,ADULT SOCIAL CARE,ROYAL ASSOCIATION FOR DEAF PEOPLE,720.00,LD LTS 18-64,SUPPORTED LIVING,2102824378,1000062283,
05.06.2018,ADULT SOCIAL CARE,ROYAL ASSOCIATION FOR DEAF PEOPLE,720.00,LD LTS 18-64,SUPPORTED LIVING,2102824379,1000062283,
05.06.2018,ADULT SOCIAL CARE,ROYAL ASSOCIATION FOR DEAF PEOPLE,720.00,LD LTS 18-64,SUPPORTED LIVING,2102824380,1000062283,
05.06.2018,ADULT SOCIAL CARE,CHOICE SUPPORT,955.24,LD LTS 18-64,SUPPORTED LIVING,2102824326,1104183,
05.06.2018,ADULT SOCIAL CARE,CHOICE SUPPORT,"1,102.20",LD LTS 18-64,SUPPORTED LIVING,2102824327,1104183,
05.06.2018,ADULT SOCIAL CARE,BURGESS AUTISTIC TRUST,"3,120.00",LD LTS 18-64,SUPPORTED LIVING,2102824293,1000044550,
05.06.2018,ADULT SOCIAL CARE,CHOICE SUPPORT,440.88,LD LTS 65+,SUPPORTED LIVING,2102824330,1104183,
05.06.2018,ADULT SOCIAL CARE,CHOICE SUPPORT,"6,935.52",LD LTS 65+,SUPPORTED LIVING,2102824320,1104183,
05.06.2018,ADULT SOCIAL CARE,LONDON CARE LTD,655.80,MEM LTS 65+,HOMECARE - C&V,2102824167,1000003398,
05.06.2018,ADULT SOCIAL CARE,LONDON CARE LTD,676.63,MEM LTS 65+,HOMECARE - C&V,2102824224,1000003398,
05.06.2018,ADULT SOCIAL CARE,LONDON CARE LTD,681.07,MEM LTS 65+,HOMECARE - C&V,2102824215,1000003398,
05.06.2018,ADULT SOCIAL CARE,MIHOMECARE LTD,868.04,MEM LTS 65+,HOMECARE - C&V,2102824345,1000042594,
05.06.2018,ADULT SOCIAL CARE,MIHOMECARE LTD,919.08,MEM LTS 65+,HOMECARE - C&V,2102824343,1000042594,
05.06.2018,ADULT SOCIAL CARE,MIHOMECARE LTD,919.08,MEM LTS 65+,HOMECARE - C&V,2102824353,1000042594,
05.06.2018,ADULT SOCIAL CARE,HUMBLE HEALTH CARE LTD,"2,268.00",MEM LTS 65+,HOMECARE - C&V,2102824294,1000079270,
05.06.2018,ADULT SOCIAL CARE,HUMBLE HEALTH CARE LTD,"1,701.00",MEM LTS 65+,HOMECARE - SPOT,2102824287,1000079270,
05.06.2018,ADULT SOCIAL CARE,WESTMINSTER HOMECARE LTD,349.50,MH LTS 18-64,HOMECARE - SPOT,2102824422,1000075287,
05.06.2018,ADULT SOCIAL CARE,LIFECARE CONSULTING LTD,407.79,MH LTS 18-64,HOMECARE - SPOT,2102824291,1000061613,
05.06.2018,ADULT SOCIAL CARE,WESTMINSTER HOMECARE LTD,726.96,MH LTS 18-64,HOMECARE - SPOT,2102824385,1000075287,
05.06.2018,ADULT SOCIAL CARE,HOPE WORLDWIDE,"1,555.62",MH LTS 18-64,PLACEMENTS - REHAB,2102824358,1000047835,
05.06.2018,ADULT SOCIAL CARE,LONDON CARE LTD,891.28,MH LTS 65+,HOMECARE - C&V,2102824228,1000003398,
05.06.2018,ADULT SOCIAL CARE,WESTMINSTER HOMECARE LTD,377.52,MH LTS 65+,HOMECARE - SPOT,2102824404,1000075287,
05.06.2018,ADULT SOCIAL CARE,WESTMINSTER HOMECARE LTD,391.44,MH LTS 65+,HOMECARE - SPOT,2102824421,1000075287,
05.06.2018,ADULT SOCIAL CARE,WESTMINSTER HOMECARE LTD,531.24,MH LTS 65+,HOMECARE - SPOT,2102824410,1000075287,
05.06.2018,ADULT SOCIAL CARE,WESTMINSTER HOMECARE LTD,559.20,MH LTS 65+,HOMECARE - SPOT,2102824388,1000075287,
05.06.2018,ADULT SOCIAL CARE,PHOENIX HEALTHCARE & RECRUITMENT,339.36,PHY LTS 18-64,DAYCARE,2102824315,1000065636,
05.06.2018,ADULT SOCIAL CARE,PHOENIX HEALTHCARE & RECRUITMENT,389.31,PHY LTS 18-64,DAYCARE,2102824311,1000065636,
05.06.2018,ADULT SOCIAL CARE,PHOENIX HEALTHCARE & RECRUITMENT,391.36,PHY LTS 18-64,DAYCARE,2102824372,1000065636,
05.06.2018,ADULT SOCIAL CARE,LONDON CARE LTD,268.96,PHY LTS 18-64,HOMECARE - C&V,2102824244,1000003398,
05.06.2018,ADULT SOCIAL CARE,LONDON CARE LTD,269.08,PHY LTS 18-64,HOMECARE - C&V,2102824143,1000003398,
05.06.2018,ADULT SOCIAL CARE,WESTMINSTER HOMECARE LTD,328.53,PHY LTS 18-64,HOMECARE - C&V,2102824392,1000075287,
05.06.2018,ADULT SOCIAL CARE,LONDON CARE LTD,340.47,PHY LTS 18-64,HOMECARE - C&V,2102824191,1000003398,
05.06.2018,ADULT SOCIAL CARE,LONDON CARE LTD,353.08,PHY LTS 18-64,HOMECARE - C&V,2102824205,1000003398,
05.06.2018,ADULT SOCIAL CARE,LONDON CARE LTD,369.92,PHY LTS 18-64,HOMECARE - C&V,2102824123,1000003398,
05.06.2018,ADULT SOCIAL CARE,LONDON CARE LTD,432.93,PHY LTS 18-64,HOMECARE - C&V,2102824229,1000003398,
05.06.2018,ADULT SOCIAL CARE,LONDON CARE LTD,470.68,PHY LTS 18-64,HOMECARE - C&V,2102824248,1000003398,
05.06.2018,ADULT SOCIAL CARE,LONDON CARE LTD,521.18,PHY LTS 18-64,HOMECARE - C&V,2102824253,1000003398,
05.06.2018,ADULT SOCIAL CARE,LONDON CARE LTD,537.92,PHY LTS 18-64,HOMECARE - C&V,2102824176,1000003398,
05.06.2018,ADULT SOCIAL CARE,LONDON CARE LTD,655.80,PHY LTS 18-64,HOMECARE - C&V,2102824246,1000003398,
05.06.2018,ADULT SOCIAL CARE,LONDON CARE LTD,663.08,PHY LTS 18-64,HOMECARE - C&V,2102824125,1000003398,
05.06.2018,ADULT SOCIAL CARE,LONDON CARE LTD,706.16,PHY LTS 18-64,HOMECARE - C&V,2102824131,1000003398,
05.06.2018,ADULT SOCIAL CARE,LONDON CARE LTD,891.28,PHY LTS 18-64,HOMECARE - C&V,2102824188,1000003398,
05.06.2018,ADULT SOCIAL CARE,MIHOMECARE LTD,"1,055.24",PHY LTS 18-64,HOMECARE - C&V,2102824352,1000042594,
05.06.2018,ADULT SOCIAL CARE,LONDON CARE LTD,"1,126.76",PHY LTS 18-64,HOMECARE - C&V,2102824172,1000003398,
05.06.2018,ADULT SOCIAL CARE,LONDON CARE LTD,"1,416.81",PHY LTS 18-64,HOMECARE - C&V,2102824238,1000003398,
05.06.2018,ADULT SOCIAL CARE,LONDON CARE LTD,"1,550.97",PHY LTS 18-64,HOMECARE - C&V,2102824169,1000003398,
05.06.2018,ADULT SOCIAL CARE,LONDON CARE LTD,"1,778.31",PHY LTS 18-64,HOMECARE - C&V,2102824194,1000003398,
05.06.2018,ADULT SOCIAL CARE,LONDON CARE LTD,"2,169.46",PHY LTS 18-64,HOMECARE - C&V,2102824195,1000003398,
05.06.2018,ADULT SOCIAL CARE,LONDON CARE LTD,"2,471.63",PHY LTS 18-64,HOMECARE - C&V,2102824196,1000003398,
05.06.2018,ADULT SOCIAL CARE,LIFECARE CONSULTING LTD,267.92,PHY LTS 18-64,HOMECARE - SPOT,2102824265,1000061613,
05.06.2018,ADULT SOCIAL CARE,METRO HOMECARE LTD,272.35,PHY LTS 18-64,HOMECARE - SPOT,2102824366,1000070695,
05.06.2018,ADULT SOCIAL CARE,LIFECARE CONSULTING LTD,275.80,PHY LTS 18-64,HOMECARE - SPOT,2102824299,1000061613,
05.06.2018,ADULT SOCIAL CARE,WESTMINSTER HOMECARE LTD,279.60,PHY LTS 18-64,HOMECARE - SPOT,2102824396,1000075287,
05.06.2018,ADULT SOCIAL CARE,LONDON CARE LTD,315.22,PHY LTS 18-64,HOMECARE - SPOT,2102824242,1000003398,
05.06.2018,ADULT SOCIAL CARE,LIFECARE CONSULTING LTD,317.17,PHY LTS 18-64,HOMECARE - SPOT,2102824267,1000061613,
05.06.2018,ADULT SOCIAL CARE,WESTMINSTER HOMECARE LTD,388.08,PHY LTS 18-64,HOMECARE - SPOT,2102824424,1000075287,
05.06.2018,ADULT SOCIAL CARE,WESTMINSTER HOMECARE LTD,440.37,PHY LTS 18-64,HOMECARE - SPOT,2102824382,1000075287,
05.06.2018,ADULT SOCIAL CARE,LIFECARE CONSULTING LTD,441.78,PHY LTS 18-64,HOMECARE - SPOT,2102824283,1000061613,
05.06.2018,ADULT SOCIAL CARE,HUMBLE HEALTH CARE LTD,459.00,PHY LTS 18-64,HOMECARE - SPOT,2102824300,1000079270,
05.06.2018,ADULT SOCIAL CARE,WESTMINSTER HOMECARE LTD,475.32,PHY LTS 18-64,HOMECARE - SPOT,2102824432,1000075287,
05.06.2018,ADULT SOCIAL CARE,WESTMINSTER HOMECARE LTD,531.24,PHY LTS 18-64,HOMECARE - SPOT,2102824419,1000075287,
05.06.2018,ADULT SOCIAL CARE,WESTMINSTER HOMECARE LTD,559.20,PHY LTS 18-64,HOMECARE - SPOT,2102824425,1000075287,
05.06.2018,ADULT SOCIAL CARE,HUMBLE HEALTH CARE LTD,580.52,PHY LTS 18-64,HOMECARE - SPOT,2102824282,1000079270,
05.06.2018,ADULT SOCIAL CARE,LIFECARE CONSULTING LTD,592.98,PHY LTS 18-64,HOMECARE - SPOT,2102824279,1000061613,
05.06.2018,ADULT SOCIAL CARE,WESTMINSTER HOMECARE LTD,629.24,PHY LTS 18-64,HOMECARE - SPOT,2102824418,1000075287,
05.06.2018,ADULT SOCIAL CARE,WESTMINSTER HOMECARE LTD,741.08,PHY LTS 18-64,HOMECARE - SPOT,2102824395,1000075287,
05.06.2018,ADULT SOCIAL CARE,HUMBLE HEALTH CARE LTD,904.52,PHY LTS 18-64,HOMECARE - SPOT,2102824301,1000079270,
05.06.2018,ADULT SOCIAL CARE,WESTMINSTER HOMECARE LTD,"2,530.73",PHY LTS 18-64,HOMECARE - SPOT,2102824417,1000075287,
05.06.2018,ADULT SOCIAL CARE,LONDON CARE LTD,277.95,PHY LTS 65+,HOMECARE - C&V,2102824202,1000003398,
05.06.2018,ADULT SOCIAL CARE,LONDON CARE LTD,285.82,PHY LTS 65+,HOMECARE - C&V,2102824186,1000003398,
05.06.2018,ADULT SOCIAL CARE,LONDON CARE LTD,302.60,PHY LTS 65+,HOMECARE - C&V,2102824198,1000003398,
05.06.2018,ADULT SOCIAL CARE,WESTMINSTER HOMECARE LTD,307.61,PHY LTS 65+,HOMECARE - C&V,2102824386,1000075287,
05.06.2018,ADULT SOCIAL CARE,LONDON CARE LTD,327.92,PHY LTS 65+,HOMECARE - C&V,2102824182,1000003398,
05.06.2018,ADULT SOCIAL CARE,LONDON CARE LTD,344.77,PHY LTS 65+,HOMECARE - C&V,2102824255,1000003398,
05.06.2018,ADULT SOCIAL CARE,LONDON CARE LTD,346.77,PHY LTS 65+,HOMECARE - C&V,2102824133,1000003398,
05.06.2018,ADULT SOCIAL CARE,LONDON CARE LTD,353.08,PHY LTS 65+,HOMECARE - C&V,2102824129,1000003398,
05.06.2018,ADULT SOCIAL CARE,LONDON CARE LTD,361.47,PHY LTS 65+,HOMECARE - C&V,2102824145,1000003398,
05.06.2018,ADULT SOCIAL CARE,LONDON CARE LTD,361.52,PHY LTS 65+,HOMECARE - C&V,2102824221,1000003398,
05.06.2018,ADULT SOCIAL CARE,MIHOMECARE LTD,408.48,PHY LTS 65+,HOMECARE - C&V,2102824381,1000042594,
05.06.2018,ADULT SOCIAL CARE,LONDON CARE LTD,431.58,PHY LTS 65+,HOMECARE - C&V,2102824209,1000003398,
05.06.2018,ADULT SOCIAL CARE,LONDON CARE LTD,453.87,PHY LTS 65+,HOMECARE - C&V,2102824178,1000003398,
05.06.2018,ADULT SOCIAL CARE,LONDON CARE LTD,453.96,PHY LTS 65+,HOMECARE - C&V,2102824180,1000003398,
05.06.2018,ADULT SOCIAL CARE,LONDON CARE LTD,462.55,PHY LTS 65+,HOMECARE - C&V,2102824204,1000003398,
05.06.2018,ADULT SOCIAL CARE,LONDON CARE LTD,474.95,PHY LTS 65+,HOMECARE - C&V,2102824189,1000003398,
05.06.2018,ADULT SOCIAL CARE,LONDON CARE LTD,491.95,PHY LTS 65+,HOMECARE - C&V,2102824166,1000003398,
05.06.2018,ADULT SOCIAL CARE,LONDON CARE LTD,504.52,PHY LTS 65+,HOMECARE - C&V,2102824168,1000003398,
05.06.2018,ADULT SOCIAL CARE,LONDON CARE LTD,508.59,PHY LTS 65+,HOMECARE - C&V,2102824175,1000003398,
05.06.2018,ADULT SOCIAL CARE,MIHOMECARE LTD,510.60,PHY LTS 65+,HOMECARE - C&V,2102824351,1000042594,
05.06.2018,ADULT SOCIAL CARE,LONDON CARE LTD,554.75,PHY LTS 65+,HOMECARE - C&V,2102824207,1000003398,
05.06.2018,ADULT SOCIAL CARE,LONDON CARE LTD,555.00,PHY LTS 65+,HOMECARE - C&V,2102824234,1000003398,
05.06.2018,ADULT SOCIAL CARE,LONDON CARE LTD,563.33,PHY LTS 65+,HOMECARE - C&V,2102824173,1000003398,
05.06.2018,ADULT SOCIAL CARE,LONDON CARE LTD,588.56,PHY LTS 65+,HOMECARE - C&V,2102824217,1000003398,
05.06.2018,ADULT SOCIAL CARE,MIHOMECARE LTD,638.25,PHY LTS 65+,HOMECARE - C&V,2102824355,1000042594,
05.06.2018,ADULT SOCIAL CARE,LONDON CARE LTD,638.91,PHY LTS 65+,HOMECARE - C&V,2102824243,1000003398,
05.06.2018,ADULT SOCIAL CARE,LONDON CARE LTD,651.61,PHY LTS 65+,HOMECARE - C&V,2102824192,1000003398,
05.06.2018,ADULT SOCIAL CARE,LONDON CARE LTD,672.62,PHY LTS 65+,HOMECARE - C&V,2102824170,1000003398,
05.06.2018,ADULT SOCIAL CARE,LONDON CARE LTD,697.75,PHY LTS 65+,HOMECARE - C&V,2102824187,1000003398,
05.06.2018,ADULT SOCIAL CARE,MIHOMECARE LTD,697.84,PHY LTS 65+,HOMECARE - C&V,2102824350,1000042594,
05.06.2018,ADULT SOCIAL CARE,LONDON CARE LTD,706.44,PHY LTS 65+,HOMECARE - C&V,2102824163,1000003398,
05.06.2018,ADULT SOCIAL CARE,LONDON CARE LTD,706.44,PHY LTS 65+,HOMECARE - C&V,2102824220,1000003398,
05.06.2018,ADULT SOCIAL CARE,MIHOMECARE LTD,714.84,PHY LTS 65+,HOMECARE - C&V,2102824347,1000042594,
05.06.2018,ADULT SOCIAL CARE,MIHOMECARE LTD,714.84,PHY LTS 65+,HOMECARE - C&V,2102824354,1000042594,
05.06.2018,ADULT SOCIAL CARE,LONDON CARE LTD,721.02,PHY LTS 65+,HOMECARE - C&V,2102824121,1000003398,
05.06.2018,ADULT SOCIAL CARE,LONDON CARE LTD,723.04,PHY LTS 65+,HOMECARE - C&V,2102824199,1000003398,
05.06.2018,ADULT SOCIAL CARE,LONDON CARE LTD,731.38,PHY LTS 65+,HOMECARE - C&V,2102824256,1000003398,
05.06.2018,ADULT SOCIAL CARE,LONDON CARE LTD,735.70,PHY LTS 65+,HOMECARE - C&V,2102824237,1000003398,
05.06.2018,ADULT SOCIAL CARE,LONDON CARE LTD,756.75,PHY LTS 65+,HOMECARE - C&V,2102824171,1000003398,
05.06.2018,ADULT SOCIAL CARE,LONDON CARE LTD,756.84,PHY LTS 65+,HOMECARE - C&V,2102824139,1000003398,
05.06.2018,ADULT SOCIAL CARE,LONDON CARE LTD,823.96,PHY LTS 65+,HOMECARE - C&V,2102824231,1000003398,
05.06.2018,ADULT SOCIAL CARE,LONDON CARE LTD,824.04,PHY LTS 65+,HOMECARE - C&V,2102824251,1000003398,
05.06.2018,ADULT SOCIAL CARE,MIHOMECARE LTD,868.04,PHY LTS 65+,HOMECARE - C&V,2102824348,1000042594,
05.06.2018,ADULT SOCIAL CARE,LONDON CARE LTD,882.93,PHY LTS 65+,HOMECARE - C&V,2102824216,1000003398,
05.06.2018,ADULT SOCIAL CARE,LONDON CARE LTD,895.11,PHY LTS 65+,HOMECARE - C&V,2102824179,1000003398,
05.06.2018,ADULT SOCIAL CARE,LONDON CARE LTD,900.86,PHY LTS 65+,HOMECARE - C&V,2102824226,1000003398,
05.06.2018,ADULT SOCIAL CARE,LONDON CARE LTD,908.04,PHY LTS 65+,HOMECARE - C&V,2102824214,1000003398,
05.06.2018,ADULT SOCIAL CARE,LONDON CARE LTD,975.24,PHY LTS 65+,HOMECARE - C&V,2102824219,1000003398,
05.06.2018,ADULT SOCIAL CARE,MIHOMECARE LTD,993.24,PHY LTS 65+,HOMECARE - C&V,2102824349,1000042594,
05.06.2018,ADULT SOCIAL CARE,LONDON CARE LTD,"1,008.88",PHY LTS 65+,HOMECARE - C&V,2102824233,1000003398,
05.06.2018,ADULT SOCIAL CARE,LONDON CARE LTD,"1,038.31",PHY LTS 65+,HOMECARE - C&V,2102824185,1000003398,
05.06.2018,ADULT SOCIAL CARE,MIHOMECARE LTD,"1,099.00",PHY LTS 65+,HOMECARE - C&V,2102824346,1000042594,
05.06.2018,ADULT SOCIAL CARE,LONDON CARE LTD,"1,170.74",PHY LTS 65+,HOMECARE - C&V,2102824206,1000003398,
05.06.2018,ADULT SOCIAL CARE,LONDON CARE LTD,"1,194.00",PHY LTS 65+,HOMECARE - C&V,2102824245,1000003398,
05.06.2018,ADULT SOCIAL CARE,LONDON CARE LTD,"1,395.60",PHY LTS 65+,HOMECARE - C&V,2102824212,1000003398,
05.06.2018,ADULT SOCIAL CARE,LONDON CARE LTD,"1,505.42",PHY LTS 65+,HOMECARE - C&V,2102824208,1000003398,
05.06.2018,ADULT SOCIAL CARE,LONDON CARE LTD,"1,546.94",PHY LTS 65+,HOMECARE - C&V,2102824241,1000003398,
05.06.2018,ADULT SOCIAL CARE,LONDON CARE LTD,"1,593.42",PHY LTS 65+,HOMECARE - C&V,2102824161,1000003398,
05.06.2018,ADULT SOCIAL CARE,LONDON CARE LTD,"2,076.51",PHY LTS 65+,HOMECARE - C&V,2102824222,1000003398,
05.06.2018,ADULT SOCIAL CARE,WESTMINSTER HOMECARE LTD,"2,146.21",PHY LTS 65+,HOMECARE - C&V,2102824429,1000075287,
05.06.2018,ADULT SOCIAL CARE,LONDON CARE LTD,"2,169.52",PHY LTS 65+,HOMECARE - C&V,2102824203,1000003398,
05.06.2018,ADULT SOCIAL CARE,HUMBLE HEALTH CARE LTD,"2,187.00",PHY LTS 65+,HOMECARE - C&V,2102824298,1000079270,
05.06.2018,ADULT SOCIAL CARE,LONDON CARE LTD,"2,538.98",PHY LTS 65+,HOMECARE - C&V,2102824137,1000003398,
05.06.2018,ADULT SOCIAL CARE,LONDON CARE LTD,"2,782.61",PHY LTS 65+,HOMECARE - C&V,2102824181,1000003398,
05.06.2018,ADULT SOCIAL CARE,WESTMINSTER HOMECARE LTD,251.76,PHY LTS 65+,HOMECARE - SPOT,2102824397,1000075287,
05.06.2018,ADULT SOCIAL CARE,WESTMINSTER HOMECARE LTD,279.60,PHY LTS 65+,HOMECARE - SPOT,2102824411,1000075287,
05.06.2018,ADULT SOCIAL CARE,HUMBLE HEALTH CARE LTD,283.52,PHY LTS 65+,HOMECARE - SPOT,2102824261,1000079270,
05.06.2018,ADULT SOCIAL CARE,WESTMINSTER HOMECARE LTD,293.72,PHY LTS 65+,HOMECARE - SPOT,2102824403,1000075287,
05.06.2018,ADULT SOCIAL CARE,WESTMINSTER HOMECARE LTD,293.72,PHY LTS 65+,HOMECARE - SPOT,2102824415,1000075287,
05.06.2018,ADULT SOCIAL CARE,METRO HOMECARE LTD,310.28,PHY LTS 65+,HOMECARE - SPOT,2102824371,1000070695,
05.06.2018,ADULT SOCIAL CARE,METRO HOMECARE LTD,393.02,PHY LTS 65+,HOMECARE - SPOT,2102824365,1000070695,
05.06.2018,ADULT SOCIAL CARE,HUMBLE HEALTH CARE LTD,432.00,PHY LTS 65+,HOMECARE - SPOT,2102824269,1000079270,
05.06.2018,ADULT SOCIAL CARE,WESTMINSTER HOMECARE LTD,475.45,PHY LTS 65+,HOMECARE - SPOT,2102824423,1000075287,
05.06.2018,ADULT SOCIAL CARE,WESTMINSTER HOMECARE LTD,489.44,PHY LTS 65+,HOMECARE - SPOT,2102824401,1000075287,
05.06.2018,ADULT SOCIAL CARE,CARE DIRECT UK LTD,503.34,PHY LTS 65+,HOMECARE - SPOT,2102824296,1000066322,
05.06.2018,ADULT SOCIAL CARE,METRO HOMECARE LTD,503.34,PHY LTS 65+,HOMECARE - SPOT,2102824374,1000070695,
05.06.2018,ADULT SOCIAL CARE,WESTMINSTER HOMECARE LTD,517.40,PHY LTS 65+,HOMECARE - SPOT,2102824431,1000075287,
05.06.2018,ADULT SOCIAL CARE,LONDON CARE LTD,525.50,PHY LTS 65+,HOMECARE - SPOT,2102824254,1000003398,
05.06.2018,ADULT SOCIAL CARE,WESTMINSTER HOMECARE LTD,531.24,PHY LTS 65+,HOMECARE - SPOT,2102824383,1000075287,
05.06.2018,ADULT SOCIAL CARE,LONDON CARE LTD,538.12,PHY LTS 65+,HOMECARE - SPOT,2102824151,1000003398,
05.06.2018,ADULT SOCIAL CARE,HUMBLE HEALTH CARE LTD,567.00,PHY LTS 65+,HOMECARE - SPOT,2102824289,1000079270,
05.06.2018,ADULT SOCIAL CARE,LAMBETH CHINESE COMMUNITY ASSOCIATION,576.05,PHY LTS 65+,HOMECARE - SPOT,2102824307,11117038,
05.06.2018,ADULT SOCIAL CARE,WESTMINSTER HOMECARE LTD,580.17,PHY LTS 65+,HOMECARE - SPOT,2102824407,1000075287,
05.06.2018,ADULT SOCIAL CARE,WESTMINSTER HOMECARE LTD,587.16,PHY LTS 65+,HOMECARE - SPOT,2102824416,1000075287,
05.06.2018,ADULT SOCIAL CARE,LIFECARE CONSULTING LTD,594.44,PHY LTS 65+,HOMECARE - SPOT,2102824273,1000061613,
05.06.2018,ADULT SOCIAL CARE,HUMBLE HEALTH CARE LTD,661.52,PHY LTS 65+,HOMECARE - SPOT,2102824275,1000079270,
05.06.2018,ADULT SOCIAL CARE,HUMBLE HEALTH CARE LTD,661.52,PHY LTS 65+,HOMECARE - SPOT,2102824288,1000079270,
05.06.2018,ADULT SOCIAL CARE,LAMBETH CHINESE COMMUNITY ASSOCIATION,800.85,PHY LTS 65+,HOMECARE - SPOT,2102824305,11117038,
05.06.2018,ADULT SOCIAL CARE,LAMBETH CHINESE COMMUNITY ASSOCIATION,800.85,PHY LTS 65+,HOMECARE - SPOT,2102824306,11117038,
05.06.2018,ADULT SOCIAL CARE,HUMBLE HEALTH CARE LTD,837.00,PHY LTS 65+,HOMECARE - SPOT,2102824278,1000079270,
05.06.2018,ADULT SOCIAL CARE,WESTMINSTER HOMECARE LTD,880.88,PHY LTS 65+,HOMECARE - SPOT,2102824405,1000075287,
05.06.2018,ADULT SOCIAL CARE,METRO HOMECARE LTD,882.56,PHY LTS 65+,HOMECARE - SPOT,2102824363,1000070695,
05.06.2018,ADULT SOCIAL CARE,WESTMINSTER HOMECARE LTD,908.80,PHY LTS 65+,HOMECARE - SPOT,2102824427,1000075287,
05.06.2018,ADULT SOCIAL CARE,METRO HOMECARE LTD,"1,020.46",PHY LTS 65+,HOMECARE - SPOT,2102824362,1000070695,
05.06.2018,ADULT SOCIAL CARE,METRO HOMECARE LTD,"1,020.46",PHY LTS 65+,HOMECARE - SPOT,2102824367,1000070695,
05.06.2018,ADULT SOCIAL CARE,METRO HOMECARE LTD,"1,020.46",PHY LTS 65+,HOMECARE - SPOT,2102824369,1000070695,
05.06.2018,ADULT SOCIAL CARE,METRO HOMECARE LTD,"1,061.83",PHY LTS 65+,HOMECARE - SPOT,2102824368,1000070695,
05.06.2018,ADULT SOCIAL CARE,UNIQUE PERSONNEL-UK LTD,"1,126.13",PHY LTS 65+,HOMECARE - SPOT,2102824377,1000075451,
05.06.2018,ADULT SOCIAL CARE,WESTMINSTER HOMECARE LTD,"1,174.32",PHY LTS 65+,HOMECARE - SPOT,2102824402,1000075287,
05.06.2018,ADULT SOCIAL CARE,WESTMINSTER HOMECARE LTD,"1,230.52",PHY LTS 65+,HOMECARE - SPOT,2102824412,1000075287,
05.06.2018,ADULT SOCIAL CARE,WESTMINSTER HOMECARE LTD,"1,230.52",PHY LTS 65+,HOMECARE - SPOT,2102824413,1000075287,
05.06.2018,ADULT SOCIAL CARE,HUMBLE HEALTH CARE LTD,"1,309.52",PHY LTS 65+,HOMECARE - SPOT,2102824257,1000079270,
05.06.2018,ADULT SOCIAL CARE,LIFECARE CONSULTING LTD,"1,365.22",PHY LTS 65+,HOMECARE - SPOT,2102824260,1000061613,
05.06.2018,ADULT SOCIAL CARE,HUMBLE HEALTH CARE LTD,"1,573.72",PHY LTS 65+,HOMECARE - SPOT,2102824302,1000079270,
05.06.2018,ADULT SOCIAL CARE,HUMBLE HEALTH CARE LTD,"1,701.00",PHY LTS 65+,HOMECARE - SPOT,2102824259,1000079270,
05.06.2018,ADULT SOCIAL CARE,HUMBLE HEALTH CARE LTD,"1,701.00",PHY LTS 65+,HOMECARE - SPOT,2102824290,1000079270,
05.06.2018,ADULT SOCIAL CARE,HUMBLE HEALTH CARE LTD,"1,795.52",PHY LTS 65+,HOMECARE - SPOT,2102824268,1000079270,
05.06.2018,ADULT SOCIAL CARE,WESTMINSTER HOMECARE LTD,"1,873.60",PHY LTS 65+,HOMECARE - SPOT,2102824426,1000075287,
05.06.2018,ADULT SOCIAL CARE,WESTMINSTER HOMECARE LTD,"1,999.55",PHY LTS 65+,HOMECARE - SPOT,2102824406,1000075287,
05.06.2018,ADULT SOCIAL CARE,WESTMINSTER HOMECARE LTD,"2,100.77",PHY LTS 65+,HOMECARE - SPOT,2102824384,1000075287,
05.06.2018,ADULT SOCIAL CARE,WESTMINSTER HOMECARE LTD,"2,128.86",PHY LTS 65+,HOMECARE - SPOT,2102824387,1000075287,
05.06.2018,ADULT SOCIAL CARE,HUMBLE HEALTH CARE LTD,"2,160.00",PHY LTS 65+,HOMECARE - SPOT,2102824266,1000079270,
05.06.2018,ADULT SOCIAL CARE,LAMBETH CHINESE COMMUNITY ASSOCIATION,"2,262.05",PHY LTS 65+,HOMECARE - SPOT,2102824303,11117038,
05.06.2018,ADULT SOCIAL CARE,WESTMINSTER HOMECARE LTD,"2,418.76",PHY LTS 65+,HOMECARE - SPOT,2102824420,1000075287,
05.06.2018,ADULT SOCIAL CARE,LIFECARE CONSULTING LTD,"2,509.80",PHY LTS 65+,HOMECARE - SPOT,2102824292,1000061613,
05.06.2018,ADULT SOCIAL CARE,CHOICE SUPPORT,293.92,PHY LTS 65+,SUPPORTED LIVING,2102824337,1104183,
05.06.2018,ADULT SOCIAL CARE,LONDON CARE LTD,483.90,PHY STS 65+,HOMECARE - IC,2102824249,1000003398,
05.06.2018,ADULT SOCIAL CARE,LONDON CARE LTD,403.46,SOCIAL ISOLATION,HOMECARE - C&V,2102824225,1000003398,
05.06.2018,ADULT SOCIAL CARE,LONDON CARE LTD,"1,025.76",SOCIAL ISOLATION,HOMECARE - C&V,2102824235,1000003398,
05.06.2018,ADULT SOCIAL CARE,HUMBLE HEALTH CARE LTD,"2,308.52",SOCIAL ISOLATION,HOMECARE - C&V,2102824281,1000079270,
05.06.2018,ADULT SOCIAL CARE,LIFECARE CONSULTING LTD,510.24,SOCIAL ISOLATION,HOMECARE - SPOT,2102824272,1000061613,
05.06.2018,ADULT SOCIAL CARE,HOPE WORLDWIDE,"2,400.00",SUB LTS 18-64,PLACEMENTS - REHAB,2102824359,1000047835,
05.06.2018,ADULT SOCIAL CARE,FREEDOM RECOVERY CENTRE,"2,580.00",SUB LTS 18-64,PLACEMENTS - REHAB,2102824360,1000046185,
05.06.2018,ASSET MANAGEMENT,PINSENT MASONS LLP,"3,469.50",DESIGN & DELIVERY,PLANNED MAINTENANCE,5902305630,1000046862,
05.06.2018,ASSET MANAGEMENT,POTTER RAPER AND PARTNERS,"4,049.73",DEVELOPMENT DELIVERY,PROFESSIONAL FEES,5902305584,1009369,
05.06.2018,ASSET MANAGEMENT,ZIP HEATERS UK LTD,279.28,REPAIRS OPERATIONS,BUILDING R&M,5902305694,1000037925,
05.06.2018,ASSET MANAGEMENT,PROPERTY FACILITIES GROUP PLC,"3,038.00",VOIDS (NORTH),BUILDING R&M,2102824602,3000001420,
05.06.2018,CAMBERWELL COMMUNITY COUNCIL,LINK AGE SOUTHWARK,"2,564.00",COMMUNITIES REDUCING SOCIAL ISOLATION,GRANT,CHEQUE PAYMENT,CHEQUE PAYMENT,
05.06.2018,CAMBERWELL COMMUNITY COUNCIL,SOUTH LONDON FINE ART GALLERY AND LIBRARY,"5,000.00",SUNDAY SPOT,GRANT,CHEQUE PAYMENT,CHEQUE PAYMENT,
05.06.2018,CHIEF EXECUTIVE,CONWAY AECOM LTD,"1,481.66",CAPITAL PS (REGEN),CONSTR'N SUB CONTRACT - NON CERTIFICATED,5902305581,1000071205,
05.06.2018,CHIEF EXECUTIVE,CONWAY AECOM LTD,"12,184.42",CAPITAL PS (REGEN),CONSTR'N SUB CONTRACT - NON CERTIFICATED,2102824571,3000001595,
05.06.2018,CHIEF EXECUTIVE,CONWAY AECOM LTD,"36,816.79",CAPITAL PS (REGEN),CONSTR'N SUB CONTRACT - NON CERTIFICATED,2102824572,3000001595,
05.06.2018,CHIEF EXECUTIVE,CONWAY AECOM LTD,"62,683.58",CAPITAL PS (REGEN),CONSTR'N SUB CONTRACT - NON CERTIFICATED,2102824573,3000001595,
05.06.2018,CHIEF EXECUTIVE,CONWAY AECOM LTD,"65,014.57",CAPITAL PS (REGEN),CONSTR'N SUB CONTRACT - NON CERTIFICATED,2102824574,3000001595,
05.06.2018,CHIEF EXECUTIVE,CONWAY AECOM LTD,"7,183.94",CAPITAL PS (REGEN),CONSTRUCTION,5902305639,1000071205,
05.06.2018,CHIEF EXECUTIVE,INTERSERVE (FACILITIES MANAGEMENT),"22,114.01",CAPITAL PS (REGEN),CONSTRUCTION,2102824583,3000000166,
05.06.2018,CHIEF EXECUTIVE,INTERSERVE (FACILITIES MANAGEMENT),"27,642.51",CAPITAL PS (REGEN),CONSTRUCTION,2102824582,3000000166,
05.06.2018,CHIEF EXECUTIVE,MACE LTD,654.00,CAPITAL PS (REGEN),CONSTRUCTION FEES,5902305588,1000067959,
05.06.2018,CHIEF EXECUTIVE,MACE LTD,"4,393.00",CAPITAL PS (REGEN),CONSTRUCTION FEES,5902305588,1000067959,
05.06.2018,CHIEF EXECUTIVE,CONWAY AECOM LTD,"1,283.63",CAPITAL PS (REGEN),CONSTRUCTION MAIN CONTRACT -CERTIFICATED,5902305587,1000071205,
05.06.2018,CHIEF EXECUTIVE,CONWAY AECOM LTD,"4,260.17",CAPITAL PS (REGEN),CONSTRUCTION MAIN CONTRACT -CERTIFICATED,5902305587,1000071205,
05.06.2018,CHILDREN AND ADULT,MACE LTD,"1,541.44",CAPITAL PS (EDUCATION),CONSTRUCTION FEES,5902305598,1000067959,
05.06.2018,CHILDREN AND ADULT,MACE LTD,"1,541.44",CAPITAL PS (EDUCATION),CONSTRUCTION FEES,5902305598,1000067959,
05.06.2018,CHILDREN AND ADULT,MACE LTD,"1,541.44",CAPITAL PS (EDUCATION),CONSTRUCTION FEES,5902305598,1000067959,
05.06.2018,CHILDREN AND ADULT,MACE LTD,"1,541.44",CAPITAL PS (EDUCATION),CONSTRUCTION FEES,5902305598,1000067959,
05.06.2018,CHILDREN AND ADULT,MACE LTD,"1,541.44",CAPITAL PS (EDUCATION),CONSTRUCTION FEES,5902305598,1000067959,
05.06.2018,CHILDREN AND ADULT,MACE LTD,"1,541.45",CAPITAL PS (EDUCATION),CONSTRUCTION FEES,5902305598,1000067959,
05.06.2018,CHILDREN AND ADULT,MACE LTD,"1,541.45",CAPITAL PS (EDUCATION),CONSTRUCTION FEES,5902305598,1000067959,
05.06.2018,CHILDREN AND ADULT,MACE LTD,"1,541.45",CAPITAL PS (EDUCATION),CONSTRUCTION FEES,5902305598,1000067959,
05.06.2018,CHILDREN AND ADULT,MACE LTD,"1,541.45",CAPITAL PS (EDUCATION),CONSTRUCTION FEES,5902305598,1000067959,
05.06.2018,CHILDREN AND ADULT,MACE LTD,"2,161.33",CAPITAL PS (EDUCATION),CONSTRUCTION FEES,5902305610,1000067959,
05.06.2018,CHILDREN AND ADULT,MACE LTD,"2,161.33",CAPITAL PS (EDUCATION),CONSTRUCTION FEES,5902305610,1000067959,
05.06.2018,CHILDREN AND ADULT,MACE LTD,"2,161.33",CAPITAL PS (EDUCATION),CONSTRUCTION FEES,5902305610,1000067959,
05.06.2018,CHILDREN AND ADULT,MACE LTD,"2,161.33",CAPITAL PS (EDUCATION),CONSTRUCTION FEES,5902305610,1000067959,
05.06.2018,CHILDREN AND ADULT,MACE LTD,"2,161.33",CAPITAL PS (EDUCATION),CONSTRUCTION FEES,5902305610,1000067959,
05.06.2018,CHILDREN AND ADULT,MACE LTD,"2,161.33",CAPITAL PS (EDUCATION),CONSTRUCTION FEES,5902305610,1000067959,
05.06.2018,CHILDREN AND ADULT,MACE LTD,"2,161.34",CAPITAL PS (EDUCATION),CONSTRUCTION FEES,5902305610,1000067959,
05.06.2018,CHILDREN AND ADULT,MACE LTD,"2,161.34",CAPITAL PS (EDUCATION),CONSTRUCTION FEES,5902305610,1000067959,
05.06.2018,CHILDREN AND ADULT,MACE LTD,"2,161.34",CAPITAL PS (EDUCATION),CONSTRUCTION FEES,5902305610,1000067959,
05.06.2018,CHILDREN AND ADULT,CBS MAINTENANCE SERVICES LTD,"17,780.00",CAPITAL PS (EDUCATION),CONSTRUCTION MAIN CONTRACT,2102824566,3000001518,
05.06.2018,CHILDREN AND ADULT,INTERSERVE (FACILITIES MANAGEMENT),"6,119.47",CAPITAL PS (SOC SERV),CONSTRUCTION MAIN CONTRACT,2102824585,3000000166,
05.06.2018,CHILDREN AND ADULT,INTERSERVE (FACILITIES MANAGEMENT),"7,122.21",CAPITAL PS (SOC SERV),CONSTRUCTION MAIN CONTRACT,2102824586,3000000166,
05.06.2018,CHILDREN AND ADULT,INTERSERVE (FACILITIES MANAGEMENT),"21,418.16",CAPITAL PS (SOC SERV),CONSTRUCTION MAIN CONTRACT,2102824584,3000000166,
05.06.2018,CHILDREN AND ADULT,INTERSERVE (FACILITIES MANAGEMENT),"10,000.00",CAPITAL PS (SOC SERV),CONSTRUCTION MAIN CONTRACT -CERTIFICATED,2102824592,3000000166,
05.06.2018,CHILDREN'S SERVICES,INTERSERVE (FACILITIES MANAGEMENT),"1,946.28",CAMBERWELL GROVE EARLY YEARS CENTRE,BUILDING R&M,2102824588,3000000166,
05.06.2018,CHILDREN'S SERVICES,REDACTED PERSONAL DATA,500.00,DISABILITY & HIV,ADDITIONAL PAYMENTS TO AGENCIES/CARERS,REDACTED,REDACTED,
05.06.2018,CHILDREN'S SERVICES,REDACTED PERSONAL DATA,610.00,DISABILITY & HIV,OTHER PAYMENTS FOR CLIENTS,REDACTED,REDACTED,
05.06.2018,CHILDREN'S SERVICES,DAYBREAK FAMILY GROUP CONFERENCES,"5,850.00",FAMILY GROUP CONFERENCES,EXTERNAL AGENCIES AND BODIES,5902305609,1000072832,
05.06.2018,CHILDREN'S SERVICES,HEALTHCARE & TRANSPORT SERVICES,"51,508.37",HOME 2 SCHOOL TRANSPORT,CAB FARES,5902305618,1000042743,
05.06.2018,CHILDREN'S SERVICES,BUDGET CARPETS,345.00,LEAVING CARE GRANT,OTHER PAYMENTS FOR CLIENTS,5902305617,11319076,
05.06.2018,CHILDREN'S SERVICES,JULIANA LOTTMANN,580.12,NURSERY ED GRANT 3 Y Y.0.,GRANTS,2102824475,1000077406,
05.06.2018,CHILDREN'S SERVICES,MIQUILINA JUNIOR,609.37,NURSERY ED GRANT 3 Y Y.0.,GRANTS,2102824487,1000077630,
05.06.2018,CHILDREN'S SERVICES,OLUFUNMI OREYOMI,640.57,NURSERY ED GRANT 3 Y Y.0.,GRANTS,2102824495,1000055802,
05.06.2018,CHILDREN'S SERVICES,GEORGIA LONGHURST,669.82,NURSERY ED GRANT 3 Y Y.0.,GRANTS,2102824465,1000079588,
05.06.2018,CHILDREN'S SERVICES,SANDRA EDIE,701.02,NURSERY ED GRANT 3 Y Y.0.,GRANTS,2102824507,1000079712,
05.06.2018,CHILDREN'S SERVICES,MARIA ELEFTHERIOU,734.17,NURSERY ED GRANT 3 Y Y.0.,GRANTS,2102824485,1000078601,
05.06.2018,CHILDREN'S SERVICES,NICOLA SUPPLE,734.17,NURSERY ED GRANT 3 Y Y.0.,GRANTS,2102824491,1000080557,
05.06.2018,CHILDREN'S SERVICES,MICHELLE WALKES GORDON,823.87,NURSERY ED GRANT 3 Y Y.0.,GRANTS,2102824486,1000056139,
05.06.2018,CHILDREN'S SERVICES,ANETA MROCZEK,"1,139.32",NURSERY ED GRANT 3 Y Y.0.,GRANTS,2102824442,1000053841,
05.06.2018,CHILDREN'S SERVICES,DAWN KENDALL-KIDD,"1,160.25",NURSERY ED GRANT 3 Y Y.0.,GRANTS,2102824455,1000079322,
05.06.2018,CHILDREN'S SERVICES,FATMATA BANGURA,"1,191.45",NURSERY ED GRANT 3 Y Y.0.,GRANTS,2102824463,1000079391,
05.06.2018,CHILDREN'S SERVICES,KATI VALL,"1,281.15",NURSERY ED GRANT 3 Y Y.0.,GRANTS,2102824476,1000080821,
05.06.2018,CHILDREN'S SERVICES,SALMA KHANAM,"1,281.15",NURSERY ED GRANT 3 Y Y.0.,GRANTS,2102824505,1000048927,
05.06.2018,CHILDREN'S SERVICES,GLORIA PAGE,"1,343.55",NURSERY ED GRANT 3 Y Y.0.,GRANTS,2102824468,1000024038,
05.06.2018,CHILDREN'S SERVICES,SORAIA BARBOSA,"1,402.05",NURSERY ED GRANT 3 Y Y.0.,GRANTS,2102824509,1000080643,
05.06.2018,CHILDREN'S SERVICES,VALERIE SPIROU,"1,402.05",NURSERY ED GRANT 3 Y Y.0.,GRANTS,2102824520,1000050321,
05.06.2018,CHILDREN'S SERVICES,SOPHIA ESSEL,"1,462.50",NURSERY ED GRANT 3 Y Y.0.,GRANTS,2102824508,1000073414,
05.06.2018,CHILDREN'S SERVICES,EMMA GROVER,"1,610.70",NURSERY ED GRANT 3 Y Y.0.,GRANTS,2102824461,1000047348,
05.06.2018,CHILDREN'S SERVICES,ALICE ADAMS,"1,740.37",NURSERY ED GRANT 3 Y Y.0.,GRANTS,2102824440,1000047717,
05.06.2018,CHILDREN'S SERVICES,ROSEMARY ROBERTS,"1,740.37",NURSERY ED GRANT 3 Y Y.0.,GRANTS,2102824503,1000049828,
05.06.2018,CHILDREN'S SERVICES,SAM HILLS,"1,800.82",NURSERY ED GRANT 3 Y Y.0.,GRANTS,2102824506,1000060166,
05.06.2018,CHILDREN'S SERVICES,C FODILI,"2,166.82",NURSERY ED GRANT 3 Y Y.0.,GRANTS,2102824450,1000016440,
05.06.2018,CHILDREN'S SERVICES,NAFISATU MUHLEMANN,"2,349.75",NURSERY ED GRANT 3 Y Y.0.,GRANTS,2102824492,1000079321,
05.06.2018,CHILDREN'S SERVICES,JULIA KERRIGAN,"2,441.40",NURSERY ED GRANT 3 Y Y.0.,GRANTS,2102824473,1000080973,
05.06.2018,CHILDREN'S SERVICES,RAMONA HARRISON,"2,681.25",NURSERY ED GRANT 3 Y Y.0.,GRANTS,2102824500,1000080870,
05.06.2018,CHILDREN'S SERVICES,DIONNE CAMPBELL,"2,808.00",NURSERY ED GRANT 3 Y Y.0.,GRANTS,2102824457,1000061532,
05.06.2018,CHILDREN'S SERVICES,STEPHANIE BANTON,"2,960.29",NURSERY ED GRANT 3 Y Y.0.,GRANTS,2102824513,1000075038,
05.06.2018,CHILDREN'S SERVICES,PATRICIA IBHAHE,"3,562.05",NURSERY ED GRANT 3 Y Y.0.,GRANTS,2102824496,1000074768,
05.06.2018,CHILDREN'S SERVICES,GUYS & ST THOMAS NHS FOUNDATION TRUST,"3,567.51",NURSERY ED GRANT 3 Y Y.0.,GRANTS,2102824470,1765536,
05.06.2018,CHILDREN'S SERVICES,COLOURBOX CHILDCARE,"4,346.55",NURSERY ED GRANT 3 Y Y.0.,GRANTS,2102824453,11241636,
05.06.2018,CHILDREN'S SERVICES,SABINA  JACKSON,"5,007.60",NURSERY ED GRANT 3 Y Y.0.,GRANTS,2102824504,1000022899,
05.06.2018,CHILDREN'S SERVICES,SUSAN YATES,"5,007.60",NURSERY ED GRANT 3 Y Y.0.,GRANTS,2102824515,1000080869,
05.06.2018,CHILDREN'S SERVICES,REDRIFF DAYCARE,"5,066.10",NURSERY ED GRANT 3 Y Y.0.,GRANTS,2102824501,1000066369,
05.06.2018,CHILDREN'S SERVICES,TODDLE ON INN LTD,"5,188.95",NURSERY ED GRANT 3 Y Y.0.,GRANTS,2102824519,1000076934,
05.06.2018,CHILDREN'S SERVICES,BRIGHT ORIGIN NURSERY,"6,774.30",NURSERY ED GRANT 3 Y Y.0.,GRANTS,2102824448,1000079395,
05.06.2018,CHILDREN'S SERVICES,SUNSHINE FRUITS NURSERY LTD,"7,690.80",NURSERY ED GRANT 3 Y Y.0.,GRANTS,2102824514,1000081059,
05.06.2018,CHILDREN'S SERVICES,ST JUDES PLAYGROUP,"7,870.20",NURSERY ED GRANT 3 Y Y.0.,GRANTS,2102824512,11278309,
05.06.2018,CHILDREN'S SERVICES,PLAYSHACK PLAYGROUP,"8,415.22",NURSERY ED GRANT 3 Y Y.0.,GRANTS,2102824498,1608859,
05.06.2018,CHILDREN'S SERVICES,HALFPINTS PRE-SCHOOL,"8,810.10",NURSERY ED GRANT 3 Y Y.0.,GRANTS,2102824471,1000012294,
05.06.2018,CHILDREN'S SERVICES,PIPLINGS NURSERY ED,"8,945.62",NURSERY ED GRANT 3 Y Y.0.,GRANTS,2102824497,1000070644,
05.06.2018,CHILDREN'S SERVICES,BRIGHT EXPLORERS DAY NURSERY,"8,992.42",NURSERY ED GRANT 3 Y Y.0.,GRANTS,2102824446,1000074268,
05.06.2018,CHILDREN'S SERVICES,PUMPHOUSE 16 LTD,"10,018.20",NURSERY ED GRANT 3 Y Y.0.,GRANTS,2102824499,1000080556,
05.06.2018,CHILDREN'S SERVICES,BRIGHT SOJOURNER NURSERY LTD,"12,690.60",NURSERY ED GRANT 3 Y Y.0.,GRANTS,2102824449,1000080155,
05.06.2018,CHILDREN'S SERVICES,CEDAR HOUSE DAY NURSERY,"13,063.05",NURSERY ED GRANT 3 Y Y.0.,GRANTS,2102824452,11298694,
05.06.2018,CHILDREN'S SERVICES,KINGS COLLEGE NHS FOUNDATION TRUST,"15,617.40",NURSERY ED GRANT 3 Y Y.0.,GRANTS,2102824477,11255665,
05.06.2018,CHILDREN'S SERVICES,ARC COMMUNITY TRUSTEES,"16,586.02",NURSERY ED GRANT 3 Y Y.0.,GRANTS,2102824444,1000046206,
05.06.2018,CHILDREN'S SERVICES,DESTINY KIDS NURSERY LTD,"17,826.52",NURSERY ED GRANT 3 Y Y.0.,GRANTS,2102824456,1000068663,
05.06.2018,CHILDREN'S SERVICES,JULIE THOMPSON,"17,966.32",NURSERY ED GRANT 3 Y Y.0.,GRANTS,2102824445,1000054116,
05.06.2018,CHILDREN'S SERVICES,GERMAN KINDERGARTEN LTD,"18,043.80",NURSERY ED GRANT 3 Y Y.0.,GRANTS,2102824466,1000058090,
05.06.2018,CHILDREN'S SERVICES,BEORMUND COMMUNITY CENTRE,"18,127.80",NURSERY ED GRANT 3 Y Y.0.,GRANTS,2102824472,1029218,
05.06.2018,CHILDREN'S SERVICES,SURE AND FIRM FOUNDATIONS,"18,564.00",NURSERY ED GRANT 3 Y Y.0.,GRANTS,2102824490,1000066223,
05.06.2018,CHILDREN'S SERVICES,CAMBERWELL AFTER SCHOOL PROJECT,"19,122.67",NURSERY ED GRANT 3 Y Y.0.,GRANTS,2102824451,1000051625,
05.06.2018,CHILDREN'S SERVICES,LONDON EARLY YEARS FOUNDATION,"19,210.42",NURSERY ED GRANT 3 Y Y.0.,GRANTS,2102824510,1000077919,
05.06.2018,CHILDREN'S SERVICES,BASCULE LTD,"19,224.72",NURSERY ED GRANT 3 Y Y.0.,GRANTS,2102824494,1000037268,
05.06.2018,CHILDREN'S SERVICES,CREATIVE MINDS CARE AND EDUCATION,"21,412.95",NURSERY ED GRANT 3 Y Y.0.,GRANTS,2102824454,11293601,
05.06.2018,CHILDREN'S SERVICES,SANDRA LITCHMORE,"22,601.34",NURSERY ED GRANT 3 Y Y.0.,GRANTS,2102824462,1000067981,
05.06.2018,CHILDREN'S SERVICES,THE FRUIT TREE DAY NURSERY,"23,535.90",NURSERY ED GRANT 3 Y Y.0.,GRANTS,2102824517,1000072492,
05.06.2018,CHILDREN'S SERVICES,MOTHER GOOSE NURSERIES T/A MOTHER GOOSE,"23,835.82",NURSERY ED GRANT 3 Y Y.0.,GRANTS,2102824489,1000017311,
05.06.2018,CHILDREN'S SERVICES,HERMAN WHYTE T/A LITTLE CLIMBERS DAYCARE PROJECT,"23,849.15",NURSERY ED GRANT 3 Y Y.0.,GRANTS,2102824481,11230367,
05.06.2018,CHILDREN'S SERVICES,BASCULE LTD,"25,735.77",NURSERY ED GRANT 3 Y Y.0.,GRANTS,2102824493,1000037268,
05.06.2018,CHILDREN'S SERVICES,LITTLE FINGERS MONTESSORI 2,"26,839.80",NURSERY ED GRANT 3 Y Y.0.,GRANTS,2102824482,1000073415,
05.06.2018,CHILDREN'S SERVICES,BRIGHT HORIZONS FAMILY SOLUTIONS,"28,984.60",NURSERY ED GRANT 3 Y Y.0.,GRANTS,2102824447,1000052087,
05.06.2018,CHILDREN'S SERVICES,MOTHER GOOSE NURSERIES - GREENDALE FIELDS LTD,"29,182.65",NURSERY ED GRANT 3 Y Y.0.,GRANTS,2102824488,1000025888,
05.06.2018,CHILDREN'S SERVICES,ANGEL OAK ACADEMY,"29,190.90",NURSERY ED GRANT 3 Y Y.0.,GRANTS,2102824443,1000075379,
05.06.2018,CHILDREN'S SERVICES,GOOSE GREEN PRIMARY AND NURSERY SCHOOL,"31,792.40",NURSERY ED GRANT 3 Y Y.0.,GRANTS,2102824469,1000070613,
05.06.2018,CHILDREN'S SERVICES,EAST DULWICH GROVE NURSERY LTD,"37,988.60",NURSERY ED GRANT 3 Y Y.0.,GRANTS,2102824479,1000077140,
05.06.2018,CHILDREN'S SERVICES,LITTLE JUNGLE NURSERY LIMITED,"39,409.50",NURSERY ED GRANT 3 Y Y.0.,GRANTS,2102824483,1000067064,
05.06.2018,CHILDREN'S SERVICES,ARK SCHOOLS T/A GLOBE ACADEMY,"48,315.15",NURSERY ED GRANT 3 Y Y.0.,GRANTS,2102824467,1000060008,
05.06.2018,CHILDREN'S SERVICES,ELEPHANT & CASTLE DAY NURSERY LTD,"51,211.87",NURSERY ED GRANT 3 Y Y.0.,GRANTS,2102824460,11329999,
05.06.2018,CHILDREN'S SERVICES,S R C COMMUNITY NURSERY,"53,395.72",NURSERY ED GRANT 3 Y Y.0.,GRANTS,2102824511,1414681,
05.06.2018,CHILDREN'S SERVICES,LITTLE ACORNS DAY NURSERY,"58,688.70",NURSERY ED GRANT 3 Y Y.0.,GRANTS,2102824480,1000015844,
05.06.2018,CHILDREN'S SERVICES,THE VILLA SCHOOL & NURSERY LTD,"91,727.02",NURSERY ED GRANT 3 Y Y.0.,GRANTS,2102824518,1000003742,
05.06.2018,CHILDREN'S SERVICES,REDACTED PERSONAL DATA,850.85,NURSERY ED GRANT 3 Y Y.0.,GRANTS,REDACTED,REDACTED,
05.06.2018,CHILDREN'S SERVICES,REDACTED PERSONAL DATA,"5,980.65",NURSERY ED GRANT 3 Y Y.0.,GRANTS,REDACTED,REDACTED,
05.06.2018,CHILDREN'S SERVICES,TADWORTH PRE-SCHOOL,"3,073.78",NURSERY ED GRANT 3 Y Y.0.,GRANTS,2102824516,11329054,
05.06.2018,CHILDREN'S SERVICES,ALLEYN'S JUNIOR SCHOOL,"6,422.17",NURSERY ED GRANT 3 Y Y.0.,GRANTS,2102824441,1000020848,
05.06.2018,CHILDREN'S SERVICES,DULWICH VILLAGE PRE-SCHOOL,"30,467.77",NURSERY ED GRANT 3 Y Y.0.,GRANTS,2102824459,11171932,
05.06.2018,CHILDREN'S SERVICES,REDRIFF PRIMARY SCHOOL,"67,635.00",NURSERY ED GRANT 3 Y Y.0.,GRANTS,2102824502,1000067877,
05.06.2018,CHILDREN'S SERVICES,DULWICH OAKS MONTESSORI NURSERY SCHOOL,"81,104.40",NURSERY ED GRANT 3 Y Y.0.,GRANTS,2102824458,1000070726,
05.06.2018,CHILDREN'S SERVICES,CATHERINE RUSHFORTH & ASSOCIATES,700.00,PRIMARY ACHIEVEMENT,CONSULTANTS SERVICES,5902305556,1000055976,
05.06.2018,CHILDREN'S SERVICES,CATHERINE RUSHFORTH & ASSOCIATES,"1,400.00",PRIMARY ACHIEVEMENT,CONSULTANTS SERVICES,5902305554,1000055976,
05.06.2018,CHILDREN'S SERVICES,MEADOWS CARE LTD,"1,020.00",RESIDENTIAL,RESIDENTIAL CARE,5902305600,1000077238,
05.06.2018,CHILDREN'S SERVICES,MEADOWS CARE LTD,"1,054.00",RESIDENTIAL,RESIDENTIAL CARE,5902305596,1000077238,
05.06.2018,CHILDREN'S SERVICES,HEARTWOOD OUTREACH SERVICES LTD,"11,625.00",RESIDENTIAL,RESIDENTIAL CARE,5902305608,1000075021,
05.06.2018,CHILDREN'S SERVICES,CITYGLEN LTD,870.00,S24 CLA,EXTERNAL AGENCIES AND BODIES,5902305561,1000026239,
05.06.2018,CHILDREN'S SERVICES,CITYGLEN LTD,"1,350.00",S24 CLA,EXTERNAL AGENCIES AND BODIES,5902305558,1000026239,
05.06.2018,CHILDREN'S SERVICES,FAMILY FOSTERING LTD,"1,461.43",S24 CLA,EXTERNAL AGENCIES AND BODIES,5902305594,1000075179,
05.06.2018,CHILDREN'S SERVICES,FAMILY FOSTERING LTD,"1,550.00",S24 CLA,EXTERNAL AGENCIES AND BODIES,5902305594,1000075179,
05.06.2018,CHILDREN'S SERVICES,REDACTED PERSONAL DATA,"1,462.00",UNIVERSITY SUPPORT,OTHER PAYMENTS FOR CLIENTS,REDACTED,REDACTED,
05.06.2018,COMMISSIONING & CENTRAL,OASIS AQUILA HOUSING,"24,714.75",SUPPORTING PEOPLE,EXTERNAL AGENCIES AND BODIES,5902305670,1000002184,
05.06.2018,COMMUNITIES,EDF ENERGY PLC,"1,093.31",TRA HALLS (REPAIRS),ELECTRICITY,5902305613,1008746,
05.06.2018,CUSTOMER EXPERIENCE HGF,CITY OF LONDON LIBRARIES & ART GALLERIES,350.00,CORONER'S,LEGAL FEES & COURT COSTS,5902305580,1000060358,
05.06.2018,CUSTOMER EXPERIENCE HGF,CITY OF LONDON LIBRARIES & ART GALLERIES,"11,456.25",CORONER'S,LEGAL FEES & COURT COSTS,5902305578,1000060358,
05.06.2018,CUSTOMER EXPERIENCE HGF,FRAMA (UK) LTD,700.00,CORONER'S,POSTAGES,5902305638,1000046489,
05.06.2018,CUSTOMER EXPERIENCE HGF,SOUTHSIDE REHABILITATION ASSN,630.00,REGISTRARS,CATERING MATERIALS & SUPPLIES,5902305687,1000017031,
05.06.2018,CUSTOMER EXPERIENCE HGF,SOUTHSIDE REHABILITATION ASSN,630.00,REGISTRARS,CATERING MATERIALS & SUPPLIES,5902305688,1000017031,
05.06.2018,DULWICH COMMUNITY COUNCIL,LINK AGE SOUTHWARK,"3,623.00",REDUCING SOCIAL ISOLATION FOR OLDER PEOPLE WITH DEMENTIA,GRANT,CHEQUE PAYMENT,CHEQUE PAYMENT,
05.06.2018,ENVIRONMENT AND LEISURE,CONWAY AECOM LTD,"25,241.15",CAPITAL PS (LEISURE),CONST'N MAIN CONTRACT - NON CERTIFICATED,2102824575,3000001595,
05.06.2018,ENVIRONMENT AND LEISURE,PREMIER SURVEYS,"4,210.00",CAPITAL PS (LEISURE),CONSTR'N SUB CONTRACT - NON CERTIFICATED,5902305551,1000075479,
05.06.2018,ENVIRONMENT AND LEISURE,CONWAY AECOM LTD,"22,463.03",CAPITAL PS (LEISURE),CONSTRUCTION,5902305644,1000071205,
05.06.2018,ENVIRONMENT AND LEISURE,SEVENOAKS ENVIRONMENTAL CONSULTANCY LTD,450.00,CAPITAL PS (LEISURE),CONSTRUCTION FEES  - EXTERNAL,5902305599,1000075742,
05.06.2018,ENVIRONMENT AND LEISURE,SEVENOAKS ENVIRONMENTAL CONSULTANCY LTD,675.00,CAPITAL PS (LEISURE),CONSTRUCTION FEES  - EXTERNAL,5902305591,1000075742,
05.06.2018,ENVIRONMENT AND LEISURE,PROPAGATING DAN,"1,200.00",CAPITAL PS (LEISURE),CONSTRUCTION FEES  - EXTERNAL,5902305597,1000076603,
05.06.2018,ENVIRONMENT AND LEISURE,PROPAGATING DAN,"1,283.00",CAPITAL PS (LEISURE),CONSTRUCTION FEES  - EXTERNAL,5902305583,1000076603,
05.06.2018,ENVIRONMENT AND LEISURE,CONWAY AECOM LTD,"1,650.00",CAPITAL PS (LEISURE),CONSTRUCTION MAIN CONTRACT,5902305636,1000071205,
05.06.2018,ENVIRONMENT AND LEISURE,PRELUDE PROPERTY SERVICES LTD,"23,856.25",CAPITAL PS (LEISURE),CONSTRUCTION MAIN CONTRACT -CERTIFICATED,2102824597,4010855,
05.06.2018,ENVIRONMENT AND LEISURE,PRELUDE PROPERTY SERVICES LTD,"23,856.25",CAPITAL PS (LEISURE),CONSTRUCTION MAIN CONTRACT -CERTIFICATED,2102824598,4010855,
05.06.2018,ENVIRONMENT AND LEISURE,PRELUDE PROPERTY SERVICES LTD,"23,856.25",CAPITAL PS (LEISURE),CONSTRUCTION MAIN CONTRACT -CERTIFICATED,2102824599,4010855,
05.06.2018,ENVIRONMENT DIRECTORATE,DAWSON RENTALS BUS & COACH LTD,335.00,COMMERCIAL VEH CTRL A/C,HIRED VEHICLES,5902305655,1000042174,
05.06.2018,ENVIRONMENT DIRECTORATE,DAWSON RENTALS BUS & COACH LTD,335.00,COMMERCIAL VEH CTRL A/C,HIRED VEHICLES,5902305661,1000042174,
05.06.2018,ENVIRONMENT DIRECTORATE,DAWSON RENTALS BUS & COACH LTD,335.00,COMMERCIAL VEH CTRL A/C,HIRED VEHICLES,5902305705,1000042174,
05.06.2018,ENVIRONMENT DIRECTORATE,DAWSON RENTALS BUS & COACH LTD,450.00,COMMERCIAL VEH CTRL A/C,HIRED VEHICLES,5902305697,1000042174,
05.06.2018,ENVIRONMENT DIRECTORATE,R J MOTORS LIMITED,294.00,COMMERCIAL VEH CTRL A/C,VEHICLE REPAIRS & MAINTENANCE,5902305568,1000047106,
05.06.2018,ENVIRONMENT DIRECTORATE,R J MOTORS LIMITED,294.00,COMMERCIAL VEH CTRL A/C,VEHICLE REPAIRS & MAINTENANCE,5902305573,1000047106,
05.06.2018,ENVIRONMENT DIRECTORATE,R J MOTORS LIMITED,392.00,COMMERCIAL VEH CTRL A/C,VEHICLE REPAIRS & MAINTENANCE,5902305571,1000047106,
05.06.2018,ENVIRONMENT DIRECTORATE,CONWAY AECOM LTD,"1,994.30",PARKING OVERHEADS,OTHER CONTRACTORS,2102824570,3000001595,
05.06.2018,ENVIRONMENT DIRECTORATE,CONWAY AECOM LTD,"5,826.12",PARKING OVERHEADS,OTHER CONTRACTORS,2102824569,3000001595,
05.06.2018,ENVIRONMENT DIRECTORATE,SOUTHWARK NEWSPAPER LTD,528.00,PROJECT SUPPORT,MARKETING & PUBLICITY SERVICES,5902305647,1556957,
05.06.2018,ENVIRONMENT DIRECTORATE,SOUTHWARK NEWSPAPER LTD,960.00,PROJECT SUPPORT,MARKETING & PUBLICITY SERVICES,5902305648,1556957,
05.06.2018,ENVIRONMENT DIRECTORATE,ATG ACCESS LTD,"3,131.83",PUBLIC LIGHTING,OTHER CONTRACTORS,5902305702,1000070530,
05.06.2018,ENVIRONMENT DIRECTORATE,CROWN OIL UK,"1,125.00",SANDGATE STREET,VEHICLE FUEL,5902305595,1000074865,
05.06.2018,F & C S EXCLUDING CORPORATE BUDGETS,HAMBURY TILMOND LTD,823.73,FC&P CONTROL,OFFICE EXPENSES,5902305671,1000073229,
05.06.2018,F & C S EXCLUDING CORPORATE BUDGETS,TFL TELESALES / OYSTER FULFILMENT,630.00,LEGAL SVCES MANAGEMENT,PUBLIC TRANSPORT,5902305575,1000059727,
05.06.2018,F & C S EXCLUDING CORPORATE BUDGETS,OD CONSULTANCY LTD,"12,000.00",LEGAL SVCES MANAGEMENT,SOFTWARE,5902305677,1000077154,
05.06.2018,F & C S EXCLUDING CORPORATE BUDGETS,SOFTWARE TRAINING LONDON LTD,480.00,LEGAL SVCES MANAGEMENT,TRAINING,5902305679,1000051334,
05.06.2018,HOUSING GENERAL FUND,INTERSERVE (FACILITIES MANAGEMENT),"1,325.85",CAPITAL PS (REGEN),CONSTRUCTION,2102824591,3000000166,
05.06.2018,HOUSING GENERAL FUND,INTERSERVE (FACILITIES MANAGEMENT),"2,651.71",CAPITAL PS (REGEN),CONSTRUCTION,2102824590,3000000166,
05.06.2018,HOUSING GENERAL FUND,INTERSERVE (FACILITIES MANAGEMENT),"9,280.98",CAPITAL PS (REGEN),CONSTRUCTION,2102824589,3000000166,
05.06.2018,HOUSING HRA,L H BRIDGE LTD,700.00,CAPITAL PS (HRA),CONST'N MAIN CONTRACT - NON CERTIFICATED,2102824594,3000001167,
05.06.2018,HOUSING HRA,L H BRIDGE LTD,"1,200.00",CAPITAL PS (HRA),CONST'N MAIN CONTRACT - NON CERTIFICATED,2102824593,3000001167,
05.06.2018,HOUSING HRA,L H BRIDGE LTD,"5,075.00",CAPITAL PS (HRA),CONST'N MAIN CONTRACT - NON CERTIFICATED,2102824595,3000001167,
05.06.2018,HOUSING HRA,C&C BUILDERS LTD,"6,245.00",CAPITAL PS (HRA),CONST'N MAIN CONTRACT - NON CERTIFICATED,2102824568,3000001986,
05.06.2018,HOUSING HRA,C&C BUILDERS LTD,"6,395.00",CAPITAL PS (HRA),CONST'N MAIN CONTRACT - NON CERTIFICATED,2102824567,3000001986,
05.06.2018,HOUSING HRA,PRB ESTATES LTD,"6,578.72",CAPITAL PS (HRA),CONST'N MAIN CONTRACT - NON CERTIFICATED,2102824600,3000001691,
05.06.2018,HOUSING HRA,PRB ESTATES LTD,"8,730.00",CAPITAL PS (HRA),CONST'N MAIN CONTRACT - NON CERTIFICATED,2102824601,3000001691,
05.06.2018,HOUSING HRA,POTTER RAPER AND PARTNERS,729.21,CAPITAL PS (HRA),CONSTRUCTION FEES  - EXTERNAL,5902305700,1009369,
05.06.2018,HOUSING HRA,TOGA FIRE LTD,750.00,CAPITAL PS (HRA),CONSTRUCTION FEES  - EXTERNAL,5902305612,1000080207,
05.06.2018,HOUSING HRA,POTTER RAPER AND PARTNERS,"1,701.50",CAPITAL PS (HRA),CONSTRUCTION FEES  - EXTERNAL,5902305700,1009369,
05.06.2018,HOUSING HRA,ENGIE REGENERATION (APOLLO) LTD,"29,922.84",CAPITAL PS (HRA),CONSTRUCTION MAIN CONTRACT -CERTIFICATED,2102824578,4000449,
05.06.2018,HOUSING HRA,MITIE PROPERTY SERVICES (UK) LTD,"50,787.50",CAPITAL PS (HRA),CONSTRUCTION MAIN CONTRACT -CERTIFICATED,2102824596,4010766,
05.06.2018,HOUSING HRA,ENGIE REGENERATION (APOLLO) LTD,"63,791.87",CAPITAL PS (HRA),CONSTRUCTION MAIN CONTRACT -CERTIFICATED,2102824580,4000449,
05.06.2018,HOUSING HRA,ENGIE REGENERATION (APOLLO) LTD,"217,171.97",CAPITAL PS (HRA),CONSTRUCTION MAIN CONTRACT -CERTIFICATED,2102824581,4000449,
05.06.2018,HOUSING HRA,ENGIE REGENERATION (APOLLO) LTD,"323,155.60",CAPITAL PS (HRA),CONSTRUCTION MAIN CONTRACT -CERTIFICATED,2102824579,4000449,
05.06.2018,HOUSING HRA,ENGIE REGENERATION (APOLLO) LTD,"337,279.40",CAPITAL PS (HRA),CONSTRUCTION MAIN CONTRACT -CERTIFICATED,2102824577,4000449,
05.06.2018,HOUSING STRATEGY AND OPTIONS,NOWMEDICAL LTD,"3,998.00",HOMELESS & HOUSING OPTIONS MGT,PROFESSIONAL FEES,5902305689,1000068185,
05.06.2018,HOUSING STRATEGY AND OPTIONS,FRESHVIEW ESTATES LTD,"1,300.00",HOMELESS PROJECTS,GRANTS,5902305637,1000081189,
05.06.2018,HOUSING STRATEGY AND OPTIONS,PHASES SOCIAL ENTERPRISE,"3,000.00",HOMELESS PROJECTS,GRANTS,5902305664,1000060608,
05.06.2018,HOUSING STRATEGY AND OPTIONS,SHELTER TRAINING LTD,"4,590.00",HOMELESSNESS TRAINING ACADEMY,TRAINING,5902305611,1000033177,
05.06.2018,LEISURE DIRECTORATE,CASTLE WATER LTD,534.52,CANADA WATER LIBRARY,WATER,5902305640,1000078867,
05.06.2018,LEISURE DIRECTORATE,G4S CASH SERVICES (UK) LTD,427.02,LIBARIES DEVELOPMENT,SECURITY SERVICES,5902305564,1420519,
05.06.2018,LEISURE DIRECTORATE,SEASAFE SYSTEMS LTD,"1,673.03",SDM BUDGET,"CLOTHING, UNIFORMS & LAUNDRY",5902305685,1000069966,
05.06.2018,LEISURE DIRECTORATE,THAMES MARINE SERVICES LTD,308.20,SDM BUDGET,RECHARGED VEHICLE COSTS,5902305691,1000077273,
05.06.2018,LEISURE DIRECTORATE,EDF ENERGY PLC,"1,297.15",TEMPORARY NEWINGTON,ELECTRICITY,5902305642,1008746,
05.06.2018,MODERNISATION HGF,SYED & QUINN LTD,500.00,ADULTS MULTI-AGENCY SAFEGUARDING TRNG,TRAINING,5902305576,1000029554,
05.06.2018,MODERNISATION HGF,SYED & QUINN LTD,500.00,ADULTS MULTI-AGENCY SAFEGUARDING TRNG,TRAINING,5902305577,1000029554,
05.06.2018,MODERNISATION HGF,SYED & QUINN LTD,500.00,ASW - PROFESSIONAL DEVELOPMENT,TRAINING,5902305582,1000029554,
05.06.2018,MODERNISATION HGF,SYED & QUINN LTD,500.00,ASW - PROFESSIONAL DEVELOPMENT,TRAINING,5902305593,1000029554,
05.06.2018,MODERNISATION HGF,SYED & QUINN LTD,500.00,ASW - PROFESSIONAL DEVELOPMENT,TRAINING,5902305604,1000029554,
05.06.2018,MODERNISATION HGF,THE ART OF WORK,"1,022.80",CORPORATE TRAINING BUDGETS,TRAINING,5902305698,1000080974,
05.06.2018,MODERNISATION HGF,THE ART OF WORK,"1,904.80",CORPORATE TRAINING BUDGETS,TRAINING,5902305693,1000080974,
05.06.2018,MODERNISATION HGF,IRON MOUNTAIN (UK) LTD,"8,381.39",REPAIR AND MAINTENANCE SERVICES,INFORMATION MANAGEMENT,5902305682,1000078591,
05.06.2018,PECKHAM AND NUNHEAD COMMUNITY COUNCIL,FRIENDS OF NUNHEAD CEMETERY - BRITAIN,"1,300.00",,GRANT,CHEQUE PAYMENT,CHEQUE PAYMENT,
05.06.2018,PECKHAM AND NUNHEAD COMMUNITY COUNCIL,THE FRIENDS OF KELLY AVENUE PARK,"1,600.00",,GRANT,CHEQUE PAYMENT,CHEQUE PAYMENT,
05.06.2018,PECKHAM AND NUNHEAD COMMUNITY COUNCIL,LITTLE PEOPLE�S WORLD,"3,000.00",HOLIDAY ACTIVITIES,GRANT,CHEQUE PAYMENT,CHEQUE PAYMENT,
05.06.2018,PECKHAM AND NUNHEAD COMMUNITY COUNCIL,BELLS GARDENS T&RA,"2,400.00",STEP UP AND STEP IN,GRANT,CHEQUE PAYMENT,CHEQUE PAYMENT,
05.06.2018,RESIDENT SERVICES,EDF ENERGY PLC,348.34,OPERATIONS/OFFICES ACCOMMODATION,ELECTRICITY,5902305692,1008746,
05.06.2018,RESIDENT SERVICES,HARROW GREEN LTD,270.80,OPERATIONS/OFFICES ACCOMMODATION,REMOVAL EXPENSES,5902305628,1000076673,
05.06.2018,RESIDENT SERVICES,HARROW GREEN LTD,271.60,OPERATIONS/OFFICES ACCOMMODATION,REMOVAL EXPENSES,5902305626,1000076673,
05.06.2018,RESIDENT SERVICES,HARROW GREEN LTD,717.23,OPERATIONS/OFFICES ACCOMMODATION,REMOVAL EXPENSES,5902305657,1000076673,
05.06.2018,RESIDENT SERVICES,HARROW GREEN LTD,931.87,OPERATIONS/OFFICES ACCOMMODATION,REMOVAL EXPENSES,5902305605,1000076673,
05.06.2018,RESIDENT SERVICES,HARROW GREEN LTD,"1,078.40",OPERATIONS/OFFICES ACCOMMODATION,REMOVAL EXPENSES,5902305625,1000076673,
05.06.2018,RESIDENT SERVICES,HARROW GREEN LTD,"1,750.20",OPERATIONS/OFFICES ACCOMMODATION,REMOVAL EXPENSES,5902305624,1000076673,
05.06.2018,RESIDENT SERVICES,HARROW GREEN LTD,"3,251.88",OPERATIONS/OFFICES ACCOMMODATION,REMOVAL EXPENSES,5902305627,1000076673,
05.06.2018,RESIDENT SERVICES,HARROW GREEN LTD,"4,911.12",OPERATIONS/OFFICES ACCOMMODATION,REMOVAL EXPENSES,5902305622,1000076673,
05.06.2018,RESIDENT SERVICES,HARROW GREEN LTD,"6,434.07",OPERATIONS/OFFICES ACCOMMODATION,REMOVAL EXPENSES,5902305657,1000076673,
05.06.2018,RESIDENT SERVICES,HARROW GREEN LTD,"10,025.10",OPERATIONS/OFFICES ACCOMMODATION,REMOVAL EXPENSES,5902305605,1000076673,
05.06.2018,RESIDENT SERVICES,HARROW GREEN LTD,"10,800.48",OPERATIONS/OFFICES ACCOMMODATION,REMOVAL EXPENSES,5902305623,1000076673,
05.06.2018,RESIDENT SERVICES,THAMES WATER UTILITIES LTD,358.74,TA HOSTELS,WATER,5902305552,1630755,
05.06.2018,RESIDENT SERVICES,WILLOW ESTATE AGENTS (LONDON) LTD,"1,080.00",TA PLACEMENTS,EXTERNAL AGENCIES AND BODIES,5902305590,1000060607,
05.06.2018,SCRUTINY,JAMIE SIMONDS PHOTOGRAPHY,"1,000.00",MEMBERS EXPENSES,MARKETING & PUBLICITY SERVICES,5902305592,1000052865,
05.06.2018,SOUTHWARK BUILDING SERVICES,DUCTCLEAN (UK) LTD,"21,706.72",DUCTCLEAN,MANUAL CREDITORS,2102824576,3000001635,
05.06.2018,SOUTHWARK BUILDING SERVICES,A T & T (GB LTD ),"2,640.00",STORES/LOGISTICS,CREDITORS -GR/IR CLEARING ACCOUNT,5902305645,1000078342,
06.06.2018,ADULT SOCIAL CARE,LONDON CARE LTD,"-39,818.57",EXTRA CARE CONTRACT,HOMECARE - C&V,5902306214,1000081144,
06.06.2018,ADULT SOCIAL CARE,LONDON CARE LTD,"-38,093.10",EXTRA CARE CONTRACT,HOMECARE - C&V,5902306215,1000081144,
06.06.2018,ADULT SOCIAL CARE,LONDON CARE LTD,"-26,811.17",EXTRA CARE CONTRACT,HOMECARE - C&V,5902306216,1000081144,
06.06.2018,ADULT SOCIAL CARE,LONDON CARE LTD,"26,811.17",EXTRA CARE CONTRACT,HOMECARE - C&V,5902303559,1000081144,
06.06.2018,ADULT SOCIAL CARE,LONDON CARE LTD,"38,093.10",EXTRA CARE CONTRACT,HOMECARE - C&V,5902303563,1000081144,
06.06.2018,ADULT SOCIAL CARE,LONDON CARE LTD,"39,818.57",EXTRA CARE CONTRACT,HOMECARE - C&V,5902303596,1000081144,
06.06.2018,ADULT SOCIAL CARE,LONDON CARE LTD,437.58,LD LTS 18-64,HOMECARE - C&V,2102825730,1000003398,
06.06.2018,ADULT SOCIAL CARE,LONDON CARE LTD,369.96,MEM LTS 18-64,HOMECARE - C&V,2102825782,1000003398,
06.06.2018,ADULT SOCIAL CARE,LONDON CARE LTD,756.60,MEM LTS 18-64,HOMECARE - C&V,2102825750,1000003398,
06.06.2018,ADULT SOCIAL CARE,LONDON CARE LTD,302.67,MEM LTS 65+,HOMECARE - C&V,2102825758,1000003398,
06.06.2018,ADULT SOCIAL CARE,LONDON CARE LTD,496.13,MEM LTS 65+,HOMECARE - C&V,2102825814,1000003398,
06.06.2018,ADULT SOCIAL CARE,LONDON CARE LTD,"1,177.08",MEM LTS 65+,HOMECARE - C&V,2102825891,1000003398,
06.06.2018,ADULT SOCIAL CARE,LONDON CARE LTD,"2,320.62",MEM LTS 65+,HOMECARE - C&V,2102825736,1000003398,
06.06.2018,ADULT SOCIAL CARE,LONDON CARE LTD,504.44,MH LTS 18-64,HOMECARE - C&V,2102825788,1000003398,
06.06.2018,ADULT SOCIAL CARE,LONDON CARE LTD,580.15,MH LTS 65+,HOMECARE - C&V,2102825801,1000003398,
06.06.2018,ADULT SOCIAL CARE,LONDON CARE LTD,260.68,PHY LTS 18-64,HOMECARE - C&V,2102825760,1000003398,
06.06.2018,ADULT SOCIAL CARE,LONDON CARE LTD,285.86,PHY LTS 18-64,HOMECARE - C&V,2102825919,1000003398,
06.06.2018,ADULT SOCIAL CARE,LONDON CARE LTD,353.04,PHY LTS 18-64,HOMECARE - C&V,2102825767,1000003398,
06.06.2018,ADULT SOCIAL CARE,LONDON CARE LTD,353.08,PHY LTS 18-64,HOMECARE - C&V,2102825854,1000003398,
06.06.2018,ADULT SOCIAL CARE,YOUTH GRACES (UK) LTD,358.52,PHY LTS 18-64,HOMECARE - C&V,2102825725,1000072524,
06.06.2018,ADULT SOCIAL CARE,LONDON CARE LTD,361.11,PHY LTS 18-64,HOMECARE - C&V,2102825818,1000003398,
06.06.2018,ADULT SOCIAL CARE,LONDON CARE LTD,470.75,PHY LTS 18-64,HOMECARE - C&V,2102825915,1000003398,
06.06.2018,ADULT SOCIAL CARE,LONDON CARE LTD,487.52,PHY LTS 18-64,HOMECARE - C&V,2102825762,1000003398,
06.06.2018,ADULT SOCIAL CARE,LONDON CARE LTD,521.24,PHY LTS 18-64,HOMECARE - C&V,2102825793,1000003398,
06.06.2018,ADULT SOCIAL CARE,LONDON CARE LTD,533.99,PHY LTS 18-64,HOMECARE - C&V,2102825739,1000003398,
06.06.2018,ADULT SOCIAL CARE,LONDON CARE LTD,538.10,PHY LTS 18-64,HOMECARE - C&V,2102825868,1000003398,
06.06.2018,ADULT SOCIAL CARE,LONDON CARE LTD,554.83,PHY LTS 18-64,HOMECARE - C&V,2102825898,1000003398,
06.06.2018,ADULT SOCIAL CARE,LONDON CARE LTD,571.84,PHY LTS 18-64,HOMECARE - C&V,2102825827,1000003398,
06.06.2018,ADULT SOCIAL CARE,LONDON CARE LTD,588.56,PHY LTS 18-64,HOMECARE - C&V,2102825913,1000003398,
06.06.2018,ADULT SOCIAL CARE,LONDON CARE LTD,605.28,PHY LTS 18-64,HOMECARE - C&V,2102825830,1000003398,
06.06.2018,ADULT SOCIAL CARE,LONDON CARE LTD,617.95,PHY LTS 18-64,HOMECARE - C&V,2102825820,1000003398,
06.06.2018,ADULT SOCIAL CARE,LONDON CARE LTD,622.20,PHY LTS 18-64,HOMECARE - C&V,2102825890,1000003398,
06.06.2018,ADULT SOCIAL CARE,LONDON CARE LTD,651.61,PHY LTS 18-64,HOMECARE - C&V,2102825875,1000003398,
06.06.2018,ADULT SOCIAL CARE,LONDON CARE LTD,664.11,PHY LTS 18-64,HOMECARE - C&V,2102825861,1000003398,
06.06.2018,ADULT SOCIAL CARE,LONDON CARE LTD,672.40,PHY LTS 18-64,HOMECARE - C&V,2102825923,1000003398,
06.06.2018,ADULT SOCIAL CARE,LONDON CARE LTD,676.79,PHY LTS 18-64,HOMECARE - C&V,2102825766,1000003398,
06.06.2018,ADULT SOCIAL CARE,LONDON CARE LTD,681.05,PHY LTS 18-64,HOMECARE - C&V,2102825905,1000003398,
06.06.2018,ADULT SOCIAL CARE,LONDON CARE LTD,706.16,PHY LTS 18-64,HOMECARE - C&V,2102825888,1000003398,
06.06.2018,ADULT SOCIAL CARE,LONDON CARE LTD,756.59,PHY LTS 18-64,HOMECARE - C&V,2102825776,1000003398,
06.06.2018,ADULT SOCIAL CARE,LONDON CARE LTD,886.84,PHY LTS 18-64,HOMECARE - C&V,2102825761,1000003398,
06.06.2018,ADULT SOCIAL CARE,LONDON CARE LTD,886.99,PHY LTS 18-64,HOMECARE - C&V,2102825781,1000003398,
06.06.2018,ADULT SOCIAL CARE,LONDON CARE LTD,899.79,PHY LTS 18-64,HOMECARE - C&V,2102825757,1000003398,
06.06.2018,ADULT SOCIAL CARE,LONDON CARE LTD,904.80,PHY LTS 18-64,HOMECARE - C&V,2102825867,1000003398,
06.06.2018,ADULT SOCIAL CARE,LONDON CARE LTD,916.51,PHY LTS 18-64,HOMECARE - C&V,2102825849,1000003398,
06.06.2018,ADULT SOCIAL CARE,LONDON CARE LTD,941.60,PHY LTS 18-64,HOMECARE - C&V,2102825872,1000003398,
06.06.2018,ADULT SOCIAL CARE,LONDON CARE LTD,"1,109.73",PHY LTS 18-64,HOMECARE - C&V,2102825811,1000003398,
06.06.2018,ADULT SOCIAL CARE,LONDON CARE LTD,"1,496.24",PHY LTS 18-64,HOMECARE - C&V,2102825754,1000003398,
06.06.2018,ADULT SOCIAL CARE,LONDON CARE LTD,"1,735.90",PHY LTS 18-64,HOMECARE - C&V,2102825824,1000003398,
06.06.2018,ADULT SOCIAL CARE,LONDON CARE LTD,"2,303.79",PHY LTS 18-64,HOMECARE - C&V,2102825863,1000003398,
06.06.2018,ADULT SOCIAL CARE,LONDON CARE LTD,"2,329.02",PHY LTS 18-64,HOMECARE - C&V,2102825822,1000003398,
06.06.2018,ADULT SOCIAL CARE,LONDON CARE LTD,327.86,PHY LTS 18-64,HOMECARE - SPOT,2102825742,1000003398,
06.06.2018,ADULT SOCIAL CARE,LONDON CARE LTD,605.39,PHY LTS 18-64,HOMECARE - SPOT,2102825744,1000003398,
06.06.2018,ADULT SOCIAL CARE,LONDON CARE LTD,252.12,PHY LTS 65+,HOMECARE - C&V,2102825894,1000003398,
06.06.2018,ADULT SOCIAL CARE,LONDON CARE LTD,277.42,PHY LTS 65+,HOMECARE - C&V,2102825858,1000003398,
06.06.2018,ADULT SOCIAL CARE,LONDON CARE LTD,285.80,PHY LTS 65+,HOMECARE - C&V,2102825841,1000003398,
06.06.2018,ADULT SOCIAL CARE,LONDON CARE LTD,294.30,PHY LTS 65+,HOMECARE - C&V,2102825807,1000003398,
06.06.2018,ADULT SOCIAL CARE,LONDON CARE LTD,315.30,PHY LTS 65+,HOMECARE - C&V,2102825791,1000003398,
06.06.2018,ADULT SOCIAL CARE,LONDON CARE LTD,336.20,PHY LTS 65+,HOMECARE - C&V,2102825733,1000003398,
06.06.2018,ADULT SOCIAL CARE,LONDON CARE LTD,353.08,PHY LTS 65+,HOMECARE - C&V,2102825735,1000003398,
06.06.2018,ADULT SOCIAL CARE,LONDON CARE LTD,353.08,PHY LTS 65+,HOMECARE - C&V,2102825850,1000003398,
06.06.2018,ADULT SOCIAL CARE,LONDON CARE LTD,353.08,PHY LTS 65+,HOMECARE - C&V,2102825862,1000003398,
06.06.2018,ADULT SOCIAL CARE,LONDON CARE LTD,353.08,PHY LTS 65+,HOMECARE - C&V,2102825902,1000003398,
06.06.2018,ADULT SOCIAL CARE,LONDON CARE LTD,353.08,PHY LTS 65+,HOMECARE - C&V,2102825907,1000003398,
06.06.2018,ADULT SOCIAL CARE,LONDON CARE LTD,353.08,PHY LTS 65+,HOMECARE - C&V,2102825921,1000003398,
06.06.2018,ADULT SOCIAL CARE,LONDON CARE LTD,361.62,PHY LTS 65+,HOMECARE - C&V,2102825912,1000003398,
06.06.2018,ADULT SOCIAL CARE,LONDON CARE LTD,369.82,PHY LTS 65+,HOMECARE - C&V,2102825889,1000003398,
06.06.2018,ADULT SOCIAL CARE,LONDON CARE LTD,369.82,PHY LTS 65+,HOMECARE - C&V,2102825896,1000003398,
06.06.2018,ADULT SOCIAL CARE,LONDON CARE LTD,378.30,PHY LTS 65+,HOMECARE - C&V,2102825835,1000003398,
06.06.2018,ADULT SOCIAL CARE,LONDON CARE LTD,403.44,PHY LTS 65+,HOMECARE - C&V,2102825845,1000003398,
06.06.2018,ADULT SOCIAL CARE,LONDON CARE LTD,412.06,PHY LTS 65+,HOMECARE - C&V,2102825878,1000003398,
06.06.2018,ADULT SOCIAL CARE,LONDON CARE LTD,420.40,PHY LTS 65+,HOMECARE - C&V,2102825823,1000003398,
06.06.2018,ADULT SOCIAL CARE,LONDON CARE LTD,428.91,PHY LTS 65+,HOMECARE - C&V,2102825833,1000003398,
06.06.2018,ADULT SOCIAL CARE,LONDON CARE LTD,451.91,PHY LTS 65+,HOMECARE - C&V,2102825764,1000003398,
06.06.2018,ADULT SOCIAL CARE,LONDON CARE LTD,462.55,PHY LTS 65+,HOMECARE - C&V,2102825734,1000003398,
06.06.2018,ADULT SOCIAL CARE,LONDON CARE LTD,470.96,PHY LTS 65+,HOMECARE - C&V,2102825864,1000003398,
06.06.2018,ADULT SOCIAL CARE,LONDON CARE LTD,470.96,PHY LTS 65+,HOMECARE - C&V,2102825909,1000003398,
06.06.2018,ADULT SOCIAL CARE,LONDON CARE LTD,470.96,PHY LTS 65+,HOMECARE - C&V,2102825930,1000003398,
06.06.2018,ADULT SOCIAL CARE,LONDON CARE LTD,487.56,PHY LTS 65+,HOMECARE - C&V,2102825832,1000003398,
06.06.2018,ADULT SOCIAL CARE,LONDON CARE LTD,512.89,PHY LTS 65+,HOMECARE - C&V,2102825856,1000003398,
06.06.2018,ADULT SOCIAL CARE,LONDON CARE LTD,516.83,PHY LTS 65+,HOMECARE - C&V,2102825899,1000003398,
06.06.2018,ADULT SOCIAL CARE,LONDON CARE LTD,538.20,PHY LTS 65+,HOMECARE - C&V,2102825853,1000003398,
06.06.2018,ADULT SOCIAL CARE,LONDON CARE LTD,563.45,PHY LTS 65+,HOMECARE - C&V,2102825808,1000003398,
06.06.2018,ADULT SOCIAL CARE,LONDON CARE LTD,571.72,PHY LTS 65+,HOMECARE - C&V,2102825759,1000003398,
06.06.2018,ADULT SOCIAL CARE,LONDON CARE LTD,571.84,PHY LTS 65+,HOMECARE - C&V,2102825873,1000003398,
06.06.2018,ADULT SOCIAL CARE,LONDON CARE LTD,575.95,PHY LTS 65+,HOMECARE - C&V,2102825851,1000003398,
06.06.2018,ADULT SOCIAL CARE,LONDON CARE LTD,580.15,PHY LTS 65+,HOMECARE - C&V,2102825839,1000003398,
06.06.2018,ADULT SOCIAL CARE,LONDON CARE LTD,588.56,PHY LTS 65+,HOMECARE - C&V,2102825732,1000003398,
06.06.2018,ADULT SOCIAL CARE,LONDON CARE LTD,588.56,PHY LTS 65+,HOMECARE - C&V,2102825777,1000003398,
06.06.2018,ADULT SOCIAL CARE,LONDON CARE LTD,588.56,PHY LTS 65+,HOMECARE - C&V,2102825871,1000003398,
06.06.2018,ADULT SOCIAL CARE,LONDON CARE LTD,595.92,PHY LTS 65+,HOMECARE - C&V,2102825927,1000003398,
06.06.2018,ADULT SOCIAL CARE,LONDON CARE LTD,597.03,PHY LTS 65+,HOMECARE - C&V,2102825847,1000003398,
06.06.2018,ADULT SOCIAL CARE,LONDON CARE LTD,597.07,PHY LTS 65+,HOMECARE - C&V,2102825859,1000003398,
06.06.2018,ADULT SOCIAL CARE,LONDON CARE LTD,605.16,PHY LTS 65+,HOMECARE - C&V,2102825796,1000003398,
06.06.2018,ADULT SOCIAL CARE,LONDON CARE LTD,605.44,PHY LTS 65+,HOMECARE - C&V,2102825925,1000003398,
06.06.2018,ADULT SOCIAL CARE,LONDON CARE LTD,639.00,PHY LTS 65+,HOMECARE - C&V,2102825897,1000003398,
06.06.2018,ADULT SOCIAL CARE,LONDON CARE LTD,655.80,PHY LTS 65+,HOMECARE - C&V,2102825746,1000003398,
06.06.2018,ADULT SOCIAL CARE,LONDON CARE LTD,664.21,PHY LTS 65+,HOMECARE - C&V,2102825769,1000003398,
06.06.2018,ADULT SOCIAL CARE,LONDON CARE LTD,685.20,PHY LTS 65+,HOMECARE - C&V,2102825798,1000003398,
06.06.2018,ADULT SOCIAL CARE,LONDON CARE LTD,689.35,PHY LTS 65+,HOMECARE - C&V,2102825874,1000003398,
06.06.2018,ADULT SOCIAL CARE,LONDON CARE LTD,689.62,PHY LTS 65+,HOMECARE - C&V,2102825908,1000003398,
06.06.2018,ADULT SOCIAL CARE,LONDON CARE LTD,706.44,PHY LTS 65+,HOMECARE - C&V,2102825755,1000003398,
06.06.2018,ADULT SOCIAL CARE,LONDON CARE LTD,723.12,PHY LTS 65+,HOMECARE - C&V,2102825903,1000003398,
06.06.2018,ADULT SOCIAL CARE,LONDON CARE LTD,723.14,PHY LTS 65+,HOMECARE - C&V,2102825803,1000003398,
06.06.2018,ADULT SOCIAL CARE,LONDON CARE LTD,757.71,PHY LTS 65+,HOMECARE - C&V,2102825784,1000003398,
06.06.2018,ADULT SOCIAL CARE,LONDON CARE LTD,773.40,PHY LTS 65+,HOMECARE - C&V,2102825929,1000003398,
06.06.2018,ADULT SOCIAL CARE,LONDON CARE LTD,790.20,PHY LTS 65+,HOMECARE - C&V,2102825770,1000003398,
06.06.2018,ADULT SOCIAL CARE,LONDON CARE LTD,807.04,PHY LTS 65+,HOMECARE - C&V,2102825768,1000003398,
06.06.2018,ADULT SOCIAL CARE,LONDON CARE LTD,807.30,PHY LTS 65+,HOMECARE - C&V,2102825825,1000003398,
06.06.2018,ADULT SOCIAL CARE,LONDON CARE LTD,811.40,PHY LTS 65+,HOMECARE - C&V,2102825785,1000003398,
06.06.2018,ADULT SOCIAL CARE,LONDON CARE LTD,815.59,PHY LTS 65+,HOMECARE - C&V,2102825774,1000003398,
06.06.2018,ADULT SOCIAL CARE,LONDON CARE LTD,840.57,PHY LTS 65+,HOMECARE - C&V,2102825843,1000003398,
06.06.2018,ADULT SOCIAL CARE,LONDON CARE LTD,840.64,PHY LTS 65+,HOMECARE - C&V,2102825920,1000003398,
06.06.2018,ADULT SOCIAL CARE,LONDON CARE LTD,840.84,PHY LTS 65+,HOMECARE - C&V,2102825752,1000003398,
06.06.2018,ADULT SOCIAL CARE,LONDON CARE LTD,874.50,PHY LTS 65+,HOMECARE - C&V,2102825780,1000003398,
06.06.2018,ADULT SOCIAL CARE,LONDON CARE LTD,878.67,PHY LTS 65+,HOMECARE - C&V,2102825836,1000003398,
06.06.2018,ADULT SOCIAL CARE,LONDON CARE LTD,891.28,PHY LTS 65+,HOMECARE - C&V,2102825879,1000003398,
06.06.2018,ADULT SOCIAL CARE,LONDON CARE LTD,896.85,PHY LTS 65+,HOMECARE - C&V,2102825799,1000003398,
06.06.2018,ADULT SOCIAL CARE,LONDON CARE LTD,908.02,PHY LTS 65+,HOMECARE - C&V,2102825797,1000003398,
06.06.2018,ADULT SOCIAL CARE,LONDON CARE LTD,908.11,PHY LTS 65+,HOMECARE - C&V,2102825745,1000003398,
06.06.2018,ADULT SOCIAL CARE,LONDON CARE LTD,924.88,PHY LTS 65+,HOMECARE - C&V,2102825837,1000003398,
06.06.2018,ADULT SOCIAL CARE,LONDON CARE LTD,924.92,PHY LTS 65+,HOMECARE - C&V,2102825893,1000003398,
06.06.2018,ADULT SOCIAL CARE,LONDON CARE LTD,924.92,PHY LTS 65+,HOMECARE - C&V,2102825901,1000003398,
06.06.2018,ADULT SOCIAL CARE,LONDON CARE LTD,929.08,PHY LTS 65+,HOMECARE - C&V,2102825786,1000003398,
06.06.2018,ADULT SOCIAL CARE,LONDON CARE LTD,941.36,PHY LTS 65+,HOMECARE - C&V,2102825918,1000003398,
06.06.2018,ADULT SOCIAL CARE,LONDON CARE LTD,941.64,PHY LTS 65+,HOMECARE - C&V,2102825773,1000003398,
06.06.2018,ADULT SOCIAL CARE,LONDON CARE LTD,941.64,PHY LTS 65+,HOMECARE - C&V,2102825789,1000003398,
06.06.2018,ADULT SOCIAL CARE,LONDON CARE LTD,941.92,PHY LTS 65+,HOMECARE - C&V,2102825775,1000003398,
06.06.2018,ADULT SOCIAL CARE,LONDON CARE LTD,975.24,PHY LTS 65+,HOMECARE - C&V,2102825753,1000003398,
06.06.2018,ADULT SOCIAL CARE,LONDON CARE LTD,988.52,PHY LTS 65+,HOMECARE - C&V,2102825792,1000003398,
06.06.2018,ADULT SOCIAL CARE,LONDON CARE LTD,"1,008.88",PHY LTS 65+,HOMECARE - C&V,2102825852,1000003398,
06.06.2018,ADULT SOCIAL CARE,LONDON CARE LTD,"1,034.29",PHY LTS 65+,HOMECARE - C&V,2102825926,1000003398,
06.06.2018,ADULT SOCIAL CARE,LONDON CARE LTD,"1,035.43",PHY LTS 65+,HOMECARE - C&V,2102825869,1000003398,
06.06.2018,ADULT SOCIAL CARE,LONDON CARE LTD,"1,101.35",PHY LTS 65+,HOMECARE - C&V,2102825779,1000003398,
06.06.2018,ADULT SOCIAL CARE,LONDON CARE LTD,"1,109.76",PHY LTS 65+,HOMECARE - C&V,2102825880,1000003398,
06.06.2018,ADULT SOCIAL CARE,LONDON CARE LTD,"1,210.67",PHY LTS 65+,HOMECARE - C&V,2102825860,1000003398,
06.06.2018,ADULT SOCIAL CARE,LONDON CARE LTD,"1,210.76",PHY LTS 65+,HOMECARE - C&V,2102825887,1000003398,
06.06.2018,ADULT SOCIAL CARE,LONDON CARE LTD,"1,235.99",PHY LTS 65+,HOMECARE - C&V,2102825826,1000003398,
06.06.2018,ADULT SOCIAL CARE,LONDON CARE LTD,"1,252.92",PHY LTS 65+,HOMECARE - C&V,2102825812,1000003398,
06.06.2018,ADULT SOCIAL CARE,LONDON CARE LTD,"1,278.00",PHY LTS 65+,HOMECARE - C&V,2102825800,1000003398,
06.06.2018,ADULT SOCIAL CARE,LONDON CARE LTD,"1,308.01",PHY LTS 65+,HOMECARE - C&V,2102825916,1000003398,
06.06.2018,ADULT SOCIAL CARE,LONDON CARE LTD,"1,353.38",PHY LTS 65+,HOMECARE - C&V,2102825816,1000003398,
06.06.2018,ADULT SOCIAL CARE,LONDON CARE LTD,"1,361.96",PHY LTS 65+,HOMECARE - C&V,2102825794,1000003398,
06.06.2018,ADULT SOCIAL CARE,LONDON CARE LTD,"1,492.09",PHY LTS 65+,HOMECARE - C&V,2102825751,1000003398,
06.06.2018,ADULT SOCIAL CARE,LONDON CARE LTD,"1,635.46",PHY LTS 65+,HOMECARE - C&V,2102825838,1000003398,
06.06.2018,ADULT SOCIAL CARE,LONDON CARE LTD,"1,664.36",PHY LTS 65+,HOMECARE - C&V,2102825881,1000003398,
06.06.2018,ADULT SOCIAL CARE,LONDON CARE LTD,"1,866.46",PHY LTS 65+,HOMECARE - C&V,2102825813,1000003398,
06.06.2018,ADULT SOCIAL CARE,LONDON CARE LTD,"2,000.88",PHY LTS 65+,HOMECARE - C&V,2102825815,1000003398,
06.06.2018,ADULT SOCIAL CARE,LONDON CARE LTD,"2,282.78",PHY LTS 65+,HOMECARE - C&V,2102825931,1000003398,
06.06.2018,ADULT SOCIAL CARE,LONDON CARE LTD,"2,442.51",PHY LTS 65+,HOMECARE - C&V,2102825883,1000003398,
06.06.2018,ADULT SOCIAL CARE,LONDON CARE LTD,"2,463.43",PHY LTS 65+,HOMECARE - C&V,2102825840,1000003398,
06.06.2018,ADULT SOCIAL CARE,LONDON CARE LTD,"2,479.95",PHY LTS 65+,HOMECARE - C&V,2102825787,1000003398,
06.06.2018,ADULT SOCIAL CARE,LONDON CARE LTD,"2,626.78",PHY LTS 65+,HOMECARE - C&V,2102825740,1000003398,
06.06.2018,ADULT SOCIAL CARE,LONDON CARE LTD,"2,639.75",PHY LTS 65+,HOMECARE - C&V,2102825795,1000003398,
06.06.2018,ADULT SOCIAL CARE,LONDON CARE LTD,"2,717.06",PHY LTS 65+,HOMECARE - C&V,2102825802,1000003398,
06.06.2018,ADULT SOCIAL CARE,LONDON CARE LTD,"3,320.25",PHY LTS 65+,HOMECARE - C&V,2102825756,1000003398,
06.06.2018,ADULT SOCIAL CARE,YOUTH GRACES (UK) LTD,255.22,PHY LTS 65+,HOMECARE - SPOT,2102825699,1000072524,
06.06.2018,ADULT SOCIAL CARE,LONDON CARE LTD,269.08,PHY LTS 65+,HOMECARE - SPOT,2102825749,1000003398,
06.06.2018,ADULT SOCIAL CARE,YOUTH GRACES (UK) LTD,282.66,PHY LTS 65+,HOMECARE - SPOT,2102825711,1000072524,
06.06.2018,ADULT SOCIAL CARE,YOUTH GRACES (UK) LTD,386.40,PHY LTS 65+,HOMECARE - SPOT,2102825686,1000072524,
06.06.2018,ADULT SOCIAL CARE,YOUTH GRACES (UK) LTD,399.91,PHY LTS 65+,HOMECARE - SPOT,2102825685,1000072524,
06.06.2018,ADULT SOCIAL CARE,YOUTH GRACES (UK) LTD,434.56,PHY LTS 65+,HOMECARE - SPOT,2102825688,1000072524,
06.06.2018,ADULT SOCIAL CARE,YOUTH GRACES (UK) LTD,482.71,PHY LTS 65+,HOMECARE - SPOT,2102825721,1000072524,
06.06.2018,ADULT SOCIAL CARE,YOUTH GRACES (UK) LTD,675.78,PHY LTS 65+,HOMECARE - SPOT,2102825709,1000072524,
06.06.2018,ADULT SOCIAL CARE,LONDON CARE LTD,"1,008.88",PHY LTS 65+,HOMECARE - SPOT,2102825922,1000003398,
06.06.2018,ADULT SOCIAL CARE,LONDON CARE LTD,"1,091.69",PHY STS 65+,HOMECARE - IC,2102825763,1000003398,
06.06.2018,ADULT SOCIAL CARE,LONDON CARE LTD,302.64,SOCIAL ISOLATION,HOMECARE - C&V,2102825910,1000003398,
06.06.2018,ADULT SOCIAL CARE,LONDON CARE LTD,353.08,SOCIAL ISOLATION,HOMECARE - C&V,2102825876,1000003398,
06.06.2018,ADULT SOCIAL CARE,LONDON CARE LTD,395.38,SOCIAL ISOLATION,HOMECARE - C&V,2102825783,1000003398,
06.06.2018,ADULT SOCIAL CARE,LONDON CARE LTD,782.00,SOCIAL ISOLATION,HOMECARE - C&V,2102825831,1000003398,
06.06.2018,ADULT SOCIAL CARE,LONDON CARE LTD,908.10,SOCIAL ISOLATION,HOMECARE - C&V,2102825932,1000003398,
06.06.2018,ADULT SOCIAL CARE,LONDON CARE LTD,"2,353.68",SOCIAL ISOLATION,HOMECARE - SPOT,2102825928,1000003398,
06.06.2018,ADULT SOCIAL CARE,INTERSERVE HEALTHCARE,575.15,SPECIALIST CARE,SECTION 17 PAYMENTS TO AGENCIES/CARERS,2102825633,1000049612,
06.06.2018,ADULT SOCIAL CARE,FOCUSED HEALTHCARE LTD,"1,025.28",SPECIALIST CARE,SECTION 17 PAYMENTS TO AGENCIES/CARERS,2102825278,1000069262,
06.06.2018,ADULT SOCIAL CARE,INTERSERVE HEALTHCARE,"1,389.33",SPECIALIST CARE,SECTION 17 PAYMENTS TO AGENCIES/CARERS,2102825284,1000049612,
06.06.2018,ADULT SOCIAL CARE,FOCUSED HEALTHCARE LTD,"2,209.20",SPECIALIST CARE,SECTION 17 PAYMENTS TO AGENCIES/CARERS,2102825283,1000069262,
06.06.2018,ADULT SOCIAL CARE,INTERSERVE HEALTHCARE,"2,330.32",SPECIALIST CARE,SECTION 17 PAYMENTS TO AGENCIES/CARERS,2102825279,1000049612,
06.06.2018,ADULT SOCIAL CARE,LONDON CARE LTD,"-31,416.00",TRANSFORMING COM E,HOMECARE - C&V,5902306213,1000081144,
06.06.2018,ADULT SOCIAL CARE,LONDON CARE LTD,"-21,318.00",TRANSFORMING COM E,HOMECARE - C&V,5902306212,1000081144,
06.06.2018,ADULT SOCIAL CARE,LONDON CARE LTD,"21,318.00",TRANSFORMING COM E,HOMECARE - C&V,5902303766,1000081144,
06.06.2018,ADULT SOCIAL CARE,LONDON CARE LTD,"31,416.00",TRANSFORMING COM E,HOMECARE - C&V,5902303765,1000081144,
06.06.2018,ASSET MANAGEMENT,AJM ADAPTIONS LTD,412.85,ADAPTATIONS,BUILDING R&M,5902305722,1000080297,
06.06.2018,ASSET MANAGEMENT,JUDGE & PRIESTLEY SOLICITORS,"-13,119.50",DISREPAIR,BUILDING R&M,5902306076,1000074912,
06.06.2018,ASSET MANAGEMENT,JUDGE & PRIESTLEY SOLICITORS,-335.00,DISREPAIR,BUILDING R&M,5902306076,1000074912,
06.06.2018,ASSET MANAGEMENT,JUDGE & PRIESTLEY SOLICITORS,335.00,DISREPAIR,BUILDING R&M,5902304024,1000074912,
06.06.2018,ASSET MANAGEMENT,JUDGE & PRIESTLEY SOLICITORS,"13,119.50",DISREPAIR,BUILDING R&M,5902304024,1000074912,
06.06.2018,ASSET MANAGEMENT,GT STEWART SOLICITORS,"-9,500.00",DISREPAIR,LEGAL FEES & COURT COSTS,5902306197,1000061213,
06.06.2018,ASSET MANAGEMENT,GT STEWART SOLICITORS,"9,500.00",DISREPAIR,LEGAL FEES & COURT COSTS,5902305959,1000061213,
06.06.2018,ASSET MANAGEMENT,FRANKHAM CONSULTANCY GROUP LTD,"5,676.00",REPAIRS OPERATIONS,OTHER R&M,5902305861,1000043952,
06.06.2018,CENTRAL FUNCTIONS,STANDAGE & CO LTD,"26,133.00",AYLESBURY,SECURITY SERVICES,2102824606,4002817,
06.06.2018,CENTRAL FUNCTIONS,STANDAGE & CO LTD,"47,080.00",AYLESBURY,SECURITY SERVICES,2102824605,4002817,
06.06.2018,CENTRAL FUNCTIONS,BIFFA WASTE SERVICES LTD,813.15,COMMERCIAL PROPERTIES,REFUSE COLLECTION CONTRACT,5902305775,1147051,
06.06.2018,CENTRAL FUNCTIONS,BIFFA WASTE SERVICES LTD,"1,150.11",COMMERCIAL PROPERTIES,REFUSE COLLECTION CONTRACT,5902305774,1147051,
06.06.2018,CENTRAL FUNCTIONS,ALLPAY NET LIMITED,"1,018.60",SERVICE LEVEL AGREEMENTS,BANK CHARGES,5902305896,1000043001,
06.06.2018,CENTRAL FUNCTIONS,ALLPAY NET LIMITED,"11,045.50",SERVICE LEVEL AGREEMENTS,BANK CHARGES,5902305895,1000043001,
06.06.2018,CHIEF EXECUTIVE,CONWAY AECOM LTD,"5,785.31",CAPITAL PS (REGEN),CONSTR'N SUB CONTRACT - NON CERTIFICATED,5902305729,1000071205,
06.06.2018,CHIEF EXECUTIVE,CONWAY AECOM LTD,"7,790.04",CAPITAL PS (REGEN),CONSTR'N SUB CONTRACT - NON CERTIFICATED,2102824623,3000001595,
06.06.2018,CHIEF EXECUTIVE,CONWAY AECOM LTD,"28,643.68",CAPITAL PS (REGEN),CONSTR'N SUB CONTRACT - NON CERTIFICATED,2102824620,3000001595,
06.06.2018,CHIEF EXECUTIVE,CONWAY AECOM LTD,"28,683.63",CAPITAL PS (REGEN),CONSTR'N SUB CONTRACT - NON CERTIFICATED,2102824624,3000001595,
06.06.2018,CHIEF EXECUTIVE,SHARPE PRITCHARD LLP,508.00,CAPITAL PS (REGEN),CONSTRUCTION FEES,5902305780,1790085,
06.06.2018,CHIEF EXECUTIVE,GORT SCOTT LTD,"3,000.00",CAPITAL PS (REGEN),CONSTRUCTION FEES  - EXTERNAL,5902305711,1000070664,
06.06.2018,CHIEF EXECUTIVE,AMR CONSULT LTD,"2,500.00",CAPITAL PS (REGEN),CONSTRUCTION SUB CONTRACT,5902305740,1000080834,
06.06.2018,CHIEF EXECUTIVE,AMR CONSULT LTD,"2,875.00",CAPITAL PS (REGEN),CONSTRUCTION SUB CONTRACT,5902305734,1000080834,
06.06.2018,CHIEF EXECUTIVE,AMR CONSULT LTD,"3,833.33",CAPITAL PS (REGEN),CONSTRUCTION SUB CONTRACT,5902305738,1000080834,
06.06.2018,CHIEF EXECUTIVE'S OFFICE,INSPIRE AT ST PETER'S LTD,"24,998.01",YOUTH FUND EMPLOYMENT,GRANTS,5902305825,1000041565,
06.06.2018,CHILDREN AND ADULT,STANDAGE & CO LTD,"29,887.80",CAPITAL PS (EDUCATION),CONSTRUCTION FEES - QUANTITY SURVEYOR,2102824621,4002817,
06.06.2018,CHILDREN AND ADULT,STANDAGE & CO LTD,"1,922.98",CAPITAL PS (EDUCATION),CONSTRUCTION MAIN CONTRACT -CERTIFICATED,2102824607,4002817,
06.06.2018,CHILDREN AND ADULT,NUMBER 10 INTERIM LTD,"4,200.00",CAPITAL PS (STRAT SERV),ICT ACQUISITION,5902305771,1000075139,
06.06.2018,CHILDREN'S SERVICES,REDACTED PERSONAL DATA,251.94,ADOPTION PLACEMENTS & INTER AGENCY,PAYMENTS TO CARERS,REDACTED,REDACTED,
06.06.2018,CHILDREN'S SERVICES,REDACTED PERSONAL DATA,252.90,ADOPTION PLACEMENTS & INTER AGENCY,PAYMENTS TO CARERS,REDACTED,REDACTED,
06.06.2018,CHILDREN'S SERVICES,REDACTED PERSONAL DATA,253.56,ADOPTION PLACEMENTS & INTER AGENCY,PAYMENTS TO CARERS,REDACTED,REDACTED,
06.06.2018,CHILDREN'S SERVICES,REDACTED PERSONAL DATA,255.22,ADOPTION PLACEMENTS & INTER AGENCY,PAYMENTS TO CARERS,REDACTED,REDACTED,
06.06.2018,CHILDREN'S SERVICES,REDACTED PERSONAL DATA,256.54,ADOPTION PLACEMENTS & INTER AGENCY,PAYMENTS TO CARERS,REDACTED,REDACTED,
06.06.2018,CHILDREN'S SERVICES,REDACTED PERSONAL DATA,261.00,ADOPTION PLACEMENTS & INTER AGENCY,PAYMENTS TO CARERS,REDACTED,REDACTED,
06.06.2018,CHILDREN'S SERVICES,REDACTED PERSONAL DATA,269.22,ADOPTION PLACEMENTS & INTER AGENCY,PAYMENTS TO CARERS,REDACTED,REDACTED,
06.06.2018,CHILDREN'S SERVICES,REDACTED PERSONAL DATA,275.10,ADOPTION PLACEMENTS & INTER AGENCY,PAYMENTS TO CARERS,REDACTED,REDACTED,
06.06.2018,CHILDREN'S SERVICES,REDACTED PERSONAL DATA,279.26,ADOPTION PLACEMENTS & INTER AGENCY,PAYMENTS TO CARERS,REDACTED,REDACTED,
06.06.2018,CHILDREN'S SERVICES,REDACTED PERSONAL DATA,282.76,ADOPTION PLACEMENTS & INTER AGENCY,PAYMENTS TO CARERS,REDACTED,REDACTED,
06.06.2018,CHILDREN'S SERVICES,REDACTED PERSONAL DATA,293.98,ADOPTION PLACEMENTS & INTER AGENCY,PAYMENTS TO CARERS,REDACTED,REDACTED,
06.06.2018,CHILDREN'S SERVICES,REDACTED PERSONAL DATA,295.30,ADOPTION PLACEMENTS & INTER AGENCY,PAYMENTS TO CARERS,REDACTED,REDACTED,
06.06.2018,CHILDREN'S SERVICES,REDACTED PERSONAL DATA,304.64,ADOPTION PLACEMENTS & INTER AGENCY,PAYMENTS TO CARERS,REDACTED,REDACTED,
06.06.2018,CHILDREN'S SERVICES,REDACTED PERSONAL DATA,316.50,ADOPTION PLACEMENTS & INTER AGENCY,PAYMENTS TO CARERS,REDACTED,REDACTED,
06.06.2018,CHILDREN'S SERVICES,REDACTED PERSONAL DATA,359.44,ADOPTION PLACEMENTS & INTER AGENCY,PAYMENTS TO CARERS,REDACTED,REDACTED,
06.06.2018,CHILDREN'S SERVICES,REDACTED PERSONAL DATA,368.52,ADOPTION PLACEMENTS & INTER AGENCY,PAYMENTS TO CARERS,REDACTED,REDACTED,
06.06.2018,CHILDREN'S SERVICES,REDACTED PERSONAL DATA,375.54,ADOPTION PLACEMENTS & INTER AGENCY,PAYMENTS TO CARERS,REDACTED,REDACTED,
06.06.2018,CHILDREN'S SERVICES,REDACTED PERSONAL DATA,375.54,ADOPTION PLACEMENTS & INTER AGENCY,PAYMENTS TO CARERS,REDACTED,REDACTED,
06.06.2018,CHILDREN'S SERVICES,REDACTED PERSONAL DATA,375.54,ADOPTION PLACEMENTS & INTER AGENCY,PAYMENTS TO CARERS,REDACTED,REDACTED,
06.06.2018,CHILDREN'S SERVICES,REDACTED PERSONAL DATA,375.54,ADOPTION PLACEMENTS & INTER AGENCY,PAYMENTS TO CARERS,REDACTED,REDACTED,
06.06.2018,CHILDREN'S SERVICES,REDACTED PERSONAL DATA,375.54,ADOPTION PLACEMENTS & INTER AGENCY,PAYMENTS TO CARERS,REDACTED,REDACTED,
06.06.2018,CHILDREN'S SERVICES,REDACTED PERSONAL DATA,375.54,ADOPTION PLACEMENTS & INTER AGENCY,PAYMENTS TO CARERS,REDACTED,REDACTED,
06.06.2018,CHILDREN'S SERVICES,REDACTED PERSONAL DATA,375.54,ADOPTION PLACEMENTS & INTER AGENCY,PAYMENTS TO CARERS,REDACTED,REDACTED,
06.06.2018,CHILDREN'S SERVICES,REDACTED PERSONAL DATA,375.54,ADOPTION PLACEMENTS & INTER AGENCY,PAYMENTS TO CARERS,REDACTED,REDACTED,
06.06.2018,CHILDREN'S SERVICES,REDACTED PERSONAL DATA,375.54,ADOPTION PLACEMENTS & INTER AGENCY,PAYMENTS TO CARERS,REDACTED,REDACTED,
06.06.2018,CHILDREN'S SERVICES,REDACTED PERSONAL DATA,382.30,ADOPTION PLACEMENTS & INTER AGENCY,PAYMENTS TO CARERS,REDACTED,REDACTED,
06.06.2018,CHILDREN'S SERVICES,REDACTED PERSONAL DATA,382.30,ADOPTION PLACEMENTS & INTER AGENCY,PAYMENTS TO CARERS,REDACTED,REDACTED,
06.06.2018,CHILDREN'S SERVICES,REDACTED PERSONAL DATA,382.30,ADOPTION PLACEMENTS & INTER AGENCY,PAYMENTS TO CARERS,REDACTED,REDACTED,
06.06.2018,CHILDREN'S SERVICES,REDACTED PERSONAL DATA,382.30,ADOPTION PLACEMENTS & INTER AGENCY,PAYMENTS TO CARERS,REDACTED,REDACTED,
06.06.2018,CHILDREN'S SERVICES,REDACTED PERSONAL DATA,390.26,ADOPTION PLACEMENTS & INTER AGENCY,PAYMENTS TO CARERS,REDACTED,REDACTED,
06.06.2018,CHILDREN'S SERVICES,REDACTED PERSONAL DATA,400.84,ADOPTION PLACEMENTS & INTER AGENCY,PAYMENTS TO CARERS,REDACTED,REDACTED,
06.06.2018,CHILDREN'S SERVICES,REDACTED PERSONAL DATA,400.84,ADOPTION PLACEMENTS & INTER AGENCY,PAYMENTS TO CARERS,REDACTED,REDACTED,
06.06.2018,CHILDREN'S SERVICES,REDACTED PERSONAL DATA,404.46,ADOPTION PLACEMENTS & INTER AGENCY,PAYMENTS TO CARERS,REDACTED,REDACTED,
06.06.2018,CHILDREN'S SERVICES,REDACTED PERSONAL DATA,408.78,ADOPTION PLACEMENTS & INTER AGENCY,PAYMENTS TO CARERS,REDACTED,REDACTED,
06.06.2018,CHILDREN'S SERVICES,REDACTED PERSONAL DATA,451.80,ADOPTION PLACEMENTS & INTER AGENCY,PAYMENTS TO CARERS,REDACTED,REDACTED,
06.06.2018,CHILDREN'S SERVICES,REDACTED PERSONAL DATA,453.24,ADOPTION PLACEMENTS & INTER AGENCY,PAYMENTS TO CARERS,REDACTED,REDACTED,
06.06.2018,CHILDREN'S SERVICES,REDACTED PERSONAL DATA,457.14,ADOPTION PLACEMENTS & INTER AGENCY,PAYMENTS TO CARERS,REDACTED,REDACTED,
06.06.2018,CHILDREN'S SERVICES,REDACTED PERSONAL DATA,465.48,ADOPTION PLACEMENTS & INTER AGENCY,PAYMENTS TO CARERS,REDACTED,REDACTED,
06.06.2018,CHILDREN'S SERVICES,REDACTED PERSONAL DATA,465.52,ADOPTION PLACEMENTS & INTER AGENCY,PAYMENTS TO CARERS,REDACTED,REDACTED,
06.06.2018,CHILDREN'S SERVICES,REDACTED PERSONAL DATA,465.52,ADOPTION PLACEMENTS & INTER AGENCY,PAYMENTS TO CARERS,REDACTED,REDACTED,
06.06.2018,CHILDREN'S SERVICES,REDACTED PERSONAL DATA,465.54,ADOPTION PLACEMENTS & INTER AGENCY,PAYMENTS TO CARERS,REDACTED,REDACTED,
06.06.2018,CHILDREN'S SERVICES,REDACTED PERSONAL DATA,465.54,ADOPTION PLACEMENTS & INTER AGENCY,PAYMENTS TO CARERS,REDACTED,REDACTED,
06.06.2018,CHILDREN'S SERVICES,REDACTED PERSONAL DATA,465.54,ADOPTION PLACEMENTS & INTER AGENCY,PAYMENTS TO CARERS,REDACTED,REDACTED,
06.06.2018,CHILDREN'S SERVICES,REDACTED PERSONAL DATA,465.54,ADOPTION PLACEMENTS & INTER AGENCY,PAYMENTS TO CARERS,REDACTED,REDACTED,
06.06.2018,CHILDREN'S SERVICES,REDACTED PERSONAL DATA,465.54,ADOPTION PLACEMENTS & INTER AGENCY,PAYMENTS TO CARERS,REDACTED,REDACTED,
06.06.2018,CHILDREN'S SERVICES,REDACTED PERSONAL DATA,484.92,ADOPTION PLACEMENTS & INTER AGENCY,PAYMENTS TO CARERS,REDACTED,REDACTED,
06.06.2018,CHILDREN'S SERVICES,REDACTED PERSONAL DATA,485.22,ADOPTION PLACEMENTS & INTER AGENCY,PAYMENTS TO CARERS,REDACTED,REDACTED,
06.06.2018,CHILDREN'S SERVICES,REDACTED PERSONAL DATA,502.00,ADOPTION PLACEMENTS & INTER AGENCY,PAYMENTS TO CARERS,REDACTED,REDACTED,
06.06.2018,CHILDREN'S SERVICES,REDACTED PERSONAL DATA,510.96,ADOPTION PLACEMENTS & INTER AGENCY,PAYMENTS TO CARERS,REDACTED,REDACTED,
06.06.2018,CHILDREN'S SERVICES,REDACTED PERSONAL DATA,512.02,ADOPTION PLACEMENTS & INTER AGENCY,PAYMENTS TO CARERS,REDACTED,REDACTED,
06.06.2018,CHILDREN'S SERVICES,REDACTED PERSONAL DATA,530.00,ADOPTION PLACEMENTS & INTER AGENCY,PAYMENTS TO CARERS,REDACTED,REDACTED,
06.06.2018,CHILDREN'S SERVICES,REDACTED PERSONAL DATA,534.54,ADOPTION PLACEMENTS & INTER AGENCY,PAYMENTS TO CARERS,REDACTED,REDACTED,
06.06.2018,CHILDREN'S SERVICES,REDACTED PERSONAL DATA,552.16,ADOPTION PLACEMENTS & INTER AGENCY,PAYMENTS TO CARERS,REDACTED,REDACTED,
06.06.2018,CHILDREN'S SERVICES,REDACTED PERSONAL DATA,559.06,ADOPTION PLACEMENTS & INTER AGENCY,PAYMENTS TO CARERS,REDACTED,REDACTED,
06.06.2018,CHILDREN'S SERVICES,REDACTED PERSONAL DATA,588.42,ADOPTION PLACEMENTS & INTER AGENCY,PAYMENTS TO CARERS,REDACTED,REDACTED,
06.06.2018,CHILDREN'S SERVICES,REDACTED PERSONAL DATA,615.56,ADOPTION PLACEMENTS & INTER AGENCY,PAYMENTS TO CARERS,REDACTED,REDACTED,
06.06.2018,CHILDREN'S SERVICES,REDACTED PERSONAL DATA,635.34,ADOPTION PLACEMENTS & INTER AGENCY,PAYMENTS TO CARERS,REDACTED,REDACTED,
06.06.2018,CHILDREN'S SERVICES,REDACTED PERSONAL DATA,635.34,ADOPTION PLACEMENTS & INTER AGENCY,PAYMENTS TO CARERS,REDACTED,REDACTED,
06.06.2018,CHILDREN'S SERVICES,REDACTED PERSONAL DATA,635.34,ADOPTION PLACEMENTS & INTER AGENCY,PAYMENTS TO CARERS,REDACTED,REDACTED,
06.06.2018,CHILDREN'S SERVICES,REDACTED PERSONAL DATA,640.90,ADOPTION PLACEMENTS & INTER AGENCY,PAYMENTS TO CARERS,REDACTED,REDACTED,
06.06.2018,CHILDREN'S SERVICES,REDACTED PERSONAL DATA,652.90,ADOPTION PLACEMENTS & INTER AGENCY,PAYMENTS TO CARERS,REDACTED,REDACTED,
06.06.2018,CHILDREN'S SERVICES,REDACTED PERSONAL DATA,652.90,ADOPTION PLACEMENTS & INTER AGENCY,PAYMENTS TO CARERS,REDACTED,REDACTED,
06.06.2018,CHILDREN'S SERVICES,REDACTED PERSONAL DATA,653.06,ADOPTION PLACEMENTS & INTER AGENCY,PAYMENTS TO CARERS,REDACTED,REDACTED,
06.06.2018,CHILDREN'S SERVICES,REDACTED PERSONAL DATA,682.30,ADOPTION PLACEMENTS & INTER AGENCY,PAYMENTS TO CARERS,REDACTED,REDACTED,
06.06.2018,CHILDREN'S SERVICES,REDACTED PERSONAL DATA,682.30,ADOPTION PLACEMENTS & INTER AGENCY,PAYMENTS TO CARERS,REDACTED,REDACTED,
06.06.2018,CHILDREN'S SERVICES,REDACTED PERSONAL DATA,695.04,ADOPTION PLACEMENTS & INTER AGENCY,PAYMENTS TO CARERS,REDACTED,REDACTED,
06.06.2018,CHILDREN'S SERVICES,REDACTED PERSONAL DATA,695.12,ADOPTION PLACEMENTS & INTER AGENCY,PAYMENTS TO CARERS,REDACTED,REDACTED,
06.06.2018,CHILDREN'S SERVICES,REDACTED PERSONAL DATA,705.24,ADOPTION PLACEMENTS & INTER AGENCY,PAYMENTS TO CARERS,REDACTED,REDACTED,
06.06.2018,CHILDREN'S SERVICES,REDACTED PERSONAL DATA,712.30,ADOPTION PLACEMENTS & INTER AGENCY,PAYMENTS TO CARERS,REDACTED,REDACTED,
06.06.2018,CHILDREN'S SERVICES,REDACTED PERSONAL DATA,717.14,ADOPTION PLACEMENTS & INTER AGENCY,PAYMENTS TO CARERS,REDACTED,REDACTED,
06.06.2018,CHILDREN'S SERVICES,REDACTED PERSONAL DATA,738.32,ADOPTION PLACEMENTS & INTER AGENCY,PAYMENTS TO CARERS,REDACTED,REDACTED,
06.06.2018,CHILDREN'S SERVICES,REDACTED PERSONAL DATA,767.68,ADOPTION PLACEMENTS & INTER AGENCY,PAYMENTS TO CARERS,REDACTED,REDACTED,
06.06.2018,CHILDREN'S SERVICES,REDACTED PERSONAL DATA,777.36,ADOPTION PLACEMENTS & INTER AGENCY,PAYMENTS TO CARERS,REDACTED,REDACTED,
06.06.2018,CHILDREN'S SERVICES,REDACTED PERSONAL DATA,854.28,ADOPTION PLACEMENTS & INTER AGENCY,PAYMENTS TO CARERS,REDACTED,REDACTED,
06.06.2018,CHILDREN'S SERVICES,REDACTED PERSONAL DATA,879.78,ADOPTION PLACEMENTS & INTER AGENCY,PAYMENTS TO CARERS,REDACTED,REDACTED,
06.06.2018,CHILDREN'S SERVICES,REDACTED PERSONAL DATA,908.00,ADOPTION PLACEMENTS & INTER AGENCY,PAYMENTS TO CARERS,REDACTED,REDACTED,
06.06.2018,CHILDREN'S SERVICES,REDACTED PERSONAL DATA,"1,011.20",ADOPTION PLACEMENTS & INTER AGENCY,PAYMENTS TO CARERS,REDACTED,REDACTED,
06.06.2018,CHILDREN'S SERVICES,REDACTED PERSONAL DATA,"1,053.20",ADOPTION PLACEMENTS & INTER AGENCY,PAYMENTS TO CARERS,REDACTED,REDACTED,
06.06.2018,CHILDREN'S SERVICES,WALWORTH GARDEN FARM,"1,400.00",ADULT SKILLS BUDGET 15/16,GRANTS,5902305718,1000042204,
06.06.2018,CHILDREN'S SERVICES,CORE ASSETS FOSTERING LTD,"-3,420.20",AGENCY FOSTERING,EXTERNAL AGENCIES AND BODIES,2102825389,11288002,
06.06.2018,CHILDREN'S SERVICES,INTEGRATED SERVICES PROGRAMME,"-2,078.50",AGENCY FOSTERING,EXTERNAL AGENCIES AND BODIES,2102822032,1642068,
06.06.2018,CHILDREN'S SERVICES,WELCOME FOSTER CARE LTD,"-1,499.96",AGENCY FOSTERING,EXTERNAL AGENCIES AND BODIES,2102825643,1000074586,
06.06.2018,CHILDREN'S SERVICES,TIME FOR CHILDREN LTD,"3,100.00",AGENCY FOSTERING,EXTERNAL AGENCIES AND BODIES,2102825358,1000024439,
06.06.2018,CHILDREN'S SERVICES,GREATER LONDON FOSTERING,"3,188.35",AGENCY FOSTERING,EXTERNAL AGENCIES AND BODIES,2102825642,1000029184,
06.06.2018,CHILDREN'S SERVICES,CORE ASSETS FOSTERING LTD,"3,211.60",AGENCY FOSTERING,EXTERNAL AGENCIES AND BODIES,2102825359,11288002,
06.06.2018,CHILDREN'S SERVICES,CORE ASSETS FOSTERING LTD,"3,211.60",AGENCY FOSTERING,EXTERNAL AGENCIES AND BODIES,2102825382,11288002,
06.06.2018,CHILDREN'S SERVICES,CORE ASSETS FOSTERING LTD,"3,211.60",AGENCY FOSTERING,EXTERNAL AGENCIES AND BODIES,2102825387,11288002,
06.06.2018,CHILDREN'S SERVICES,CORE ASSETS FOSTERING LTD,"3,211.60",AGENCY FOSTERING,EXTERNAL AGENCIES AND BODIES,2102825392,11288002,
06.06.2018,CHILDREN'S SERVICES,CORE ASSETS FOSTERING LTD,"3,211.60",AGENCY FOSTERING,EXTERNAL AGENCIES AND BODIES,2102825655,11288002,
06.06.2018,CHILDREN'S SERVICES,GREATER LONDON FOSTERING,"3,220.28",AGENCY FOSTERING,EXTERNAL AGENCIES AND BODIES,2102825661,1000029184,
06.06.2018,CHILDREN'S SERVICES,SELECT FOSTERCARE SERVICES LTD,"3,286.00",AGENCY FOSTERING,EXTERNAL AGENCIES AND BODIES,2102825377,1000079277,
06.06.2018,CHILDREN'S SERVICES,GREATER LONDON FOSTERING,"3,286.00",AGENCY FOSTERING,EXTERNAL AGENCIES AND BODIES,2102825654,1000029184,
06.06.2018,CHILDREN'S SERVICES,GREATER LONDON FOSTERING,"3,286.00",AGENCY FOSTERING,EXTERNAL AGENCIES AND BODIES,2102825664,1000029184,
06.06.2018,CHILDREN'S SERVICES,SHINING STARS FOSTERING AGENCY LTD,"3,321.34",AGENCY FOSTERING,EXTERNAL AGENCIES AND BODIES,2102825375,1000079431,
06.06.2018,CHILDREN'S SERVICES,WELCOME FOSTER CARE LTD,"3,321.34",AGENCY FOSTERING,EXTERNAL AGENCIES AND BODIES,2102825641,1000074586,
06.06.2018,CHILDREN'S SERVICES,CONNECT FOSTERING SERVICES LTD,"3,343.57",AGENCY FOSTERING,EXTERNAL AGENCIES AND BODIES,2102825366,1000079969,
06.06.2018,CHILDREN'S SERVICES,FIVE RIVERS CHILD CARE LTD,"3,365.71",AGENCY FOSTERING,EXTERNAL AGENCIES AND BODIES,2102825341,1000018792,
06.06.2018,CHILDREN'S SERVICES,NATIONAL FOSTERING AGENCY,"3,385.20",AGENCY FOSTERING,EXTERNAL AGENCIES AND BODIES,2102825656,1000038868,
06.06.2018,CHILDREN'S SERVICES,NATIONAL FOSTERING AGENCY,"3,454.33",AGENCY FOSTERING,EXTERNAL AGENCIES AND BODIES,2102825657,1000038868,
06.06.2018,CHILDREN'S SERVICES,CHILDREN OF COLOUR,"3,472.00",AGENCY FOSTERING,EXTERNAL AGENCIES AND BODIES,2102825391,1000044955,
06.06.2018,CHILDREN'S SERVICES,ST CHRISTOPHER FELLOWSHIP,"3,520.67",AGENCY FOSTERING,EXTERNAL AGENCIES AND BODIES,2102825338,1000045269,
06.06.2018,CHILDREN'S SERVICES,NATIONAL FOSTERING AGENCY,"3,520.67",AGENCY FOSTERING,EXTERNAL AGENCIES AND BODIES,2102825651,1000038868,
06.06.2018,CHILDREN'S SERVICES,CONNECT FOSTERING SERVICES LTD,"3,520.71",AGENCY FOSTERING,EXTERNAL AGENCIES AND BODIES,2102825365,1000079969,
06.06.2018,CHILDREN'S SERVICES,RYANCARE FOSTERING,"3,541.75",AGENCY FOSTERING,EXTERNAL AGENCIES AND BODIES,2102825367,1000062376,
06.06.2018,CHILDREN'S SERVICES,SHINING STARS FOSTERING AGENCY LTD,"3,542.68",AGENCY FOSTERING,EXTERNAL AGENCIES AND BODIES,2102825357,1000079431,
06.06.2018,CHILDREN'S SERVICES,CHILDREN OF COLOUR,"3,558.80",AGENCY FOSTERING,EXTERNAL AGENCIES AND BODIES,2102825340,1000044955,
06.06.2018,CHILDREN'S SERVICES,CHILDREN OF COLOUR,"3,558.80",AGENCY FOSTERING,EXTERNAL AGENCIES AND BODIES,2102825376,1000044955,
06.06.2018,CHILDREN'S SERVICES,KENT HOMEFINDING & FOSTERING LTD,"3,565.00",AGENCY FOSTERING,EXTERNAL AGENCIES AND BODIES,2102825351,1000033978,
06.06.2018,CHILDREN'S SERVICES,SANKOFA CARE LTD,"3,593.21",AGENCY FOSTERING,EXTERNAL AGENCIES AND BODIES,2102825355,1000030717,
06.06.2018,CHILDREN'S SERVICES,SANKOFA CARE LTD,"3,593.21",AGENCY FOSTERING,EXTERNAL AGENCIES AND BODIES,2102825647,1000030717,
06.06.2018,CHILDREN'S SERVICES,SELECT FOSTERCARE SERVICES LTD,"3,653.35",AGENCY FOSTERING,EXTERNAL AGENCIES AND BODIES,2102825362,1000079277,
06.06.2018,CHILDREN'S SERVICES,SELECT FOSTERCARE SERVICES LTD,"3,653.66",AGENCY FOSTERING,EXTERNAL AGENCIES AND BODIES,2102825349,1000079277,
06.06.2018,CHILDREN'S SERVICES,SYNERGY FOSTERING LTD,"3,671.27",AGENCY FOSTERING,EXTERNAL AGENCIES AND BODIES,2102825371,1000031559,
06.06.2018,CHILDREN'S SERVICES,ETHELBERT SPECIALIST HOMES,"3,678.11",AGENCY FOSTERING,EXTERNAL AGENCIES AND BODIES,2102825330,1796129,
06.06.2018,CHILDREN'S SERVICES,ETHELBERT SPECIALIST HOMES,"3,678.11",AGENCY FOSTERING,EXTERNAL AGENCIES AND BODIES,2102825331,1796129,
06.06.2018,CHILDREN'S SERVICES,ETHELBERT SPECIALIST HOMES,"3,678.11",AGENCY FOSTERING,EXTERNAL AGENCIES AND BODIES,2102825378,1796129,
06.06.2018,CHILDREN'S SERVICES,WELCOME FOSTER CARE LTD,"3,764.33",AGENCY FOSTERING,EXTERNAL AGENCIES AND BODIES,2102825347,1000074586,
06.06.2018,CHILDREN'S SERVICES,WELCOME FOSTER CARE LTD,"3,764.33",AGENCY FOSTERING,EXTERNAL AGENCIES AND BODIES,2102825385,1000074586,
06.06.2018,CHILDREN'S SERVICES,WELCOME FOSTER CARE LTD,"3,764.33",AGENCY FOSTERING,EXTERNAL AGENCIES AND BODIES,2102825386,1000074586,
06.06.2018,CHILDREN'S SERVICES,ANCHOR FOSTERCARE,"3,799.67",AGENCY FOSTERING,EXTERNAL AGENCIES AND BODIES,2102825334,1000065675,
06.06.2018,CHILDREN'S SERVICES,DIAGRAMA FOUNDATION CHILDREN SERVICES,"3,835.14",AGENCY FOSTERING,EXTERNAL AGENCIES AND BODIES,2102825352,1000078697,
06.06.2018,CHILDREN'S SERVICES,ETHELBERT SPECIALIST HOMES,"3,882.40",AGENCY FOSTERING,EXTERNAL AGENCIES AND BODIES,2102825364,1796129,
06.06.2018,CHILDREN'S SERVICES,ETHELBERT SPECIALIST HOMES,"3,882.40",AGENCY FOSTERING,EXTERNAL AGENCIES AND BODIES,2102825384,1796129,
06.06.2018,CHILDREN'S SERVICES,SANKOFA CARE LTD,"3,929.87",AGENCY FOSTERING,EXTERNAL AGENCIES AND BODIES,2102825638,1000030717,
06.06.2018,CHILDREN'S SERVICES,CHILDREN OF ALL NATIONS LTD,"4,108.43",AGENCY FOSTERING,EXTERNAL AGENCIES AND BODIES,2102825329,1000060151,
06.06.2018,CHILDREN'S SERVICES,CHILDREN OF ALL NATIONS LTD,"4,108.43",AGENCY FOSTERING,EXTERNAL AGENCIES AND BODIES,2102825363,1000060151,
06.06.2018,CHILDREN'S SERVICES,BY THE BRIDGE LTD,"4,218.52",AGENCY FOSTERING,EXTERNAL AGENCIES AND BODIES,2102825374,1000043961,
06.06.2018,CHILDREN'S SERVICES,CHILDREN OF COLOUR,"4,251.43",AGENCY FOSTERING,EXTERNAL AGENCIES AND BODIES,2102825346,1000044955,
06.06.2018,CHILDREN'S SERVICES,BY THE BRIDGE LTD,"4,347.09",AGENCY FOSTERING,EXTERNAL AGENCIES AND BODIES,2102825325,1000043961,
06.06.2018,CHILDREN'S SERVICES,NEXT STEP FOSTERING SERVICES LTD,"4,349.30",AGENCY FOSTERING,EXTERNAL AGENCIES AND BODIES,2102825379,1000044973,
06.06.2018,CHILDREN'S SERVICES,BY THE BRIDGE LTD,"4,364.71",AGENCY FOSTERING,EXTERNAL AGENCIES AND BODIES,2102825393,1000043961,
06.06.2018,CHILDREN'S SERVICES,NATIONAL FOSTERING AGENCY,"4,406.34",AGENCY FOSTERING,EXTERNAL AGENCIES AND BODIES,2102825639,1000038868,
06.06.2018,CHILDREN'S SERVICES,NATIONAL FOSTERING AGENCY,"4,406.34",AGENCY FOSTERING,EXTERNAL AGENCIES AND BODIES,2102825645,1000038868,
06.06.2018,CHILDREN'S SERVICES,NATIONAL FOSTERING AGENCY,"4,406.34",AGENCY FOSTERING,EXTERNAL AGENCIES AND BODIES,2102825646,1000038868,
06.06.2018,CHILDREN'S SERVICES,NATIONAL FOSTERING AGENCY,"4,406.34",AGENCY FOSTERING,EXTERNAL AGENCIES AND BODIES,2102825660,1000038868,
06.06.2018,CHILDREN'S SERVICES,NATIONAL FOSTERING AGENCY,"4,406.34",AGENCY FOSTERING,EXTERNAL AGENCIES AND BODIES,2102825662,1000038868,
06.06.2018,CHILDREN'S SERVICES,NATIONAL FOSTERING AGENCY,"4,406.34",AGENCY FOSTERING,EXTERNAL AGENCIES AND BODIES,2102825666,1000038868,
06.06.2018,CHILDREN'S SERVICES,NATIONAL FOSTERING AGENCY,"4,406.34",AGENCY FOSTERING,EXTERNAL AGENCIES AND BODIES,2102825667,1000038868,
06.06.2018,CHILDREN'S SERVICES,GREATER LONDON FOSTERING,"4,424.01",AGENCY FOSTERING,EXTERNAL AGENCIES AND BODIES,2102825663,1000029184,
06.06.2018,CHILDREN'S SERVICES,BY THE BRIDGE LTD,"4,440.57",AGENCY FOSTERING,EXTERNAL AGENCIES AND BODIES,2102825348,1000043961,
06.06.2018,CHILDREN'S SERVICES,BY THE BRIDGE LTD,"4,440.57",AGENCY FOSTERING,EXTERNAL AGENCIES AND BODIES,2102825368,1000043961,
06.06.2018,CHILDREN'S SERVICES,BY THE BRIDGE LTD,"4,475.82",AGENCY FOSTERING,EXTERNAL AGENCIES AND BODIES,2102825360,1000043961,
06.06.2018,CHILDREN'S SERVICES,BY THE BRIDGE LTD,"4,504.96",AGENCY FOSTERING,EXTERNAL AGENCIES AND BODIES,2102825339,1000043961,
06.06.2018,CHILDREN'S SERVICES,SANKOFA CARE LTD,"4,538.71",AGENCY FOSTERING,EXTERNAL AGENCIES AND BODIES,2102825345,1000030717,
06.06.2018,CHILDREN'S SERVICES,SANKOFA CARE LTD,"4,538.71",AGENCY FOSTERING,EXTERNAL AGENCIES AND BODIES,2102825650,1000030717,
06.06.2018,CHILDREN'S SERVICES,NATIONAL FOSTERING AGENCY,"4,557.00",AGENCY FOSTERING,EXTERNAL AGENCIES AND BODIES,2102825640,1000038868,
06.06.2018,CHILDREN'S SERVICES,CHILDREN OF ALL NATIONS LTD,"4,565.19",AGENCY FOSTERING,EXTERNAL AGENCIES AND BODIES,2102825328,1000060151,
06.06.2018,CHILDREN'S SERVICES,BY THE BRIDGE LTD,"4,570.02",AGENCY FOSTERING,EXTERNAL AGENCIES AND BODIES,2102825353,1000043961,
06.06.2018,CHILDREN'S SERVICES,BY THE BRIDGE LTD,"4,570.02",AGENCY FOSTERING,EXTERNAL AGENCIES AND BODIES,2102825354,1000043961,
06.06.2018,CHILDREN'S SERVICES,BY THE BRIDGE LTD,"4,580.78",AGENCY FOSTERING,EXTERNAL AGENCIES AND BODIES,2102825381,1000043961,
06.06.2018,CHILDREN'S SERVICES,NATIONAL FOSTERING AGENCY,"4,627.68",AGENCY FOSTERING,EXTERNAL AGENCIES AND BODIES,2102825665,1000038868,
06.06.2018,CHILDREN'S SERVICES,GREATER LONDON FOSTERING,"4,645.35",AGENCY FOSTERING,EXTERNAL AGENCIES AND BODIES,2102825649,1000029184,
06.06.2018,CHILDREN'S SERVICES,ST CHRISTOPHER FELLOWSHIP,"4,650.00",AGENCY FOSTERING,EXTERNAL AGENCIES AND BODIES,2102825343,1000045269,
06.06.2018,CHILDREN'S SERVICES,ST CHRISTOPHER FELLOWSHIP,"4,650.00",AGENCY FOSTERING,EXTERNAL AGENCIES AND BODIES,2102825383,1000045269,
06.06.2018,CHILDREN'S SERVICES,BY THE BRIDGE LTD,"4,674.27",AGENCY FOSTERING,EXTERNAL AGENCIES AND BODIES,2102825369,1000043961,
06.06.2018,CHILDREN'S SERVICES,CORE ASSETS FOSTERING LTD,"4,788.28",AGENCY FOSTERING,EXTERNAL AGENCIES AND BODIES,2102825388,11288002,
06.06.2018,CHILDREN'S SERVICES,BY THE BRIDGE LTD,"4,805.49",AGENCY FOSTERING,EXTERNAL AGENCIES AND BODIES,2102825342,1000043961,
06.06.2018,CHILDREN'S SERVICES,BY THE BRIDGE LTD,"4,805.49",AGENCY FOSTERING,EXTERNAL AGENCIES AND BODIES,2102825361,1000043961,
06.06.2018,CHILDREN'S SERVICES,CHILDREN OF COLOUR,"4,871.43",AGENCY FOSTERING,EXTERNAL AGENCIES AND BODIES,2102825335,1000044955,
06.06.2018,CHILDREN'S SERVICES,BY THE BRIDGE LTD,"4,903.54",AGENCY FOSTERING,EXTERNAL AGENCIES AND BODIES,2102825326,1000043961,
06.06.2018,CHILDREN'S SERVICES,BY THE BRIDGE LTD,"4,903.54",AGENCY FOSTERING,EXTERNAL AGENCIES AND BODIES,2102825327,1000043961,
06.06.2018,CHILDREN'S SERVICES,BY THE BRIDGE LTD,"4,903.54",AGENCY FOSTERING,EXTERNAL AGENCIES AND BODIES,2102825373,1000043961,
06.06.2018,CHILDREN'S SERVICES,INTEGRATED SERVICES PROGRAMME,"5,176.38",AGENCY FOSTERING,EXTERNAL AGENCIES AND BODIES,2102825648,1642068,
06.06.2018,CHILDREN'S SERVICES,INTEGRATED SERVICES PROGRAMME,"5,176.38",AGENCY FOSTERING,EXTERNAL AGENCIES AND BODIES,2102825653,1642068,
06.06.2018,CHILDREN'S SERVICES,INTEGRATED SERVICES PROGRAMME,"5,176.38",AGENCY FOSTERING,EXTERNAL AGENCIES AND BODIES,2102825668,1642068,
06.06.2018,CHILDREN'S SERVICES,INTEGRATED SERVICES PROGRAMME,"5,176.38",AGENCY FOSTERING,EXTERNAL AGENCIES AND BODIES,2102825669,1642068,
06.06.2018,CHILDREN'S SERVICES,NATIONAL FOSTERING AGENCY,"5,212.34",AGENCY FOSTERING,EXTERNAL AGENCIES AND BODIES,2102825652,1000038868,
06.06.2018,CHILDREN'S SERVICES,INTEGRATED SERVICES PROGRAMME,"5,336.34",AGENCY FOSTERING,EXTERNAL AGENCIES AND BODIES,2102825644,1642068,
06.06.2018,CHILDREN'S SERVICES,INTEGRATED SERVICES PROGRAMME,"5,336.34",AGENCY FOSTERING,EXTERNAL AGENCIES AND BODIES,2102825658,1642068,
06.06.2018,CHILDREN'S SERVICES,INTEGRATED SERVICES PROGRAMME,"5,336.34",AGENCY FOSTERING,EXTERNAL AGENCIES AND BODIES,2102825659,1642068,
06.06.2018,CHILDREN'S SERVICES,BY THE BRIDGE LTD,"5,469.28",AGENCY FOSTERING,EXTERNAL AGENCIES AND BODIES,2102825390,1000043961,
06.06.2018,CHILDREN'S SERVICES,BY THE BRIDGE LTD,"5,469.29",AGENCY FOSTERING,EXTERNAL AGENCIES AND BODIES,2102825333,1000043961,
06.06.2018,CHILDREN'S SERVICES,BY THE BRIDGE LTD,"5,469.29",AGENCY FOSTERING,EXTERNAL AGENCIES AND BODIES,2102825356,1000043961,
06.06.2018,CHILDREN'S SERVICES,BY THE BRIDGE LTD,"5,757.14",AGENCY FOSTERING,EXTERNAL AGENCIES AND BODIES,2102825336,1000043961,
06.06.2018,CHILDREN'S SERVICES,SHARED CARE SERVICES LTD,"5,838.54",AGENCY FOSTERING,EXTERNAL AGENCIES AND BODIES,2102825370,1000080308,
06.06.2018,CHILDREN'S SERVICES,CHRYSALIS CARE,"5,881.01",AGENCY FOSTERING,EXTERNAL AGENCIES AND BODIES,2102825337,1000028987,
06.06.2018,CHILDREN'S SERVICES,LIGHTHOUSE FOSTERING LTD,"5,978.57",AGENCY FOSTERING,EXTERNAL AGENCIES AND BODIES,2102825332,1000080372,
06.06.2018,CHILDREN'S SERVICES,BY THE BRIDGE LTD,"6,231.00",AGENCY FOSTERING,EXTERNAL AGENCIES AND BODIES,2102825350,1000043961,
06.06.2018,CHILDREN'S SERVICES,DIVERSE CARE (UK) LTD,"6,324.00",AGENCY FOSTERING,EXTERNAL AGENCIES AND BODIES,2102825372,1000055636,
06.06.2018,CHILDREN'S SERVICES,ALL4U FOSTERING LTD,"6,443.04",AGENCY FOSTERING,EXTERNAL AGENCIES AND BODIES,2102825380,1000080663,
06.06.2018,CHILDREN'S SERVICES,FIVE RIVERS CHILD CARE LTD,"6,527.71",AGENCY FOSTERING,EXTERNAL AGENCIES AND BODIES,2102825344,1000018792,
06.06.2018,CHILDREN'S SERVICES,CONTACT PROFESSIONALS,475.00,CARE GRPS  4 TO 6,OTHER PAYMENTS FOR CLIENTS,5902305909,1000057263,
06.06.2018,CHILDREN'S SERVICES,CONTACT PROFESSIONALS,494.00,CARE GRPS  4 TO 6,OTHER PAYMENTS FOR CLIENTS,5902305910,1000057263,
06.06.2018,CHILDREN'S SERVICES,CONTACT PROFESSIONALS,513.00,CARE PRACTICE GROUP SET C,OTHER PAYMENTS FOR CLIENTS,5902305907,1000057263,
06.06.2018,CHILDREN'S SERVICES,REDACTED PERSONAL DATA,280.00,CARE PRACTICE GROUP SET C,OTHER PAYMENTS FOR CLIENTS,REDACTED,REDACTED,
06.06.2018,CHILDREN'S SERVICES,REDACTED PERSONAL DATA,292.00,CARE PRACTICE GROUP SET C,OTHER PAYMENTS FOR CLIENTS,REDACTED,REDACTED,
06.06.2018,CHILDREN'S SERVICES,LNENGELVIN CONSULTANCY LTD,"-2,020.10",CLA TEAM SAFEGUARDING,PROFESSIONAL FEES,5902306120,1000078868,
06.06.2018,CHILDREN'S SERVICES,CHARLOTTE NOYES LTD,"1,630.70",CLA TEAM SAFEGUARDING,PROFESSIONAL FEES,5902305891,1000055677,
06.06.2018,CHILDREN'S SERVICES,CHARLOTTE NOYES LTD,"1,634.45",CLA TEAM SAFEGUARDING,PROFESSIONAL FEES,5902305890,1000055677,
06.06.2018,CHILDREN'S SERVICES,CHARLOTTE NOYES LTD,"1,989.15",CLA TEAM SAFEGUARDING,PROFESSIONAL FEES,5902305893,1000055677,
06.06.2018,CHILDREN'S SERVICES,LNENGELVIN CONSULTANCY LTD,"2,020.10",CLA TEAM SAFEGUARDING,PROFESSIONAL FEES,5902305880,1000078868,
06.06.2018,CHILDREN'S SERVICES,LNENGELVIN CONSULTANCY LTD,"2,020.10",CLA TEAM SAFEGUARDING,PROFESSIONAL FEES,5902306058,1000078868,
06.06.2018,CHILDREN'S SERVICES,REDACTED PERSONAL DATA,"-3,086.46",CLA TEAM SAFEGUARDING,PROFESSIONAL FEES,REDACTED,REDACTED,
06.06.2018,CHILDREN'S SERVICES,REDACTED PERSONAL DATA,"3,086.46",CLA TEAM SAFEGUARDING,PROFESSIONAL FEES,REDACTED,REDACTED,
06.06.2018,CHILDREN'S SERVICES,REDACTED PERSONAL DATA,"3,086.46",CLA TEAM SAFEGUARDING,PROFESSIONAL FEES,REDACTED,REDACTED,
06.06.2018,CHILDREN'S SERVICES,WALWORTH GARDEN FARM,750.00,COMMUNITY LEARNING 15/16,GRANTS,5902305763,1000042204,
06.06.2018,CHILDREN'S SERVICES,WALWORTH GARDEN FARM,"1,250.00",COMMUNITY LEARNING 15/16,GRANTS,5902305766,1000042204,
06.06.2018,CHILDREN'S SERVICES,WALWORTH GARDEN FARM,"3,250.00",COMMUNITY LEARNING 15/16,GRANTS,5902305720,1000042204,
06.06.2018,CHILDREN'S SERVICES,WALWORTH GARDEN FARM,"3,750.00",COMMUNITY LEARNING 15/16,GRANTS,5902305757,1000042204,
06.06.2018,CHILDREN'S SERVICES,WALWORTH GARDEN FARM,"4,000.00",COMMUNITY LEARNING 15/16,GRANTS,5902305761,1000042204,
06.06.2018,CHILDREN'S SERVICES,MYOSOTIS TRAINING LTD,425.00,DIRECT DELIVERY,PROFESSIONAL FEES,5902305739,1000063334,
06.06.2018,CHILDREN'S SERVICES,MYOSOTIS TRAINING LTD,850.00,DIRECT DELIVERY,PROFESSIONAL FEES,5902305742,1000063334,
06.06.2018,CHILDREN'S SERVICES,REDACTED PERSONAL DATA,300.00,DISABILITY & HIV,ADDITIONAL PAYMENTS TO AGENCIES/CARERS,REDACTED,REDACTED,
06.06.2018,CHILDREN'S SERVICES,REDACTED PERSONAL DATA,-858.12,DISABILITY & HIV,PAYMENTS TO CARERS,REDACTED,REDACTED,
06.06.2018,CHILDREN'S SERVICES,REDACTED PERSONAL DATA,-761.24,DISABILITY & HIV,PAYMENTS TO CARERS,REDACTED,REDACTED,
06.06.2018,CHILDREN'S SERVICES,REDACTED PERSONAL DATA,-708.95,DISABILITY & HIV,PAYMENTS TO CARERS,REDACTED,REDACTED,
06.06.2018,CHILDREN'S SERVICES,REDACTED PERSONAL DATA,-444.06,DISABILITY & HIV,PAYMENTS TO CARERS,REDACTED,REDACTED,
06.06.2018,CHILDREN'S SERVICES,REDACTED PERSONAL DATA,-403.04,DISABILITY & HIV,PAYMENTS TO CARERS,REDACTED,REDACTED,
06.06.2018,CHILDREN'S SERVICES,REDACTED PERSONAL DATA,-399.06,DISABILITY & HIV,PAYMENTS TO CARERS,REDACTED,REDACTED,
06.06.2018,CHILDREN'S SERVICES,REDACTED PERSONAL DATA,-399.06,DISABILITY & HIV,PAYMENTS TO CARERS,REDACTED,REDACTED,
06.06.2018,CHILDREN'S SERVICES,REDACTED PERSONAL DATA,-356.15,DISABILITY & HIV,PAYMENTS TO CARERS,REDACTED,REDACTED,
06.06.2018,CHILDREN'S SERVICES,REDACTED PERSONAL DATA,-332.67,DISABILITY & HIV,PAYMENTS TO CARERS,REDACTED,REDACTED,
06.06.2018,CHILDREN'S SERVICES,REDACTED PERSONAL DATA,287.88,DISABILITY & HIV,PAYMENTS TO CARERS,REDACTED,REDACTED,
06.06.2018,CHILDREN'S SERVICES,REDACTED PERSONAL DATA,476.08,DISABILITY & HIV,PAYMENTS TO CARERS,REDACTED,REDACTED,
06.06.2018,CHILDREN'S SERVICES,REDACTED PERSONAL DATA,635.34,DISABILITY & HIV,PAYMENTS TO CARERS,REDACTED,REDACTED,
06.06.2018,CHILDREN'S SERVICES,REDACTED PERSONAL DATA,635.34,DISABILITY & HIV,PAYMENTS TO CARERS,REDACTED,REDACTED,
06.06.2018,CHILDREN'S SERVICES,REDACTED PERSONAL DATA,665.34,DISABILITY & HIV,PAYMENTS TO CARERS,REDACTED,REDACTED,
06.06.2018,CHILDREN'S SERVICES,REDACTED PERSONAL DATA,665.34,DISABILITY & HIV,PAYMENTS TO CARERS,REDACTED,REDACTED,
06.06.2018,CHILDREN'S SERVICES,REDACTED PERSONAL DATA,665.34,DISABILITY & HIV,PAYMENTS TO CARERS,REDACTED,REDACTED,
06.06.2018,CHILDREN'S SERVICES,REDACTED PERSONAL DATA,665.34,DISABILITY & HIV,PAYMENTS TO CARERS,REDACTED,REDACTED,
06.06.2018,CHILDREN'S SERVICES,REDACTED PERSONAL DATA,665.34,DISABILITY & HIV,PAYMENTS TO CARERS,REDACTED,REDACTED,
06.06.2018,CHILDREN'S SERVICES,REDACTED PERSONAL DATA,665.34,DISABILITY & HIV,PAYMENTS TO CARERS,REDACTED,REDACTED,
06.06.2018,CHILDREN'S SERVICES,REDACTED PERSONAL DATA,665.34,DISABILITY & HIV,PAYMENTS TO CARERS,REDACTED,REDACTED,
06.06.2018,CHILDREN'S SERVICES,REDACTED PERSONAL DATA,665.34,DISABILITY & HIV,PAYMENTS TO CARERS,REDACTED,REDACTED,
06.06.2018,CHILDREN'S SERVICES,REDACTED PERSONAL DATA,682.30,DISABILITY & HIV,PAYMENTS TO CARERS,REDACTED,REDACTED,
06.06.2018,CHILDREN'S SERVICES,REDACTED PERSONAL DATA,682.30,DISABILITY & HIV,PAYMENTS TO CARERS,REDACTED,REDACTED,
06.06.2018,CHILDREN'S SERVICES,REDACTED PERSONAL DATA,682.30,DISABILITY & HIV,PAYMENTS TO CARERS,REDACTED,REDACTED,
06.06.2018,CHILDREN'S SERVICES,REDACTED PERSONAL DATA,682.30,DISABILITY & HIV,PAYMENTS TO CARERS,REDACTED,REDACTED,
06.06.2018,CHILDREN'S SERVICES,REDACTED PERSONAL DATA,682.30,DISABILITY & HIV,PAYMENTS TO CARERS,REDACTED,REDACTED,
06.06.2018,CHILDREN'S SERVICES,REDACTED PERSONAL DATA,682.30,DISABILITY & HIV,PAYMENTS TO CARERS,REDACTED,REDACTED,
06.06.2018,CHILDREN'S SERVICES,REDACTED PERSONAL DATA,682.30,DISABILITY & HIV,PAYMENTS TO CARERS,REDACTED,REDACTED,
06.06.2018,CHILDREN'S SERVICES,REDACTED PERSONAL DATA,682.30,DISABILITY & HIV,PAYMENTS TO CARERS,REDACTED,REDACTED,
06.06.2018,CHILDREN'S SERVICES,REDACTED PERSONAL DATA,682.30,DISABILITY & HIV,PAYMENTS TO CARERS,REDACTED,REDACTED,
06.06.2018,CHILDREN'S SERVICES,REDACTED PERSONAL DATA,682.30,DISABILITY & HIV,PAYMENTS TO CARERS,REDACTED,REDACTED,
06.06.2018,CHILDREN'S SERVICES,REDACTED PERSONAL DATA,682.30,DISABILITY & HIV,PAYMENTS TO CARERS,REDACTED,REDACTED,
06.06.2018,CHILDREN'S SERVICES,REDACTED PERSONAL DATA,682.30,DISABILITY & HIV,PAYMENTS TO CARERS,REDACTED,REDACTED,
06.06.2018,CHILDREN'S SERVICES,REDACTED PERSONAL DATA,682.30,DISABILITY & HIV,PAYMENTS TO CARERS,REDACTED,REDACTED,
06.06.2018,CHILDREN'S SERVICES,REDACTED PERSONAL DATA,682.30,DISABILITY & HIV,PAYMENTS TO CARERS,REDACTED,REDACTED,
06.06.2018,CHILDREN'S SERVICES,REDACTED PERSONAL DATA,712.30,DISABILITY & HIV,PAYMENTS TO CARERS,REDACTED,REDACTED,
06.06.2018,CHILDREN'S SERVICES,REDACTED PERSONAL DATA,712.30,DISABILITY & HIV,PAYMENTS TO CARERS,REDACTED,REDACTED,
06.06.2018,CHILDREN'S SERVICES,REDACTED PERSONAL DATA,712.30,DISABILITY & HIV,PAYMENTS TO CARERS,REDACTED,REDACTED,
06.06.2018,CHILDREN'S SERVICES,REDACTED PERSONAL DATA,712.30,DISABILITY & HIV,PAYMENTS TO CARERS,REDACTED,REDACTED,
06.06.2018,CHILDREN'S SERVICES,REDACTED PERSONAL DATA,712.30,DISABILITY & HIV,PAYMENTS TO CARERS,REDACTED,REDACTED,
06.06.2018,CHILDREN'S SERVICES,REDACTED PERSONAL DATA,712.30,DISABILITY & HIV,PAYMENTS TO CARERS,REDACTED,REDACTED,
06.06.2018,CHILDREN'S SERVICES,REDACTED PERSONAL DATA,712.30,DISABILITY & HIV,PAYMENTS TO CARERS,REDACTED,REDACTED,
06.06.2018,CHILDREN'S SERVICES,REDACTED PERSONAL DATA,712.30,DISABILITY & HIV,PAYMENTS TO CARERS,REDACTED,REDACTED,
06.06.2018,CHILDREN'S SERVICES,REDACTED PERSONAL DATA,712.30,DISABILITY & HIV,PAYMENTS TO CARERS,REDACTED,REDACTED,
06.06.2018,CHILDREN'S SERVICES,REDACTED PERSONAL DATA,712.30,DISABILITY & HIV,PAYMENTS TO CARERS,REDACTED,REDACTED,
06.06.2018,CHILDREN'S SERVICES,REDACTED PERSONAL DATA,712.30,DISABILITY & HIV,PAYMENTS TO CARERS,REDACTED,REDACTED,
06.06.2018,CHILDREN'S SERVICES,REDACTED PERSONAL DATA,712.30,DISABILITY & HIV,PAYMENTS TO CARERS,REDACTED,REDACTED,
06.06.2018,CHILDREN'S SERVICES,REDACTED PERSONAL DATA,712.30,DISABILITY & HIV,PAYMENTS TO CARERS,REDACTED,REDACTED,
06.06.2018,CHILDREN'S SERVICES,REDACTED PERSONAL DATA,712.30,DISABILITY & HIV,PAYMENTS TO CARERS,REDACTED,REDACTED,
06.06.2018,CHILDREN'S SERVICES,REDACTED PERSONAL DATA,712.30,DISABILITY & HIV,PAYMENTS TO CARERS,REDACTED,REDACTED,
06.06.2018,CHILDREN'S SERVICES,REDACTED PERSONAL DATA,712.30,DISABILITY & HIV,PAYMENTS TO CARERS,REDACTED,REDACTED,
06.06.2018,CHILDREN'S SERVICES,REDACTED PERSONAL DATA,712.30,DISABILITY & HIV,PAYMENTS TO CARERS,REDACTED,REDACTED,
06.06.2018,CHILDREN'S SERVICES,REDACTED PERSONAL DATA,712.30,DISABILITY & HIV,PAYMENTS TO CARERS,REDACTED,REDACTED,
06.06.2018,CHILDREN'S SERVICES,REDACTED PERSONAL DATA,712.30,DISABILITY & HIV,PAYMENTS TO CARERS,REDACTED,REDACTED,
06.06.2018,CHILDREN'S SERVICES,REDACTED PERSONAL DATA,712.30,DISABILITY & HIV,PAYMENTS TO CARERS,REDACTED,REDACTED,
06.06.2018,CHILDREN'S SERVICES,REDACTED PERSONAL DATA,712.30,DISABILITY & HIV,PAYMENTS TO CARERS,REDACTED,REDACTED,
06.06.2018,CHILDREN'S SERVICES,REDACTED PERSONAL DATA,712.30,DISABILITY & HIV,PAYMENTS TO CARERS,REDACTED,REDACTED,
06.06.2018,CHILDREN'S SERVICES,REDACTED PERSONAL DATA,712.30,DISABILITY & HIV,PAYMENTS TO CARERS,REDACTED,REDACTED,
06.06.2018,CHILDREN'S SERVICES,REDACTED PERSONAL DATA,712.30,DISABILITY & HIV,PAYMENTS TO CARERS,REDACTED,REDACTED,
06.06.2018,CHILDREN'S SERVICES,REDACTED PERSONAL DATA,712.30,DISABILITY & HIV,PAYMENTS TO CARERS,REDACTED,REDACTED,
06.06.2018,CHILDREN'S SERVICES,REDACTED PERSONAL DATA,712.30,DISABILITY & HIV,PAYMENTS TO CARERS,REDACTED,REDACTED,
06.06.2018,CHILDREN'S SERVICES,REDACTED PERSONAL DATA,712.30,DISABILITY & HIV,PAYMENTS TO CARERS,REDACTED,REDACTED,
06.06.2018,CHILDREN'S SERVICES,REDACTED PERSONAL DATA,742.30,DISABILITY & HIV,PAYMENTS TO CARERS,REDACTED,REDACTED,
06.06.2018,CHILDREN'S SERVICES,REDACTED PERSONAL DATA,768.12,DISABILITY & HIV,PAYMENTS TO CARERS,REDACTED,REDACTED,
06.06.2018,CHILDREN'S SERVICES,REDACTED PERSONAL DATA,768.12,DISABILITY & HIV,PAYMENTS TO CARERS,REDACTED,REDACTED,
06.06.2018,CHILDREN'S SERVICES,REDACTED PERSONAL DATA,768.12,DISABILITY & HIV,PAYMENTS TO CARERS,REDACTED,REDACTED,
06.06.2018,CHILDREN'S SERVICES,REDACTED PERSONAL DATA,768.12,DISABILITY & HIV,PAYMENTS TO CARERS,REDACTED,REDACTED,
06.06.2018,CHILDREN'S SERVICES,REDACTED PERSONAL DATA,768.12,DISABILITY & HIV,PAYMENTS TO CARERS,REDACTED,REDACTED,
06.06.2018,CHILDREN'S SERVICES,REDACTED PERSONAL DATA,768.12,DISABILITY & HIV,PAYMENTS TO CARERS,REDACTED,REDACTED,
06.06.2018,CHILDREN'S SERVICES,REDACTED PERSONAL DATA,776.08,DISABILITY & HIV,PAYMENTS TO CARERS,REDACTED,REDACTED,
06.06.2018,CHILDREN'S SERVICES,REDACTED PERSONAL DATA,776.08,DISABILITY & HIV,PAYMENTS TO CARERS,REDACTED,REDACTED,
06.06.2018,CHILDREN'S SERVICES,REDACTED PERSONAL DATA,776.08,DISABILITY & HIV,PAYMENTS TO CARERS,REDACTED,REDACTED,
06.06.2018,CHILDREN'S SERVICES,REDACTED PERSONAL DATA,776.08,DISABILITY & HIV,PAYMENTS TO CARERS,REDACTED,REDACTED,
06.06.2018,CHILDREN'S SERVICES,REDACTED PERSONAL DATA,776.08,DISABILITY & HIV,PAYMENTS TO CARERS,REDACTED,REDACTED,
06.06.2018,CHILDREN'S SERVICES,REDACTED PERSONAL DATA,776.08,DISABILITY & HIV,PAYMENTS TO CARERS,REDACTED,REDACTED,
06.06.2018,CHILDREN'S SERVICES,REDACTED PERSONAL DATA,776.08,DISABILITY & HIV,PAYMENTS TO CARERS,REDACTED,REDACTED,
06.06.2018,CHILDREN'S SERVICES,REDACTED PERSONAL DATA,776.08,DISABILITY & HIV,PAYMENTS TO CARERS,REDACTED,REDACTED,
06.06.2018,CHILDREN'S SERVICES,REDACTED PERSONAL DATA,776.08,DISABILITY & HIV,PAYMENTS TO CARERS,REDACTED,REDACTED,
06.06.2018,CHILDREN'S SERVICES,REDACTED PERSONAL DATA,776.08,DISABILITY & HIV,PAYMENTS TO CARERS,REDACTED,REDACTED,
06.06.2018,CHILDREN'S SERVICES,REDACTED PERSONAL DATA,776.08,DISABILITY & HIV,PAYMENTS TO CARERS,REDACTED,REDACTED,
06.06.2018,CHILDREN'S SERVICES,REDACTED PERSONAL DATA,798.12,DISABILITY & HIV,PAYMENTS TO CARERS,REDACTED,REDACTED,
06.06.2018,CHILDREN'S SERVICES,REDACTED PERSONAL DATA,798.12,DISABILITY & HIV,PAYMENTS TO CARERS,REDACTED,REDACTED,
06.06.2018,CHILDREN'S SERVICES,REDACTED PERSONAL DATA,798.12,DISABILITY & HIV,PAYMENTS TO CARERS,REDACTED,REDACTED,
06.06.2018,CHILDREN'S SERVICES,REDACTED PERSONAL DATA,798.12,DISABILITY & HIV,PAYMENTS TO CARERS,REDACTED,REDACTED,
06.06.2018,CHILDREN'S SERVICES,REDACTED PERSONAL DATA,798.12,DISABILITY & HIV,PAYMENTS TO CARERS,REDACTED,REDACTED,
06.06.2018,CHILDREN'S SERVICES,REDACTED PERSONAL DATA,798.12,DISABILITY & HIV,PAYMENTS TO CARERS,REDACTED,REDACTED,
06.06.2018,CHILDREN'S SERVICES,REDACTED PERSONAL DATA,798.12,DISABILITY & HIV,PAYMENTS TO CARERS,REDACTED,REDACTED,
06.06.2018,CHILDREN'S SERVICES,REDACTED PERSONAL DATA,798.12,DISABILITY & HIV,PAYMENTS TO CARERS,REDACTED,REDACTED,
06.06.2018,CHILDREN'S SERVICES,REDACTED PERSONAL DATA,798.12,DISABILITY & HIV,PAYMENTS TO CARERS,REDACTED,REDACTED,
06.06.2018,CHILDREN'S SERVICES,REDACTED PERSONAL DATA,798.12,DISABILITY & HIV,PAYMENTS TO CARERS,REDACTED,REDACTED,
06.06.2018,CHILDREN'S SERVICES,REDACTED PERSONAL DATA,798.12,DISABILITY & HIV,PAYMENTS TO CARERS,REDACTED,REDACTED,
06.06.2018,CHILDREN'S SERVICES,REDACTED PERSONAL DATA,798.12,DISABILITY & HIV,PAYMENTS TO CARERS,REDACTED,REDACTED,
06.06.2018,CHILDREN'S SERVICES,REDACTED PERSONAL DATA,798.12,DISABILITY & HIV,PAYMENTS TO CARERS,REDACTED,REDACTED,
06.06.2018,CHILDREN'S SERVICES,REDACTED PERSONAL DATA,798.12,DISABILITY & HIV,PAYMENTS TO CARERS,REDACTED,REDACTED,
06.06.2018,CHILDREN'S SERVICES,REDACTED PERSONAL DATA,798.12,DISABILITY & HIV,PAYMENTS TO CARERS,REDACTED,REDACTED,
06.06.2018,CHILDREN'S SERVICES,REDACTED PERSONAL DATA,798.12,DISABILITY & HIV,PAYMENTS TO CARERS,REDACTED,REDACTED,
06.06.2018,CHILDREN'S SERVICES,REDACTED PERSONAL DATA,798.12,DISABILITY & HIV,PAYMENTS TO CARERS,REDACTED,REDACTED,
06.06.2018,CHILDREN'S SERVICES,REDACTED PERSONAL DATA,798.12,DISABILITY & HIV,PAYMENTS TO CARERS,REDACTED,REDACTED,
06.06.2018,CHILDREN'S SERVICES,REDACTED PERSONAL DATA,798.12,DISABILITY & HIV,PAYMENTS TO CARERS,REDACTED,REDACTED,
06.06.2018,CHILDREN'S SERVICES,REDACTED PERSONAL DATA,806.08,DISABILITY & HIV,PAYMENTS TO CARERS,REDACTED,REDACTED,
06.06.2018,CHILDREN'S SERVICES,REDACTED PERSONAL DATA,806.08,DISABILITY & HIV,PAYMENTS TO CARERS,REDACTED,REDACTED,
06.06.2018,CHILDREN'S SERVICES,REDACTED PERSONAL DATA,806.08,DISABILITY & HIV,PAYMENTS TO CARERS,REDACTED,REDACTED,
06.06.2018,CHILDREN'S SERVICES,REDACTED PERSONAL DATA,806.08,DISABILITY & HIV,PAYMENTS TO CARERS,REDACTED,REDACTED,
06.06.2018,CHILDREN'S SERVICES,REDACTED PERSONAL DATA,806.08,DISABILITY & HIV,PAYMENTS TO CARERS,REDACTED,REDACTED,
06.06.2018,CHILDREN'S SERVICES,REDACTED PERSONAL DATA,806.08,DISABILITY & HIV,PAYMENTS TO CARERS,REDACTED,REDACTED,
06.06.2018,CHILDREN'S SERVICES,REDACTED PERSONAL DATA,806.08,DISABILITY & HIV,PAYMENTS TO CARERS,REDACTED,REDACTED,
06.06.2018,CHILDREN'S SERVICES,REDACTED PERSONAL DATA,806.08,DISABILITY & HIV,PAYMENTS TO CARERS,REDACTED,REDACTED,
06.06.2018,CHILDREN'S SERVICES,REDACTED PERSONAL DATA,806.08,DISABILITY & HIV,PAYMENTS TO CARERS,REDACTED,REDACTED,
06.06.2018,CHILDREN'S SERVICES,REDACTED PERSONAL DATA,806.08,DISABILITY & HIV,PAYMENTS TO CARERS,REDACTED,REDACTED,
06.06.2018,CHILDREN'S SERVICES,REDACTED PERSONAL DATA,806.08,DISABILITY & HIV,PAYMENTS TO CARERS,REDACTED,REDACTED,
06.06.2018,CHILDREN'S SERVICES,REDACTED PERSONAL DATA,806.08,DISABILITY & HIV,PAYMENTS TO CARERS,REDACTED,REDACTED,
06.06.2018,CHILDREN'S SERVICES,REDACTED PERSONAL DATA,806.08,DISABILITY & HIV,PAYMENTS TO CARERS,REDACTED,REDACTED,
06.06.2018,CHILDREN'S SERVICES,REDACTED PERSONAL DATA,806.08,DISABILITY & HIV,PAYMENTS TO CARERS,REDACTED,REDACTED,
06.06.2018,CHILDREN'S SERVICES,REDACTED PERSONAL DATA,806.08,DISABILITY & HIV,PAYMENTS TO CARERS,REDACTED,REDACTED,
06.06.2018,CHILDREN'S SERVICES,REDACTED PERSONAL DATA,806.08,DISABILITY & HIV,PAYMENTS TO CARERS,REDACTED,REDACTED,
06.06.2018,CHILDREN'S SERVICES,REDACTED PERSONAL DATA,806.08,DISABILITY & HIV,PAYMENTS TO CARERS,REDACTED,REDACTED,
06.06.2018,CHILDREN'S SERVICES,REDACTED PERSONAL DATA,806.08,DISABILITY & HIV,PAYMENTS TO CARERS,REDACTED,REDACTED,
06.06.2018,CHILDREN'S SERVICES,REDACTED PERSONAL DATA,806.08,DISABILITY & HIV,PAYMENTS TO CARERS,REDACTED,REDACTED,
06.06.2018,CHILDREN'S SERVICES,REDACTED PERSONAL DATA,806.08,DISABILITY & HIV,PAYMENTS TO CARERS,REDACTED,REDACTED,
06.06.2018,CHILDREN'S SERVICES,REDACTED PERSONAL DATA,806.08,DISABILITY & HIV,PAYMENTS TO CARERS,REDACTED,REDACTED,
06.06.2018,CHILDREN'S SERVICES,REDACTED PERSONAL DATA,806.08,DISABILITY & HIV,PAYMENTS TO CARERS,REDACTED,REDACTED,
06.06.2018,CHILDREN'S SERVICES,REDACTED PERSONAL DATA,806.08,DISABILITY & HIV,PAYMENTS TO CARERS,REDACTED,REDACTED,
06.06.2018,CHILDREN'S SERVICES,REDACTED PERSONAL DATA,806.08,DISABILITY & HIV,PAYMENTS TO CARERS,REDACTED,REDACTED,
06.06.2018,CHILDREN'S SERVICES,REDACTED PERSONAL DATA,806.08,DISABILITY & HIV,PAYMENTS TO CARERS,REDACTED,REDACTED,
06.06.2018,CHILDREN'S SERVICES,REDACTED PERSONAL DATA,806.08,DISABILITY & HIV,PAYMENTS TO CARERS,REDACTED,REDACTED,
06.06.2018,CHILDREN'S SERVICES,REDACTED PERSONAL DATA,806.08,DISABILITY & HIV,PAYMENTS TO CARERS,REDACTED,REDACTED,
06.06.2018,CHILDREN'S SERVICES,REDACTED PERSONAL DATA,806.08,DISABILITY & HIV,PAYMENTS TO CARERS,REDACTED,REDACTED,
06.06.2018,CHILDREN'S SERVICES,REDACTED PERSONAL DATA,806.08,DISABILITY & HIV,PAYMENTS TO CARERS,REDACTED,REDACTED,
06.06.2018,CHILDREN'S SERVICES,REDACTED PERSONAL DATA,806.08,DISABILITY & HIV,PAYMENTS TO CARERS,REDACTED,REDACTED,
06.06.2018,CHILDREN'S SERVICES,REDACTED PERSONAL DATA,806.08,DISABILITY & HIV,PAYMENTS TO CARERS,REDACTED,REDACTED,
06.06.2018,CHILDREN'S SERVICES,REDACTED PERSONAL DATA,806.08,DISABILITY & HIV,PAYMENTS TO CARERS,REDACTED,REDACTED,
06.06.2018,CHILDREN'S SERVICES,REDACTED PERSONAL DATA,806.08,DISABILITY & HIV,PAYMENTS TO CARERS,REDACTED,REDACTED,
06.06.2018,CHILDREN'S SERVICES,REDACTED PERSONAL DATA,806.08,DISABILITY & HIV,PAYMENTS TO CARERS,REDACTED,REDACTED,
06.06.2018,CHILDREN'S SERVICES,REDACTED PERSONAL DATA,806.08,DISABILITY & HIV,PAYMENTS TO CARERS,REDACTED,REDACTED,
06.06.2018,CHILDREN'S SERVICES,REDACTED PERSONAL DATA,806.08,DISABILITY & HIV,PAYMENTS TO CARERS,REDACTED,REDACTED,
06.06.2018,CHILDREN'S SERVICES,REDACTED PERSONAL DATA,806.08,DISABILITY & HIV,PAYMENTS TO CARERS,REDACTED,REDACTED,
06.06.2018,CHILDREN'S SERVICES,REDACTED PERSONAL DATA,806.08,DISABILITY & HIV,PAYMENTS TO CARERS,REDACTED,REDACTED,
06.06.2018,CHILDREN'S SERVICES,REDACTED PERSONAL DATA,806.08,DISABILITY & HIV,PAYMENTS TO CARERS,REDACTED,REDACTED,
06.06.2018,CHILDREN'S SERVICES,REDACTED PERSONAL DATA,806.08,DISABILITY & HIV,PAYMENTS TO CARERS,REDACTED,REDACTED,
06.06.2018,CHILDREN'S SERVICES,REDACTED PERSONAL DATA,806.08,DISABILITY & HIV,PAYMENTS TO CARERS,REDACTED,REDACTED,
06.06.2018,CHILDREN'S SERVICES,REDACTED PERSONAL DATA,806.08,DISABILITY & HIV,PAYMENTS TO CARERS,REDACTED,REDACTED,
06.06.2018,CHILDREN'S SERVICES,REDACTED PERSONAL DATA,806.08,DISABILITY & HIV,PAYMENTS TO CARERS,REDACTED,REDACTED,
06.06.2018,CHILDREN'S SERVICES,REDACTED PERSONAL DATA,806.08,DISABILITY & HIV,PAYMENTS TO CARERS,REDACTED,REDACTED,
06.06.2018,CHILDREN'S SERVICES,REDACTED PERSONAL DATA,806.08,DISABILITY & HIV,PAYMENTS TO CARERS,REDACTED,REDACTED,
06.06.2018,CHILDREN'S SERVICES,REDACTED PERSONAL DATA,806.08,DISABILITY & HIV,PAYMENTS TO CARERS,REDACTED,REDACTED,
06.06.2018,CHILDREN'S SERVICES,REDACTED PERSONAL DATA,843.12,DISABILITY & HIV,PAYMENTS TO CARERS,REDACTED,REDACTED,
06.06.2018,CHILDREN'S SERVICES,REDACTED PERSONAL DATA,854.28,DISABILITY & HIV,PAYMENTS TO CARERS,REDACTED,REDACTED,
06.06.2018,CHILDREN'S SERVICES,REDACTED PERSONAL DATA,858.12,DISABILITY & HIV,PAYMENTS TO CARERS,REDACTED,REDACTED,
06.06.2018,CHILDREN'S SERVICES,REDACTED PERSONAL DATA,868.84,DISABILITY & HIV,PAYMENTS TO CARERS,REDACTED,REDACTED,
06.06.2018,CHILDREN'S SERVICES,REDACTED PERSONAL DATA,881.70,DISABILITY & HIV,PAYMENTS TO CARERS,REDACTED,REDACTED,
06.06.2018,CHILDREN'S SERVICES,REDACTED PERSONAL DATA,888.12,DISABILITY & HIV,PAYMENTS TO CARERS,REDACTED,REDACTED,
06.06.2018,CHILDREN'S SERVICES,REDACTED PERSONAL DATA,888.12,DISABILITY & HIV,PAYMENTS TO CARERS,REDACTED,REDACTED,
06.06.2018,CHILDREN'S SERVICES,REDACTED PERSONAL DATA,888.12,DISABILITY & HIV,PAYMENTS TO CARERS,REDACTED,REDACTED,
06.06.2018,CHILDREN'S SERVICES,REDACTED PERSONAL DATA,888.12,DISABILITY & HIV,PAYMENTS TO CARERS,REDACTED,REDACTED,
06.06.2018,CHILDREN'S SERVICES,REDACTED PERSONAL DATA,888.12,DISABILITY & HIV,PAYMENTS TO CARERS,REDACTED,REDACTED,
06.06.2018,CHILDREN'S SERVICES,REDACTED PERSONAL DATA,888.12,DISABILITY & HIV,PAYMENTS TO CARERS,REDACTED,REDACTED,
06.06.2018,CHILDREN'S SERVICES,REDACTED PERSONAL DATA,888.12,DISABILITY & HIV,PAYMENTS TO CARERS,REDACTED,REDACTED,
06.06.2018,CHILDREN'S SERVICES,REDACTED PERSONAL DATA,888.12,DISABILITY & HIV,PAYMENTS TO CARERS,REDACTED,REDACTED,
06.06.2018,CHILDREN'S SERVICES,REDACTED PERSONAL DATA,888.12,DISABILITY & HIV,PAYMENTS TO CARERS,REDACTED,REDACTED,
06.06.2018,CHILDREN'S SERVICES,REDACTED PERSONAL DATA,888.12,DISABILITY & HIV,PAYMENTS TO CARERS,REDACTED,REDACTED,
06.06.2018,CHILDREN'S SERVICES,REDACTED PERSONAL DATA,888.12,DISABILITY & HIV,PAYMENTS TO CARERS,REDACTED,REDACTED,
06.06.2018,CHILDREN'S SERVICES,REDACTED PERSONAL DATA,888.12,DISABILITY & HIV,PAYMENTS TO CARERS,REDACTED,REDACTED,
06.06.2018,CHILDREN'S SERVICES,REDACTED PERSONAL DATA,888.12,DISABILITY & HIV,PAYMENTS TO CARERS,REDACTED,REDACTED,
06.06.2018,CHILDREN'S SERVICES,REDACTED PERSONAL DATA,888.12,DISABILITY & HIV,PAYMENTS TO CARERS,REDACTED,REDACTED,
06.06.2018,CHILDREN'S SERVICES,REDACTED PERSONAL DATA,888.12,DISABILITY & HIV,PAYMENTS TO CARERS,REDACTED,REDACTED,
06.06.2018,CHILDREN'S SERVICES,REDACTED PERSONAL DATA,924.20,DISABILITY & HIV,PAYMENTS TO CARERS,REDACTED,REDACTED,
06.06.2018,CHILDREN'S SERVICES,REDACTED PERSONAL DATA,991.42,DISABILITY & HIV,PAYMENTS TO CARERS,REDACTED,REDACTED,
06.06.2018,CHILDREN'S SERVICES,REDACTED PERSONAL DATA,991.42,DISABILITY & HIV,PAYMENTS TO CARERS,REDACTED,REDACTED,
06.06.2018,CHILDREN'S SERVICES,REDACTED PERSONAL DATA,991.42,DISABILITY & HIV,PAYMENTS TO CARERS,REDACTED,REDACTED,
06.06.2018,CHILDREN'S SERVICES,REDACTED PERSONAL DATA,991.48,DISABILITY & HIV,PAYMENTS TO CARERS,REDACTED,REDACTED,
06.06.2018,CHILDREN'S SERVICES,REDACTED PERSONAL DATA,"1,094.60",DISABILITY & HIV,PAYMENTS TO CARERS,REDACTED,REDACTED,
06.06.2018,CHILDREN'S SERVICES,REDACTED PERSONAL DATA,"1,094.60",DISABILITY & HIV,PAYMENTS TO CARERS,REDACTED,REDACTED,
06.06.2018,CHILDREN'S SERVICES,REDACTED PERSONAL DATA,"1,379.08",DISABILITY & HIV,PAYMENTS TO CARERS,REDACTED,REDACTED,
06.06.2018,CHILDREN'S SERVICES,REDACTED PERSONAL DATA,"1,633.46",DISABILITY & HIV,PAYMENTS TO CARERS,REDACTED,REDACTED,
06.06.2018,CHILDREN'S SERVICES,REDACTED PERSONAL DATA,"2,359.22",DISABILITY & HIV,PAYMENTS TO CARERS,REDACTED,REDACTED,
06.06.2018,CHILDREN'S SERVICES,REDACTED PERSONAL DATA,"2,706.12",DISABILITY & HIV,PAYMENTS TO CARERS,REDACTED,REDACTED,
06.06.2018,CHILDREN'S SERVICES,INTERPRETING DIRECT CO (UK) LTD,"7,598.50",FINANCE,INTERPRETING SERVICES,5902305753,1000070133,
06.06.2018,CHILDREN'S SERVICES,REDACTED PERSONAL DATA,450.00,FRIENDS & FAMILY FOSTERING,ADDITIONAL PAYMENTS TO AGENCIES/CARERS,REDACTED,REDACTED,
06.06.2018,CHILDREN'S SERVICES,REDACTED PERSONAL DATA,450.00,FRIENDS & FAMILY FOSTERING,ADDITIONAL PAYMENTS TO AGENCIES/CARERS,REDACTED,REDACTED,
06.06.2018,CHILDREN'S SERVICES,REDACTED PERSONAL DATA,335.34,FRIENDS & FAMILY FOSTERING,PAYMENTS TO CARERS,REDACTED,REDACTED,
06.06.2018,CHILDREN'S SERVICES,REDACTED PERSONAL DATA,335.34,FRIENDS & FAMILY FOSTERING,PAYMENTS TO CARERS,REDACTED,REDACTED,
06.06.2018,CHILDREN'S SERVICES,REDACTED PERSONAL DATA,335.34,FRIENDS & FAMILY FOSTERING,PAYMENTS TO CARERS,REDACTED,REDACTED,
06.06.2018,CHILDREN'S SERVICES,REDACTED PERSONAL DATA,335.34,FRIENDS & FAMILY FOSTERING,PAYMENTS TO CARERS,REDACTED,REDACTED,
06.06.2018,CHILDREN'S SERVICES,REDACTED PERSONAL DATA,335.34,FRIENDS & FAMILY FOSTERING,PAYMENTS TO CARERS,REDACTED,REDACTED,
06.06.2018,CHILDREN'S SERVICES,REDACTED PERSONAL DATA,382.30,FRIENDS & FAMILY FOSTERING,PAYMENTS TO CARERS,REDACTED,REDACTED,
06.06.2018,CHILDREN'S SERVICES,REDACTED PERSONAL DATA,382.30,FRIENDS & FAMILY FOSTERING,PAYMENTS TO CARERS,REDACTED,REDACTED,
06.06.2018,CHILDREN'S SERVICES,REDACTED PERSONAL DATA,476.08,FRIENDS & FAMILY FOSTERING,PAYMENTS TO CARERS,REDACTED,REDACTED,
06.06.2018,CHILDREN'S SERVICES,REDACTED PERSONAL DATA,476.08,FRIENDS & FAMILY FOSTERING,PAYMENTS TO CARERS,REDACTED,REDACTED,
06.06.2018,CHILDREN'S SERVICES,REDACTED PERSONAL DATA,476.08,FRIENDS & FAMILY FOSTERING,PAYMENTS TO CARERS,REDACTED,REDACTED,
06.06.2018,CHILDREN'S SERVICES,REDACTED PERSONAL DATA,682.30,FRIENDS & FAMILY FOSTERING,PAYMENTS TO CARERS,REDACTED,REDACTED,
06.06.2018,CHILDREN'S SERVICES,REDACTED PERSONAL DATA,682.30,FRIENDS & FAMILY FOSTERING,PAYMENTS TO CARERS,REDACTED,REDACTED,
06.06.2018,CHILDREN'S SERVICES,REDACTED PERSONAL DATA,682.30,FRIENDS & FAMILY FOSTERING,PAYMENTS TO CARERS,REDACTED,REDACTED,
06.06.2018,CHILDREN'S SERVICES,REDACTED PERSONAL DATA,682.30,FRIENDS & FAMILY FOSTERING,PAYMENTS TO CARERS,REDACTED,REDACTED,
06.06.2018,CHILDREN'S SERVICES,REDACTED PERSONAL DATA,682.30,FRIENDS & FAMILY FOSTERING,PAYMENTS TO CARERS,REDACTED,REDACTED,
06.06.2018,CHILDREN'S SERVICES,REDACTED PERSONAL DATA,682.30,FRIENDS & FAMILY FOSTERING,PAYMENTS TO CARERS,REDACTED,REDACTED,
06.06.2018,CHILDREN'S SERVICES,REDACTED PERSONAL DATA,682.30,FRIENDS & FAMILY FOSTERING,PAYMENTS TO CARERS,REDACTED,REDACTED,
06.06.2018,CHILDREN'S SERVICES,REDACTED PERSONAL DATA,682.30,FRIENDS & FAMILY FOSTERING,PAYMENTS TO CARERS,REDACTED,REDACTED,
06.06.2018,CHILDREN'S SERVICES,REDACTED PERSONAL DATA,682.30,FRIENDS & FAMILY FOSTERING,PAYMENTS TO CARERS,REDACTED,REDACTED,
06.06.2018,CHILDREN'S SERVICES,REDACTED PERSONAL DATA,682.30,FRIENDS & FAMILY FOSTERING,PAYMENTS TO CARERS,REDACTED,REDACTED,
06.06.2018,CHILDREN'S SERVICES,REDACTED PERSONAL DATA,682.30,FRIENDS & FAMILY FOSTERING,PAYMENTS TO CARERS,REDACTED,REDACTED,
06.06.2018,CHILDREN'S SERVICES,REDACTED PERSONAL DATA,682.30,FRIENDS & FAMILY FOSTERING,PAYMENTS TO CARERS,REDACTED,REDACTED,
06.06.2018,CHILDREN'S SERVICES,REDACTED PERSONAL DATA,682.30,FRIENDS & FAMILY FOSTERING,PAYMENTS TO CARERS,REDACTED,REDACTED,
06.06.2018,CHILDREN'S SERVICES,REDACTED PERSONAL DATA,767.66,FRIENDS & FAMILY FOSTERING,PAYMENTS TO CARERS,REDACTED,REDACTED,
06.06.2018,CHILDREN'S SERVICES,REDACTED PERSONAL DATA,776.08,FRIENDS & FAMILY FOSTERING,PAYMENTS TO CARERS,REDACTED,REDACTED,
06.06.2018,CHILDREN'S SERVICES,REDACTED PERSONAL DATA,776.08,FRIENDS & FAMILY FOSTERING,PAYMENTS TO CARERS,REDACTED,REDACTED,
06.06.2018,CHILDREN'S SERVICES,REDACTED PERSONAL DATA,776.08,FRIENDS & FAMILY FOSTERING,PAYMENTS TO CARERS,REDACTED,REDACTED,
06.06.2018,CHILDREN'S SERVICES,REDACTED PERSONAL DATA,776.08,FRIENDS & FAMILY FOSTERING,PAYMENTS TO CARERS,REDACTED,REDACTED,
06.06.2018,CHILDREN'S SERVICES,REDACTED PERSONAL DATA,776.08,FRIENDS & FAMILY FOSTERING,PAYMENTS TO CARERS,REDACTED,REDACTED,
06.06.2018,CHILDREN'S SERVICES,REDACTED PERSONAL DATA,776.08,FRIENDS & FAMILY FOSTERING,PAYMENTS TO CARERS,REDACTED,REDACTED,
06.06.2018,CHILDREN'S SERVICES,REDACTED PERSONAL DATA,264.16,RESIDENCE ORDERS,PAYMENTS TO CARERS,REDACTED,REDACTED,
06.06.2018,CHILDREN'S SERVICES,REDACTED PERSONAL DATA,268.36,RESIDENCE ORDERS,PAYMENTS TO CARERS,REDACTED,REDACTED,
06.06.2018,CHILDREN'S SERVICES,REDACTED PERSONAL DATA,269.08,RESIDENCE ORDERS,PAYMENTS TO CARERS,REDACTED,REDACTED,
06.06.2018,CHILDREN'S SERVICES,REDACTED PERSONAL DATA,269.08,RESIDENCE ORDERS,PAYMENTS TO CARERS,REDACTED,REDACTED,
06.06.2018,CHILDREN'S SERVICES,REDACTED PERSONAL DATA,269.08,RESIDENCE ORDERS,PAYMENTS TO CARERS,REDACTED,REDACTED,
06.06.2018,CHILDREN'S SERVICES,ASPIRE HOUSE LTD,"-5,622.88",RESIDENTIAL,RESIDENTIAL CARE,2102825274,1000080373,
06.06.2018,CHILDREN'S SERVICES,ASPIRE HOUSE LTD,"21,788.66",RESIDENTIAL,RESIDENTIAL CARE,2102825275,1000080373,
06.06.2018,CHILDREN'S SERVICES,YOUNG FUTURES,-903.34,S24 CLA,EXTERNAL AGENCIES AND BODIES,2102825290,1000059563,
06.06.2018,CHILDREN'S SERVICES,YOUNG FUTURES,-903.34,S24 CLA,EXTERNAL AGENCIES AND BODIES,2102825292,1000059563,
06.06.2018,CHILDREN'S SERVICES,YOUNG FUTURES,-658.75,S24 CLA,EXTERNAL AGENCIES AND BODIES,2102825319,1000059563,
06.06.2018,CHILDREN'S SERVICES,YOUNG FUTURES,-450.43,S24 CLA,EXTERNAL AGENCIES AND BODIES,2102825305,1000059563,
06.06.2018,CHILDREN'S SERVICES,HEXAGON HOUSING ASSOCIATION LTD,"1,189.20",S24 CLA,EXTERNAL AGENCIES AND BODIES,5902305898,1000056905,
06.06.2018,CHILDREN'S SERVICES,CORNERSTONE CARE PARTNERSHIP LTD,"1,411.38",S24 CLA,EXTERNAL AGENCIES AND BODIES,2102825311,1000078888,
06.06.2018,CHILDREN'S SERVICES,HOLMDENE HOUSING LTD,"1,480.00",S24 CLA,EXTERNAL AGENCIES AND BODIES,2102825294,1000032598,
06.06.2018,CHILDREN'S SERVICES,HOLMDENE HOUSING LTD,"1,600.00",S24 CLA,EXTERNAL AGENCIES AND BODIES,2102825320,1000032598,
06.06.2018,CHILDREN'S SERVICES,FINEFAIR LTD,"1,687.33",S24 CLA,EXTERNAL AGENCIES AND BODIES,2102825304,1000075570,
06.06.2018,CHILDREN'S SERVICES,FINEFAIR LTD,"1,687.33",S24 CLA,EXTERNAL AGENCIES AND BODIES,2102825310,1000075570,
06.06.2018,CHILDREN'S SERVICES,FINEFAIR LTD,"1,687.33",S24 CLA,EXTERNAL AGENCIES AND BODIES,2102825317,1000075570,
06.06.2018,CHILDREN'S SERVICES,FUTURE FOUNDATIONS LTD,"1,722.71",S24 CLA,EXTERNAL AGENCIES AND BODIES,2102825297,1000063272,
06.06.2018,CHILDREN'S SERVICES,FUTURE FOUNDATIONS LTD,"1,722.71",S24 CLA,EXTERNAL AGENCIES AND BODIES,2102825322,1000063272,
06.06.2018,CHILDREN'S SERVICES,HOLMDENE HOUSING LTD,"1,880.00",S24 CLA,EXTERNAL AGENCIES AND BODIES,2102825295,1000032598,
06.06.2018,CHILDREN'S SERVICES,YOUNG FUTURES,"1,984.00",S24 CLA,EXTERNAL AGENCIES AND BODIES,2102825288,1000059563,
06.06.2018,CHILDREN'S SERVICES,YOUNG FUTURES,"2,214.02",S24 CLA,EXTERNAL AGENCIES AND BODIES,2102825302,1000059563,
06.06.2018,CHILDREN'S SERVICES,YOUNG FUTURES,"2,214.33",S24 CLA,EXTERNAL AGENCIES AND BODIES,2102825285,1000059563,
06.06.2018,CHILDREN'S SERVICES,YOUNG FUTURES,"2,214.33",S24 CLA,EXTERNAL AGENCIES AND BODIES,2102825306,1000059563,
06.06.2018,CHILDREN'S SERVICES,CREATING LIFESTYLES,"2,500.00",S24 CLA,EXTERNAL AGENCIES AND BODIES,2102825301,1000075830,
06.06.2018,CHILDREN'S SERVICES,YOUNG FUTURES,"2,790.00",S24 CLA,EXTERNAL AGENCIES AND BODIES,2102825286,1000059563,
06.06.2018,CHILDREN'S SERVICES,YOUNG FUTURES,"2,790.00",S24 CLA,EXTERNAL AGENCIES AND BODIES,2102825308,1000059563,
06.06.2018,CHILDREN'S SERVICES,YOUNG FUTURES,"2,790.00",S24 CLA,EXTERNAL AGENCIES AND BODIES,2102825315,1000059563,
06.06.2018,CHILDREN'S SERVICES,FUTURE FOUNDATIONS LTD,"2,896.28",S24 CLA,EXTERNAL AGENCIES AND BODIES,2102825299,1000063272,
06.06.2018,CHILDREN'S SERVICES,FUTURE FOUNDATIONS LTD,"3,117.04",S24 CLA,EXTERNAL AGENCIES AND BODIES,2102825293,1000063272,
06.06.2018,CHILDREN'S SERVICES,FUTURE FOUNDATIONS LTD,"4,419.71",S24 CLA,EXTERNAL AGENCIES AND BODIES,2102825287,1000063272,
06.06.2018,CHILDREN'S SERVICES,FUTURE FOUNDATIONS LTD,"4,419.71",S24 CLA,EXTERNAL AGENCIES AND BODIES,2102825323,1000063272,
06.06.2018,CHILDREN'S SERVICES,CREATING LIFESTYLES,"-1,200.00",SEMI INDEPENDENT,EXTERNAL AGENCIES AND BODIES,2102825267,1000075830,
06.06.2018,CHILDREN'S SERVICES,CREATING LIFESTYLES,-457.14,SEMI INDEPENDENT,EXTERNAL AGENCIES AND BODIES,2102825257,1000075830,
06.06.2018,CHILDREN'S SERVICES,COMMUNITY BUILDING MANAGEMENT,374.51,SEMI INDEPENDENT,EXTERNAL AGENCIES AND BODIES,2102825636,1000078932,
06.06.2018,CHILDREN'S SERVICES,ABOVE BEYOND CARE,"3,321.42",SEMI INDEPENDENT,EXTERNAL AGENCIES AND BODIES,2102825253,1000063478,
06.06.2018,CHILDREN'S SERVICES,ABOVE BEYOND CARE,"3,321.42",SEMI INDEPENDENT,EXTERNAL AGENCIES AND BODIES,2102825259,1000063478,
06.06.2018,CHILDREN'S SERVICES,COMMUNITY BUILDING MANAGEMENT,"3,529.66",SEMI INDEPENDENT,EXTERNAL AGENCIES AND BODIES,2102825634,1000078932,
06.06.2018,CHILDREN'S SERVICES,CREATING LIFESTYLES,"3,892.85",SEMI INDEPENDENT,EXTERNAL AGENCIES AND BODIES,2102825258,1000075830,
06.06.2018,CHILDREN'S SERVICES,COMMUNITY BUILDING MANAGEMENT,"3,904.71",SEMI INDEPENDENT,EXTERNAL AGENCIES AND BODIES,2102825635,1000078932,
06.06.2018,CHILDREN'S SERVICES,YOUNG FUTURES,"3,941.34",SEMI INDEPENDENT,EXTERNAL AGENCIES AND BODIES,2102825247,1000059563,
06.06.2018,CHILDREN'S SERVICES,ABOVE BEYOND CARE,"3,988.36",SEMI INDEPENDENT,EXTERNAL AGENCIES AND BODIES,2102825268,1000063478,
06.06.2018,CHILDREN'S SERVICES,CREATING LIFESTYLES,"4,220.00",SEMI INDEPENDENT,EXTERNAL AGENCIES AND BODIES,2102825249,1000075830,
06.06.2018,CHILDREN'S SERVICES,HOLMDENE HOUSING LTD,"4,280.00",SEMI INDEPENDENT,EXTERNAL AGENCIES AND BODIES,2102825262,1000032598,
06.06.2018,CHILDREN'S SERVICES,RELA SUPPORT SERVICES LTD,"4,339.50",SEMI INDEPENDENT,EXTERNAL AGENCIES AND BODIES,2102825263,1000073128,
06.06.2018,CHILDREN'S SERVICES,FUTURE FOUNDATIONS LTD,"4,419.71",SEMI INDEPENDENT,EXTERNAL AGENCIES AND BODIES,2102825250,1000063272,
06.06.2018,CHILDREN'S SERVICES,FUTURE FOUNDATIONS LTD,"4,419.71",SEMI INDEPENDENT,EXTERNAL AGENCIES AND BODIES,2102825255,1000063272,
06.06.2018,CHILDREN'S SERVICES,SILVER BIRCH CARE LTD,"5,097.21",SEMI INDEPENDENT,EXTERNAL AGENCIES AND BODIES,2102825312,1000076525,
06.06.2018,CHILDREN'S SERVICES,YOUNG FUTURES,"8,192.68",SEMI INDEPENDENT,EXTERNAL AGENCIES AND BODIES,2102825261,1000059563,
06.06.2018,CHILDREN'S SERVICES,CREATING LIFESTYLES,"10,394.28",SEMI INDEPENDENT,EXTERNAL AGENCIES AND BODIES,2102825265,1000075830,
06.06.2018,CHILDREN'S SERVICES,FRESH START SUPPORT LTD,"13,714.29",SEMI INDEPENDENT,EXTERNAL AGENCIES AND BODIES,2102825252,1000070537,
06.06.2018,CHILDREN'S SERVICES,COMMUNITY BUILDING MANAGEMENT,"21,946.95",SEMI INDEPENDENT,EXTERNAL AGENCIES AND BODIES,2102825637,1000078932,
06.06.2018,CHILDREN'S SERVICES,REDACTED PERSONAL DATA,"2,899.16",SEMI INDEPENDENT,EXTERNAL AGENCIES AND BODIES,REDACTED,REDACTED,
06.06.2018,CHILDREN'S SERVICES,ABOVE BEYOND CARE,256.42,SEMI INDEPENDENT,OTHER PAYMENTS FOR CLIENTS,2102825269,1000063478,
06.06.2018,CHILDREN'S SERVICES,FUTURE FOUNDATIONS LTD,265.71,SEMI INDEPENDENT,OTHER PAYMENTS FOR CLIENTS,2102825251,1000063272,
06.06.2018,CHILDREN'S SERVICES,FUTURE FOUNDATIONS LTD,265.71,SEMI INDEPENDENT,OTHER PAYMENTS FOR CLIENTS,2102825272,1000063272,
06.06.2018,CHILDREN'S SERVICES,ABOVE BEYOND CARE,265.72,SEMI INDEPENDENT,OTHER PAYMENTS FOR CLIENTS,2102825254,1000063478,
06.06.2018,CHILDREN'S SERVICES,ABOVE BEYOND CARE,265.72,SEMI INDEPENDENT,OTHER PAYMENTS FOR CLIENTS,2102825260,1000063478,
06.06.2018,CHILDREN'S SERVICES,TEAM STEPS,"6,788.00",SEMI INDEPENDENT,RESIDENTIAL CARE,2102825245,1000081037,
06.06.2018,CHILDREN'S SERVICES,TEAM STEPS,"6,841.39",SEMI INDEPENDENT,RESIDENTIAL CARE,2102825273,1000081037,
06.06.2018,CHILDREN'S SERVICES,REDACTED PERSONAL DATA,268.36,SPECIAL GUARDIANSHIP,PAYMENTS TO CARERS,REDACTED,REDACTED,
06.06.2018,CHILDREN'S SERVICES,REDACTED PERSONAL DATA,269.08,SPECIAL GUARDIANSHIP,PAYMENTS TO CARERS,REDACTED,REDACTED,
06.06.2018,CHILDREN'S SERVICES,REDACTED PERSONAL DATA,269.08,SPECIAL GUARDIANSHIP,PAYMENTS TO CARERS,REDACTED,REDACTED,
06.06.2018,CHILDREN'S SERVICES,REDACTED PERSONAL DATA,269.08,SPECIAL GUARDIANSHIP,PAYMENTS TO CARERS,REDACTED,REDACTED,
06.06.2018,CHILDREN'S SERVICES,REDACTED PERSONAL DATA,276.10,SPECIAL GUARDIANSHIP,PAYMENTS TO CARERS,REDACTED,REDACTED,
06.06.2018,CHILDREN'S SERVICES,REDACTED PERSONAL DATA,303.97,SPECIAL GUARDIANSHIP,PAYMENTS TO CARERS,REDACTED,REDACTED,
06.06.2018,CHILDREN'S SERVICES,REDACTED PERSONAL DATA,354.59,SPECIAL GUARDIANSHIP,PAYMENTS TO CARERS,REDACTED,REDACTED,
06.06.2018,CHILDREN'S SERVICES,REDACTED PERSONAL DATA,433.36,SPECIAL GUARDIANSHIP,PAYMENTS TO CARERS,REDACTED,REDACTED,
06.06.2018,CHILDREN'S SERVICES,REDACTED PERSONAL DATA,525.00,SPECIAL GUARDIANSHIP,PAYMENTS TO CARERS,REDACTED,REDACTED,
06.06.2018,CHILDREN'S SERVICES,REDACTED PERSONAL DATA,525.00,SPECIAL GUARDIANSHIP,PAYMENTS TO CARERS,REDACTED,REDACTED,
06.06.2018,CHILDREN'S SERVICES,REDACTED PERSONAL DATA,525.00,SPECIAL GUARDIANSHIP,PAYMENTS TO CARERS,REDACTED,REDACTED,
06.06.2018,CHILDREN'S SERVICES,NATIONAL FOSTERING AGENCY,"1,470.02",STAYING PUT,EXTERNAL AGENCIES AND BODIES,2102825298,1000038868,
06.06.2018,CHILDREN'S SERVICES,NATIONAL FOSTERING AGENCY,"1,860.00",STAYING PUT,EXTERNAL AGENCIES AND BODIES,2102825296,1000038868,
06.06.2018,CHILDREN'S SERVICES,NATIONAL FOSTERING AGENCY,"1,860.00",STAYING PUT,EXTERNAL AGENCIES AND BODIES,2102825313,1000038868,
06.06.2018,CHILDREN'S SERVICES,NATIONAL FOSTERING AGENCY,"1,860.00",STAYING PUT,EXTERNAL AGENCIES AND BODIES,2102825314,1000038868,
06.06.2018,CHILDREN'S SERVICES,CORE ASSETS FOSTERING LTD,"-1,199.94",STAYING PUT,PAYMENTS TO CARERS,5902305714,11288002,
06.06.2018,CHILDREN'S SERVICES,CORE ASSETS FOSTERING LTD,"1,714.20",STAYING PUT,PAYMENTS TO CARERS,5902305709,11288002,
06.06.2018,CHILDREN'S SERVICES,CORE ASSETS FOSTERING LTD,"2,399.88",STAYING PUT,PAYMENTS TO CARERS,5902305712,11288002,
06.06.2018,CHILDREN'S SERVICES,REDACTED PERSONAL DATA,373.46,STAYING PUT,PAYMENTS TO CARERS,REDACTED,REDACTED,
06.06.2018,CHILDREN'S SERVICES,REDACTED PERSONAL DATA,430.00,STAYING PUT,PAYMENTS TO CARERS,REDACTED,REDACTED,
06.06.2018,CHILDREN'S SERVICES,REDACTED PERSONAL DATA,500.00,STAYING PUT,PAYMENTS TO CARERS,REDACTED,REDACTED,
06.06.2018,CHILDREN'S SERVICES,REDACTED PERSONAL DATA,500.00,STAYING PUT,PAYMENTS TO CARERS,REDACTED,REDACTED,
06.06.2018,CHILDREN'S SERVICES,REDACTED PERSONAL DATA,500.00,STAYING PUT,PAYMENTS TO CARERS,REDACTED,REDACTED,
06.06.2018,CHILDREN'S SERVICES,REDACTED PERSONAL DATA,500.00,STAYING PUT,PAYMENTS TO CARERS,REDACTED,REDACTED,
06.06.2018,CHILDREN'S SERVICES,REDACTED PERSONAL DATA,500.00,STAYING PUT,PAYMENTS TO CARERS,REDACTED,REDACTED,
06.06.2018,CHILDREN'S SERVICES,REDACTED PERSONAL DATA,500.00,STAYING PUT,PAYMENTS TO CARERS,REDACTED,REDACTED,
06.06.2018,CHILDREN'S SERVICES,REDACTED PERSONAL DATA,500.00,STAYING PUT,PAYMENTS TO CARERS,REDACTED,REDACTED,
06.06.2018,CHILDREN'S SERVICES,REDACTED PERSONAL DATA,500.00,STAYING PUT,PAYMENTS TO CARERS,REDACTED,REDACTED,
06.06.2018,CHILDREN'S SERVICES,REDACTED PERSONAL DATA,500.00,STAYING PUT,PAYMENTS TO CARERS,REDACTED,REDACTED,
06.06.2018,CHILDREN'S SERVICES,REDACTED PERSONAL DATA,500.00,STAYING PUT,PAYMENTS TO CARERS,REDACTED,REDACTED,
06.06.2018,CHILDREN'S SERVICES,REDACTED PERSONAL DATA,500.00,STAYING PUT,PAYMENTS TO CARERS,REDACTED,REDACTED,
06.06.2018,CHILDREN'S SERVICES,REDACTED PERSONAL DATA,500.00,STAYING PUT,PAYMENTS TO CARERS,REDACTED,REDACTED,
06.06.2018,CHILDREN'S SERVICES,REDACTED PERSONAL DATA,500.00,STAYING PUT,PAYMENTS TO CARERS,REDACTED,REDACTED,
06.06.2018,CHILDREN'S SERVICES,REDACTED PERSONAL DATA,500.00,STAYING PUT,PAYMENTS TO CARERS,REDACTED,REDACTED,
06.06.2018,CHILDREN'S SERVICES,REDACTED PERSONAL DATA,500.00,STAYING PUT,PAYMENTS TO CARERS,REDACTED,REDACTED,
06.06.2018,CHILDREN'S SERVICES,REDACTED PERSONAL DATA,500.00,STAYING PUT,PAYMENTS TO CARERS,REDACTED,REDACTED,
06.06.2018,CHILDREN'S SERVICES,REDACTED PERSONAL DATA,500.00,STAYING PUT,PAYMENTS TO CARERS,REDACTED,REDACTED,
06.06.2018,CHILDREN'S SERVICES,REDACTED PERSONAL DATA,500.00,STAYING PUT,PAYMENTS TO CARERS,REDACTED,REDACTED,
06.06.2018,CHILDREN'S SERVICES,REDACTED PERSONAL DATA,500.00,STAYING PUT,PAYMENTS TO CARERS,REDACTED,REDACTED,
06.06.2018,CHILDREN'S SERVICES,REDACTED PERSONAL DATA,500.00,STAYING PUT,PAYMENTS TO CARERS,REDACTED,REDACTED,
06.06.2018,CHILDREN'S SERVICES,REDACTED PERSONAL DATA,500.00,STAYING PUT,PAYMENTS TO CARERS,REDACTED,REDACTED,
06.06.2018,CHILDREN'S SERVICES,REDACTED PERSONAL DATA,500.00,STAYING PUT,PAYMENTS TO CARERS,REDACTED,REDACTED,
06.06.2018,CHILDREN'S SERVICES,REDACTED PERSONAL DATA,500.00,STAYING PUT,PAYMENTS TO CARERS,REDACTED,REDACTED,
06.06.2018,CHILDREN'S SERVICES,REDACTED PERSONAL DATA,500.00,STAYING PUT,PAYMENTS TO CARERS,REDACTED,REDACTED,
06.06.2018,CHILDREN'S SERVICES,REDACTED PERSONAL DATA,500.00,STAYING PUT,PAYMENTS TO CARERS,REDACTED,REDACTED,
06.06.2018,CHILDREN'S SERVICES,REDACTED PERSONAL DATA,500.00,STAYING PUT,PAYMENTS TO CARERS,REDACTED,REDACTED,
06.06.2018,CHILDREN'S SERVICES,REDACTED PERSONAL DATA,500.00,STAYING PUT,PAYMENTS TO CARERS,REDACTED,REDACTED,
06.06.2018,CHILDREN'S SERVICES,REDACTED PERSONAL DATA,500.00,STAYING PUT,PAYMENTS TO CARERS,REDACTED,REDACTED,
06.06.2018,CHILDREN'S SERVICES,REDACTED PERSONAL DATA,500.00,STAYING PUT,PAYMENTS TO CARERS,REDACTED,REDACTED,
06.06.2018,CHILDREN'S SERVICES,REDACTED PERSONAL DATA,500.00,STAYING PUT,PAYMENTS TO CARERS,REDACTED,REDACTED,
06.06.2018,CHILDREN'S SERVICES,REDACTED PERSONAL DATA,607.15,STAYING PUT,PAYMENTS TO CARERS,REDACTED,REDACTED,
06.06.2018,CHILDREN'S SERVICES,REDACTED PERSONAL DATA,785.72,STAYING PUT,PAYMENTS TO CARERS,REDACTED,REDACTED,
06.06.2018,CHILDREN'S SERVICES,REDACTED PERSONAL DATA,"1,633.46",STAYING PUT,PAYMENTS TO CARERS,REDACTED,REDACTED,
06.06.2018,CHILDREN'S SERVICES,VEOLIA ES (UK)LTD,332.25,THOMAS CALTON CENTRE,REFUSE COLLECTION CONTRACT,5902305760,1824835,
06.06.2018,CHILDREN'S SERVICES,VEOLIA ES (UK)LTD,480.44,THOMAS CALTON CENTRE,REFUSE COLLECTION CONTRACT,5902305759,1824835,
06.06.2018,CHILDREN'S SERVICES,YOUNG FUTURES,-903.34,UASC SECTION 24,EXTERNAL AGENCIES AND BODIES,2102825300,1000059563,
06.06.2018,CHILDREN'S SERVICES,HOLMDENE HOUSING LTD,780.00,UASC SECTION 24,EXTERNAL AGENCIES AND BODIES,2102825321,1000032598,
06.06.2018,CHILDREN'S SERVICES,HOLMDENE HOUSING LTD,"1,480.00",UASC SECTION 24,EXTERNAL AGENCIES AND BODIES,2102825289,1000032598,
06.06.2018,CHILDREN'S SERVICES,HOLMDENE HOUSING LTD,"1,480.00",UASC SECTION 24,EXTERNAL AGENCIES AND BODIES,2102825291,1000032598,
06.06.2018,CHILDREN'S SERVICES,HOLMDENE HOUSING LTD,"1,480.00",UASC SECTION 24,EXTERNAL AGENCIES AND BODIES,2102825307,1000032598,
06.06.2018,CHILDREN'S SERVICES,HOLMDENE HOUSING LTD,"1,480.00",UASC SECTION 24,EXTERNAL AGENCIES AND BODIES,2102825318,1000032598,
06.06.2018,CHILDREN'S SERVICES,HOLMDENE HOUSING LTD,"1,480.00",UASC SECTION 24,EXTERNAL AGENCIES AND BODIES,2102825324,1000032598,
06.06.2018,CHILDREN'S SERVICES,YOUNG FUTURES,"2,214.33",UASC SECTION 24,EXTERNAL AGENCIES AND BODIES,2102825316,1000059563,
06.06.2018,CHILDREN'S SERVICES,HOLMDENE HOUSING LTD,"2,240.00",UASC SECTION 24,EXTERNAL AGENCIES AND BODIES,2102825309,1000032598,
06.06.2018,CHILDREN'S SERVICES,FUTURE FOUNDATIONS LTD,265.71,UNACCOMPANIED ASYLUM CHILDREN 16-17,EXTERNAL AGENCIES AND BODIES,2102825256,1000063272,
06.06.2018,CHILDREN'S SERVICES,FUTURE FOUNDATIONS LTD,"1,722.71",UNACCOMPANIED ASYLUM CHILDREN 16-17,EXTERNAL AGENCIES AND BODIES,2102825264,1000063272,
06.06.2018,CHILDREN'S SERVICES,FUTURE FOUNDATIONS LTD,"4,419.71",UNACCOMPANIED ASYLUM CHILDREN 16-17,EXTERNAL AGENCIES AND BODIES,2102825246,1000063272,
06.06.2018,CHILDREN'S SERVICES,FUTURE FOUNDATIONS LTD,"4,419.71",UNACCOMPANIED ASYLUM CHILDREN 16-17,EXTERNAL AGENCIES AND BODIES,2102825266,1000063272,
06.06.2018,CHILDREN'S SERVICES,FUTURE FOUNDATIONS LTD,265.71,UNACCOMPANIED ASYLUM CHILDREN 16-17,OTHER PAYMENTS FOR CLIENTS,2102825243,1000063272,
06.06.2018,CHILDREN'S SERVICES,FUTURE FOUNDATIONS LTD,265.71,UNACCOMPANIED ASYLUM CHILDREN 16-17,OTHER PAYMENTS FOR CLIENTS,2102825244,1000063272,
06.06.2018,CLIENT SVCES,ALLPAY NET LIMITED,"5,206.52",CASHIERS SLA,BANK CHARGES,5902305892,1000043001,
06.06.2018,COMMUNITIES,LONDON CARE LTD,"1,294.72",NO RECOURSE TO PUBLIC FUNDS,NATIONAL ASSISTANCE,2102825900,1000003398,
06.06.2018,COMMUNITIES,CRANSTOUN,"2,500.00",TIER 4 SERVICES,OTHER CONTRACTORS,5902305784,11283784,
06.06.2018,CUSTOMER EXPERIENCE HGF,NORBURY PROPERTY SERVICES,"35,845.50",NIGHTLY TA (NSC),EXTERNAL AGENCIES AND BODIES,5902305887,1000075566,
06.06.2018,CUSTOMER EXPERIENCE HGF,GALAXY LETTINGS LTD,"68,249.50",NIGHTLY TA (NSC),EXTERNAL AGENCIES AND BODIES,5902305781,1000055897,
06.06.2018,CUSTOMER EXPERIENCE HGF,ELIANA PENN,"1,320.00",PRIVATE SECTOR LEASING,EXTERNAL AGENCIES AND BODIES,2102825933,1000080776,
06.06.2018,DULWICH COMMUNITY COUNCIL,LIVELY MINDS CLUB,"2,100.00",REACHING OUT,GRANT,CHEQUE PAYMENT,CHEQUE PAYMENT,
06.06.2018,ENVIRONMENT AND LEISURE,SELECTA MARK SECURITY SYSTEM PLC,"1,950.00",CAPITAL PS (LEISURE),CONST'N MAIN CONTRACT - NON CERTIFICATED,5902305770,11249024,
06.06.2018,ENVIRONMENT AND LEISURE,NEWTON A FORD T/A PLAY-IT,395.00,CAPITAL PS (LEISURE),CONSTRUCTION FEES  - EXTERNAL,5902305821,1000067152,
06.06.2018,ENVIRONMENT AND LEISURE,VINCENTSTOKES LTD,"-11,926.92",CAPITAL PS (LEISURE),CONSTRUCTION MAIN CONTRACT,5902305716,3000001965,
06.06.2018,ENVIRONMENT AND LEISURE,VINCENTSTOKES LTD,"6,200.59",CAPITAL PS (LEISURE),CONSTRUCTION MAIN CONTRACT,2102824612,3000001965,
06.06.2018,ENVIRONMENT AND LEISURE,VINCENTSTOKES LTD,"11,330.57",CAPITAL PS (LEISURE),CONSTRUCTION MAIN CONTRACT,2102824613,3000001965,
06.06.2018,ENVIRONMENT AND LEISURE,VINCENTSTOKES LTD,"128,199.15",CAPITAL PS (LEISURE),CONSTRUCTION MAIN CONTRACT,2102824614,3000001965,
06.06.2018,ENVIRONMENT DIRECTORATE,CLOSE BROTHERS VEHICLE HIRE LTD,280.60,COMMERCIAL VEH CTRL A/C,HIRED VEHICLES,5902305797,1000074394,
06.06.2018,ENVIRONMENT DIRECTORATE,CLOSE BROTHERS VEHICLE HIRE LTD,280.60,COMMERCIAL VEH CTRL A/C,HIRED VEHICLES,5902305834,1000074394,
06.06.2018,ENVIRONMENT DIRECTORATE,CLOSE BROTHERS VEHICLE HIRE LTD,302.40,COMMERCIAL VEH CTRL A/C,HIRED VEHICLES,5902305839,1000074394,
06.06.2018,ENVIRONMENT DIRECTORATE,CLOSE BROTHERS VEHICLE HIRE LTD,316.80,COMMERCIAL VEH CTRL A/C,HIRED VEHICLES,5902305792,1000074394,
06.06.2018,ENVIRONMENT DIRECTORATE,CLOSE BROTHERS VEHICLE HIRE LTD,317.40,COMMERCIAL VEH CTRL A/C,HIRED VEHICLES,5902305837,1000074394,
06.06.2018,ENVIRONMENT DIRECTORATE,CLOSE BROTHERS VEHICLE HIRE LTD,318.25,COMMERCIAL VEH CTRL A/C,HIRED VEHICLES,5902305832,1000074394,
06.06.2018,ENVIRONMENT DIRECTORATE,CLOSE BROTHERS VEHICLE HIRE LTD,331.20,COMMERCIAL VEH CTRL A/C,HIRED VEHICLES,5902305793,1000074394,
06.06.2018,ENVIRONMENT DIRECTORATE,CLOSE BROTHERS VEHICLE HIRE LTD,331.20,COMMERCIAL VEH CTRL A/C,HIRED VEHICLES,5902305794,1000074394,
06.06.2018,ENVIRONMENT DIRECTORATE,CLOSE BROTHERS VEHICLE HIRE LTD,331.20,COMMERCIAL VEH CTRL A/C,HIRED VEHICLES,5902305796,1000074394,
06.06.2018,ENVIRONMENT DIRECTORATE,CLOSE BROTHERS VEHICLE HIRE LTD,331.20,COMMERCIAL VEH CTRL A/C,HIRED VEHICLES,5902305841,1000074394,
06.06.2018,ENVIRONMENT DIRECTORATE,DAWSON RENTALS BUS & COACH LTD,335.00,COMMERCIAL VEH CTRL A/C,HIRED VEHICLES,5902305851,1000042174,
06.06.2018,ENVIRONMENT DIRECTORATE,DAWSON RENTALS BUS & COACH LTD,450.00,COMMERCIAL VEH CTRL A/C,HIRED VEHICLES,5902305849,1000042174,
06.06.2018,ENVIRONMENT DIRECTORATE,CLOSE BROTHERS VEHICLE HIRE LTD,517.04,COMMERCIAL VEH CTRL A/C,HIRED VEHICLES,5902305789,1000074394,
06.06.2018,ENVIRONMENT DIRECTORATE,DAWSON RENTALS BUS & COACH LTD,690.00,COMMERCIAL VEH CTRL A/C,HIRED VEHICLES,5902305844,1000042174,
06.06.2018,ENVIRONMENT DIRECTORATE,DAWSON RENTALS BUS & COACH LTD,738.00,COMMERCIAL VEH CTRL A/C,HIRED VEHICLES,5902305846,1000042174,
06.06.2018,ENVIRONMENT DIRECTORATE,GULLIVERS TRUCK HIRE LTD,"1,830.00",COMMERCIAL VEH CTRL A/C,HIRED VEHICLES,5902305805,1000052656,
06.06.2018,ENVIRONMENT DIRECTORATE,GULLIVERS TRUCK HIRE LTD,527.20,COMMERCIAL VEH CTRL A/C,VEHICLE REPAIRS & MAINTENANCE,5902305810,1000052656,
06.06.2018,ENVIRONMENT DIRECTORATE,R J MOTORS LIMITED,"2,307.53",COMMERCIAL VEH CTRL A/C,VEHICLE REPAIRS & MAINTENANCE,5902305873,1000047106,
06.06.2018,ENVIRONMENT DIRECTORATE,GREENHAM TRADING LTD,-281.97,ESTATE CLEANING-GENERAL,MATERIALS,5902305765,1000006610,
06.06.2018,ENVIRONMENT DIRECTORATE,GREENHAM TRADING LTD,268.24,ESTATE CLEANING-GENERAL,MATERIALS,5902305749,1000006610,
06.06.2018,ENVIRONMENT DIRECTORATE,GREENHAM TRADING LTD,"1,215.43",ESTATE CLEANING-GENERAL,MATERIALS,5902305749,1000006610,
06.06.2018,ENVIRONMENT DIRECTORATE,LEX AUTOLEASE,441.00,FLEET INSURANCE WORKS,TRANSPORT INSURANCE COSTS,5902305785,1000069462,
06.06.2018,ENVIRONMENT DIRECTORATE,PACE ACCIDENT REPAIRS CENTRE LTD,535.69,FLEET INSURANCE WORKS,TRANSPORT INSURANCE COSTS,5902305715,1000069899,
06.06.2018,ENVIRONMENT DIRECTORATE,QUARTERMAN WINDSCREENS LTD,575.00,FLEET INSURANCE WORKS,TRANSPORT INSURANCE COSTS,5902305902,1043709,
06.06.2018,ENVIRONMENT DIRECTORATE,PACE ACCIDENT REPAIRS CENTRE LTD,692.82,FLEET INSURANCE WORKS,TRANSPORT INSURANCE COSTS,5902305719,1000069899,
06.06.2018,ENVIRONMENT DIRECTORATE,PACE ACCIDENT REPAIRS CENTRE LTD,"1,434.18",FLEET INSURANCE WORKS,TRANSPORT INSURANCE COSTS,5902305727,1000069899,
06.06.2018,ENVIRONMENT DIRECTORATE,CLOSE BROTHERS VEHICLE HIRE LTD,"3,135.41",FLEET INSURANCE WORKS,TRANSPORT INSURANCE COSTS,5902305783,1000074394,
06.06.2018,ENVIRONMENT DIRECTORATE,KYBOCORP LTD,"1,260.00",FOOD SAFETY,PROFESSIONAL FEES,5902305517,1000074513,
06.06.2018,ENVIRONMENT DIRECTORATE,NPOWER,428.99,LICENSING,STATIONERY,5902305737,1000032342,
06.06.2018,ENVIRONMENT DIRECTORATE,EDF ENERGY PLC,255.03,PARKING OVERHEADS,ELECTRICITY,5902305874,1008746,
06.06.2018,ENVIRONMENT DIRECTORATE,JUDGE AND PRIESTLEY SOLICITORS,"2,173.50",SASBU,LEGAL FEES & COURT COSTS,5902305731,1472217,
06.06.2018,ENVIRONMENT DIRECTORATE,THE INDUSTRIAL MAINTENANCE GROUP LTD,"2,057.29",STREET CLEANING-GENERAL,EQUIPMENT PURCHASE & REPAIR,5902305876,1000049781,
06.06.2018,F & C S EXCLUDING CORPORATE BUDGETS,BDO LLP,"4,166.66",RISK ADMIN,PROFESSIONAL FEES,5902305857,1000057898,
06.06.2018,HOUSING GENERAL FUND,L H BRIDGE LTD,"4,353.00",CAPITAL PS (HOUSING GF),CAPITAL GRANTS,5902305723,1000056928,
06.06.2018,HOUSING HRA,AJMADAPTIONS LTD,"1,100.00",CAPITAL PS (HRA),CONST'N MAIN CONTRACT - NON CERTIFICATED,2102824622,3000002056,
06.06.2018,HOUSING HRA,TRINITY CONSTRUCTION SERVICES LTD,"4,243.00",CAPITAL PS (HRA),CONST'N MAIN CONTRACT - NON CERTIFICATED,2102824610,3000001416,
06.06.2018,HOUSING HRA,STAR CONTRACTORS LIMITED,"7,270.00",CAPITAL PS (HRA),CONST'N MAIN CONTRACT - NON CERTIFICATED,2102824608,3000001490,
06.06.2018,HOUSING HRA,C&C BUILDERS LTD,"10,845.00",CAPITAL PS (HRA),CONST'N MAIN CONTRACT - NON CERTIFICATED,2102824619,3000001986,
06.06.2018,HOUSING HRA,CALFORD SEADEN LLP,"5,000.00",CAPITAL PS (HRA),CONSTRUCTION FEES  - EXTERNAL,5902305776,1061592,
06.06.2018,HOUSING HRA,CALFORD SEADEN LLP,"15,876.00",CAPITAL PS (HRA),CONSTRUCTION FEES  - EXTERNAL,5902305732,1061592,
06.06.2018,HOUSING HRA,SALTASH ENTERPRISES LTD,"92,813.51",CAPITAL PS (HRA),CONSTRUCTION MAIN CONTRACT -CERTIFICATED,2102824604,4013605,
06.06.2018,HOUSING HRA,SALTASH ENTERPRISES LTD,"144,216.84",CAPITAL PS (HRA),CONSTRUCTION MAIN CONTRACT -CERTIFICATED,2102824603,4013605,
06.06.2018,HOUSING HRA,KENT COUNTY COUNCIL - LASER,"27,418.71",RESIDENT SERVICES BUSINESS SUPPORT,ELECTRICITY,6101835228,DIRECT DEBIT PAYMENT,
06.06.2018,HOUSING HRA,KENT COUNTY COUNCIL - LASER,"84,121.42",RESIDENT SERVICES BUSINESS SUPPORT,ELECTRICITY,6101835229,DIRECT DEBIT PAYMENT,
06.06.2018,HOUSING STRATEGY AND OPTIONS,REDACTED PERSONAL DATA,"1,261.20",HOMELESS PROJECTS,GRANTS,REDACTED,REDACTED,
06.06.2018,HOUSING STRATEGY AND OPTIONS,REDACTED PERSONAL DATA,"3,000.00",HOMELESS PROJECTS,GRANTS,REDACTED,REDACTED,
06.06.2018,HOUSING STRATEGY AND OPTIONS,REDACTED PERSONAL DATA,"1,400.00",HOMELESS PROJECTS,GRANTS,REDACTED,REDACTED,
06.06.2018,LEISURE DIRECTORATE,KENT COUNTY COUNCIL - LASER,"4,072.12",CANADA WATER LIBRARY,ELECTRICITY,5902305777,1000012926,
06.06.2018,LEISURE DIRECTORATE,HUSSEY SEATWAY LTD,"1,264.00",CANADA WATER LIBRARY,EQUIPMENT PURCHASE & REPAIR,5902305779,1000077959,
06.06.2018,LEISURE DIRECTORATE,KENT COUNTY COUNCIL - LASER,-824.80,CREMATORIUM,ELECTRICITY,5902305820,1000012926,
06.06.2018,LEISURE DIRECTORATE,KENT COUNTY COUNCIL - LASER,-761.40,CREMATORIUM,ELECTRICITY,5902305823,1000012926,
06.06.2018,LEISURE DIRECTORATE,KENT COUNTY COUNCIL - LASER,-334.07,CREMATORIUM,ELECTRICITY,5902305818,1000012926,
06.06.2018,LEISURE DIRECTORATE,KENT COUNTY COUNCIL - LASER,-478.91,CREMATORIUM,GAS,5902305813,1000012926,
06.06.2018,LEISURE DIRECTORATE,KENT COUNTY COUNCIL - LASER,-281.83,CREMATORIUM,GAS,5902305803,1000012926,
06.06.2018,LEISURE DIRECTORATE,KENT COUNTY COUNCIL - LASER,252.26,CREMATORIUM,GAS,5902305800,1000012926,
06.06.2018,LEISURE DIRECTORATE,RED R DESIGN,"1,600.00",LIBARIES DEVELOPMENT,MARKETING & PUBLICITY SERVICES,5902305768,1000035984,
06.06.2018,LEISURE DIRECTORATE,OPEN CITY ARCHITECTURE,"4,200.00",LIBARIES DEVELOPMENT,SUBSCRIPTIONS,5902305764,1831831,
06.06.2018,PLANNING AND TRANSPORT,SWECO,"2,000.00",BUILDING CONTROL,PROFESSIONAL FEES,5902305897,1000080378,
06.06.2018,RESIDENT SERVICES,KINLEIGH FOLKARD & HAYWARD LTD,"1,820.85",ROTHERHITHE,SERVICE CHARGES,2102824633,1000027237,
06.06.2018,RESIDENT SERVICES,KINLEIGH FOLKARD & HAYWARD LTD,"2,073.52",ROTHERHITHE,SERVICE CHARGES,2102824632,1000027237,
06.06.2018,RESIDENT SERVICES,KINLEIGH FOLKARD & HAYWARD LTD,"2,126.51",ROTHERHITHE,SERVICE CHARGES,2102824631,1000027237,
06.06.2018,RESIDENT SERVICES,KINLEIGH FOLKARD & HAYWARD LTD,"2,341.90",ROTHERHITHE,SERVICE CHARGES,2102824629,1000027237,
06.06.2018,RESIDENT SERVICES,KENT COUNTY COUNCIL - LASER,778.65,TA HOSTELS,ELECTRICITY,5902305730,1000012926,
06.06.2018,RESIDENT SERVICES,KENT COUNTY COUNCIL - LASER,"1,470.68",TA HOSTELS,ELECTRICITY,5902305717,1000012926,
06.06.2018,RESIDENT SERVICES,KENT COUNTY COUNCIL - LASER,"1,532.35",TA HOSTELS,ELECTRICITY,5902305725,1000012926,
06.06.2018,RESIDENT SERVICES,GALAXY LETTINGS LTD,"1,243.00",TA PLACEMENTS,EXTERNAL AGENCIES AND BODIES,5902305795,1000055897,
06.06.2018,RESIDENT SERVICES,TAAKSVALE HOUSING LTD,"2,700.00",TA PLACEMENTS,EXTERNAL AGENCIES AND BODIES,5902305721,1000073665,
06.06.2018,RESIDENT SERVICES,A & H PEST CONTROL LTD,490.00,WALWORTH EAST,PEST CONTROL,5902305842,11230875,
06.06.2018,RESIDENT SERVICES,A & H PEST CONTROL LTD,690.00,WALWORTH EAST,PEST CONTROL,5902305847,11230875,
06.06.2018,REVENUES AND BENEFITS,ARCH CONSULTING,920.00,SAP PAYROLL,CONSULTANTS SERVICES,5902305782,1000056829,
06.06.2018,SOUTHWARK BUILDING SERVICES,3MS GOLD SERVICES LTD,802.75,STORES/LOGISTICS,CONSTRUCTION INDUSTRY TAX,2102825944,3000001256,
07.06.2018,ADULT SOCIAL CARE,VEOLIA ES (UK)LTD,467.01,FRED FRANCIS CENTRE,PREMISES CLEANING,5902305969,1824835,
07.06.2018,ADULT SOCIAL CARE,THE NEW SHOOTS,375.00,LD LTS 18-64,DAYCARE,2102825989,1000073970,
07.06.2018,ADULT SOCIAL CARE,KENT HARRIER PROPERTY MANAGEMENT,"1,446.00",LD LTS 18-64,EXTERNAL AGENCIES AND BODIES,2102825993,1000078130,
07.06.2018,ADULT SOCIAL CARE,KENT HARRIER PROPERTY MANAGEMENT,"1,500.00",LD LTS 18-64,EXTERNAL AGENCIES AND BODIES,2102825990,1000078130,
07.06.2018,ADULT SOCIAL CARE,INTERSERVE HEALTHCARE,445.89,LD LTS 18-64,HOMECARE - SPOT,2102826055,1000049612,
07.06.2018,ADULT SOCIAL CARE,TRUECARE HAVEN SUPPORT LTD,"1,140.00",LD LTS 18-64,HOMECARE - SPOT,2102826057,1000078974,
07.06.2018,ADULT SOCIAL CARE,TRUECARE HAVEN SUPPORT LTD,"1,520.00",LD LTS 18-64,HOMECARE - SPOT,2102826041,1000078974,
07.06.2018,ADULT SOCIAL CARE,REDACTED PERSONAL DATA,"2,023.50",LD LTS 18-64,HOMECARE - SPOT,REDACTED,REDACTED,
07.06.2018,ADULT SOCIAL CARE,MARCUS AND MARCUS LTD,"4,000.00",LD LTS 18-64,SUPPORTED LIVING,2102826042,1000065913,
07.06.2018,ADULT SOCIAL CARE,MARCUS AND MARCUS LTD,"4,800.00",LD LTS 18-64,SUPPORTED LIVING,2102826059,1000065913,
07.06.2018,ADULT SOCIAL CARE,MARCUS AND MARCUS LTD,"13,440.00",LD LTS 18-64,SUPPORTED LIVING,2102826053,1000065913,
07.06.2018,ADULT SOCIAL CARE,TRUECARE HAVEN SUPPORT LTD,"1,560.12",LD LTS 65+,SUPPORTED LIVING,2102826051,1000078974,
07.06.2018,ADULT SOCIAL CARE,TRUECARE HAVEN SUPPORT LTD,"1,560.12",LD LTS 65+,SUPPORTED LIVING,2102826054,1000078974,
07.06.2018,ADULT SOCIAL CARE,TIME & TALENTS ASSOCIATION,"14,562.50",LOCAL COMMUNITY OFFER,EXTERNAL AGENCIES AND BODIES,5902305995,1757632,
07.06.2018,ADULT SOCIAL CARE,HUMBLE HEALTH CARE LTD,519.77,MEM LTS 65+,HOMECARE - SPOT,2102826045,1000079270,
07.06.2018,ADULT SOCIAL CARE,CARE DIRECT UK LTD,689.50,MEM LTS 65+,HOMECARE - SPOT,2102826067,1000066322,
07.06.2018,ADULT SOCIAL CARE,OASIS CARE AND TRAINING AGENCY,275.80,MH LTS 18-64,HOMECARE - SPOT,2102825992,1000003687,
07.06.2018,ADULT SOCIAL CARE,CARE DIRECT UK LTD,289.59,MH LTS 18-64,HOMECARE - SPOT,2102826092,1000066322,
07.06.2018,ADULT SOCIAL CARE,REDACTED PERSONAL DATA,323.76,MH LTS 18-64,HOMECARE - SPOT,REDACTED,REDACTED,
07.06.2018,ADULT SOCIAL CARE,REDACTED PERSONAL DATA,377.72,MH LTS 18-64,HOMECARE - SPOT,REDACTED,REDACTED,
07.06.2018,ADULT SOCIAL CARE,REDACTED PERSONAL DATA,404.70,MH LTS 18-64,HOMECARE - SPOT,REDACTED,REDACTED,
07.06.2018,ADULT SOCIAL CARE,REDACTED PERSONAL DATA,"1,025.24",MH LTS 18-64,HOMECARE - SPOT,REDACTED,REDACTED,
07.06.2018,ADULT SOCIAL CARE,REDACTED PERSONAL DATA,"1,173.63",MH LTS 18-64,HOMECARE - SPOT,REDACTED,REDACTED,
07.06.2018,ADULT SOCIAL CARE,REDACTED PERSONAL DATA,"1,375.98",MH LTS 18-64,HOMECARE - SPOT,REDACTED,REDACTED,
07.06.2018,ADULT SOCIAL CARE,REDACTED PERSONAL DATA,"1,382.93",MH LTS 18-64,HOMECARE - SPOT,REDACTED,REDACTED,
07.06.2018,ADULT SOCIAL CARE,REDACTED PERSONAL DATA,"1,578.33",MH LTS 18-64,HOMECARE - SPOT,REDACTED,REDACTED,
07.06.2018,ADULT SOCIAL CARE,REDACTED PERSONAL DATA,"2,151.80",MH LTS 18-64,HOMECARE - SPOT,REDACTED,REDACTED,
07.06.2018,ADULT SOCIAL CARE,METRO HOMECARE LTD,386.12,MH LTS 65+,HOMECARE - SPOT,2102826176,1000070695,
07.06.2018,ADULT SOCIAL CARE,REDACTED PERSONAL DATA,"-1,018.40",PHY LTS 18-64,DISCRETIONARY FLEXIBLE FEES & INCOME,REDACTED,REDACTED,
07.06.2018,ADULT SOCIAL CARE,METRO HOMECARE LTD,255.12,PHY LTS 18-64,HOMECARE - SPOT,2102826173,1000070695,
07.06.2018,ADULT SOCIAL CARE,CARE DIRECT UK LTD,262.01,PHY LTS 18-64,HOMECARE - SPOT,2102826069,1000066322,
07.06.2018,ADULT SOCIAL CARE,CARE DIRECT UK LTD,268.91,PHY LTS 18-64,HOMECARE - SPOT,2102826125,1000066322,
07.06.2018,ADULT SOCIAL CARE,CARE DIRECT UK LTD,272.35,PHY LTS 18-64,HOMECARE - SPOT,2102826096,1000066322,
07.06.2018,ADULT SOCIAL CARE,CARE DIRECT UK LTD,310.28,PHY LTS 18-64,HOMECARE - SPOT,2102826078,1000066322,
07.06.2018,ADULT SOCIAL CARE,HUMBLE HEALTH CARE LTD,337.52,PHY LTS 18-64,HOMECARE - SPOT,2102826044,1000079270,
07.06.2018,ADULT SOCIAL CARE,METRO HOMECARE LTD,337.86,PHY LTS 18-64,HOMECARE - SPOT,2102826171,1000070695,
07.06.2018,ADULT SOCIAL CARE,METRO HOMECARE LTD,455.07,PHY LTS 18-64,HOMECARE - SPOT,2102826166,1000070695,
07.06.2018,ADULT SOCIAL CARE,METRO HOMECARE LTD,992.88,PHY LTS 18-64,HOMECARE - SPOT,2102825999,1000070695,
07.06.2018,ADULT SOCIAL CARE,REDACTED PERSONAL DATA,"1,018.40",PHY LTS 18-64,PAYMENTS TO CLIENTS (DIRECT PAYMENTS),REDACTED,REDACTED,
07.06.2018,ADULT SOCIAL CARE,METRO HOMECARE LTD,358.54,PHY LTS 65+,HOMECARE - C&V,2102826183,1000070695,
07.06.2018,ADULT SOCIAL CARE,METRO HOMECARE LTD,365.44,PHY LTS 65+,HOMECARE - C&V,2102826167,1000070695,
07.06.2018,ADULT SOCIAL CARE,CARE DIRECT UK LTD,251.67,PHY LTS 65+,HOMECARE - SPOT,2102826101,1000066322,
07.06.2018,ADULT SOCIAL CARE,METRO HOMECARE LTD,255.12,PHY LTS 65+,HOMECARE - SPOT,2102826158,1000070695,
07.06.2018,ADULT SOCIAL CARE,METRO HOMECARE LTD,255.12,PHY LTS 65+,HOMECARE - SPOT,2102826178,1000070695,
07.06.2018,ADULT SOCIAL CARE,CARE DIRECT UK LTD,265.46,PHY LTS 65+,HOMECARE - SPOT,2102826106,1000066322,
07.06.2018,ADULT SOCIAL CARE,METRO HOMECARE LTD,268.91,PHY LTS 65+,HOMECARE - SPOT,2102826164,1000070695,
07.06.2018,ADULT SOCIAL CARE,METRO HOMECARE LTD,289.59,PHY LTS 65+,HOMECARE - SPOT,2102826172,1000070695,
07.06.2018,ADULT SOCIAL CARE,METRO HOMECARE LTD,289.59,PHY LTS 65+,HOMECARE - SPOT,2102826185,1000070695,
07.06.2018,ADULT SOCIAL CARE,CULTURE CARE AGENCY,304.50,PHY LTS 65+,HOMECARE - SPOT,2102826043,1000062127,
07.06.2018,ADULT SOCIAL CARE,METRO HOMECARE LTD,310.28,PHY LTS 65+,HOMECARE - SPOT,2102826001,1000070695,
07.06.2018,ADULT SOCIAL CARE,OASIS CARE AND TRAINING AGENCY,317.16,PHY LTS 65+,HOMECARE - SPOT,2102825995,1000003687,
07.06.2018,ADULT SOCIAL CARE,METRO HOMECARE LTD,324.07,PHY LTS 65+,HOMECARE - SPOT,2102826154,1000070695,
07.06.2018,ADULT SOCIAL CARE,METRO HOMECARE LTD,344.75,PHY LTS 65+,HOMECARE - SPOT,2102826175,1000070695,
07.06.2018,ADULT SOCIAL CARE,CARE DIRECT UK LTD,358.54,PHY LTS 65+,HOMECARE - SPOT,2102826070,1000066322,
